NUMERO_MANDATO;RIGA_MANDATO;QUIET;IMPORTO_RIGA;IMPORTO_MANDATO;BENEFICIARIO;CIG;TITOLO_PAGAMENTO;DATA_MANDATO;CAPITOLO;ARTICOLO;NUMERO_IMPEGNO;TITOLO;DESCR_TITOLO;LIVELLO_II;DESCR_LIVELLO_II;LIVELLO_III;DESCR_LIVELLO_III;LIVELLO_IV;DESCR_LIVELLO_IV;LIVELLO_V;DESCR_LIVELLO_V;DATA_PAG_EFF
1143;1;9999999;270,41;270,41;KYOCERA DOCUMENT SOLUTIONS ITALIA SPA;Z202CF11D4;SALDO Fatt.n. 1010674374  del 19/03/2021 FOTOCOPIATRICI 31 - LOTTO 3 - 60 MESI - CANONE PERIODO DAL 18.12.2020 al 17.03.2021;01/04/2021;748;0;450;1;Spese correnti;3;Acquisto di beni e servizi;2;Acquisto di servizi;19;Servizi informatici e di telecomunicazioni;9;Servizi per le postazioni di lavoro e relativa manutenzione;07/04/2021
1144;1;9999999;125,98;125,98;KYOCERA DOCUMENT SOLUTIONS ITALIA SPA;Z3517CFFA1;ACCONTO Fatt.n. 1010675573  del 24/03/2021 FOTOCOPIATRICI 24 - LOTTO 4 - 60 MESI;01/04/2021;748;0;450;1;Spese correnti;3;Acquisto di beni e servizi;2;Acquisto di servizi;19;Servizi informatici e di telecomunicazioni;9;Servizi per le postazioni di lavoro e relativa manutenzione;07/04/2021
1145;1;9999999;3.369,64;3.369,64;ACCATRE SRL;ZDB25C4D80;SALDO Fatt.n. 1/210405  del 12/03/2021 CONVENZIONE PER I SERVIZI  DEL SETTORE FINANZIARIO ANNO 2021;01/04/2021;748;0;1244;1;Spese correnti;3;Acquisto di beni e servizi;2;Acquisto di servizi;19;Servizi informatici e di telecomunicazioni;7;Servizi di gestione documentale;07/04/2021
1146;1;9999999;483,12;483,12;SOLUZIONI OPENSOURCE M3 SNC;Z6F22A8A93;SALDO Fatt.n. 121  del 21/03/2021 IMPEGNO DI SPESA - CANONE 2021 SERVIZI DOCUMENTALI CLOUD;01/04/2021;748;0;31;1;Spese correnti;3;Acquisto di beni e servizi;2;Acquisto di servizi;19;Servizi informatici e di telecomunicazioni;7;Servizi di gestione documentale;07/04/2021
1147;1;9999999;4.803,14;4.803,14;DATAPIANO SRL;ZA23020E8D;SALDO Fatt.n. S-30  del 25/03/2021 CANONE DI MANUTENZIONE ED ASSISTENZA SOFTWARE  2021 UFFICIO TECNICO;01/04/2021;748;0;107;1;Spese correnti;3;Acquisto di beni e servizi;2;Acquisto di servizi;19;Servizi informatici e di telecomunicazioni;5;Servizi per i sistemi e relativa manutenzione;07/04/2021
1148;1;9999999;4.684,80;4.684,80;ZWIRNER ANDREA;Z9D2FAD119;SALDO Fatt.n. A/21  del 17/03/2021 ATTIVITA' DI ANALISI INFRASTRUTTURA INFORMATICA;01/04/2021;748;0;1304;1;Spese correnti;3;Acquisto di beni e servizi;2;Acquisto di servizi;19;Servizi informatici e di telecomunicazioni;6;Servizi di sicurezza;07/04/2021
1149;1;9999999;1.281,00;6.355,29;CHIP COMPUTERS SRL;ZA22FD9949;SALDO Fatt.n. 42/7  del 24/03/2021  ATTIVAZIONE SISTEMA DI VIDEOCONFERENZA;01/04/2021;7440;0;1345;2;Spese in conto capitale;2;Investimenti fissi lordi e acquisto di terreni;1;Beni materiali;7;Hardware;4;Apparati di telecomunicazione;07/04/2021
1149;2;9999999;5.074,29;6.355,29;CHIP COMPUTERS SRL;ZA22FD9949;SALDO Fatt.n. 33/7  del 26/02/2021 INSTALLAZIONE E CONFIGURAZIONE SISTEMA DI VIDEOCONFERENZA;01/04/2021;7440;0;1345;2;Spese in conto capitale;2;Investimenti fissi lordi e acquisto di terreni;1;Beni materiali;7;Hardware;4;Apparati di telecomunicazione;07/04/2021
1150;1;9999999;2.415,60;2.415,60;COM.TEL SPA;ZDE2F2A98D;SALDO Fatt.n. 40014  del 28/02/2021 ACQUISTO FAX SERVER SEDE MUNICIPALE;01/04/2021;7440;0;1012;2;Spese in conto capitale;2;Investimenti fissi lordi e acquisto di terreni;1;Beni materiali;7;Hardware;4;Apparati di telecomunicazione;07/04/2021
1151;1;9999999;29,08;716,04;KYOCERA DOCUMENT SOLUTIONS ITALIA SPA;Z3517CFFA1;SALDO Fatt.n. 1010675573  del 24/03/2021 FOTOCOPIATRICI 24 - LOTTO 4 - 60 MESI;01/04/2021;748;0;106;1;Spese correnti;3;Acquisto di beni e servizi;2;Acquisto di servizi;19;Servizi informatici e di telecomunicazioni;7;Servizi di gestione documentale;07/04/2021
1151;2;9999999;686,96;716,04;KYOCERA DOCUMENT SOLUTIONS ITALIA SPA;Z3517CFFA1;SALDO Fatt.n. 1010674375  del 19/03/2021 FOTOCOPIATRICI 24 - LOTTO 4 - 60 MESI - CANONE PERIODO DAL 19.12.2020 AL 18.03.2021;01/04/2021;748;0;106;1;Spese correnti;3;Acquisto di beni e servizi;2;Acquisto di servizi;19;Servizi informatici e di telecomunicazioni;7;Servizi di gestione documentale;07/04/2021
1152;1;9999999;190;190;SANT'ANGELO CARNI SRL; ;SALDO Fatt.n. 6  del 28/02/2021 BUONI ALIMENTARI COVID -19;01/04/2021;4122;0;1329;1;Spese correnti;3;Acquisto di beni e servizi;1;Acquisto di beni;2;Altri beni di consumo;11;Generi alimentari;07/04/2021
1153;1;9999999;990,97;990,97;CENTRO BIBLIOTECHE LOVAT SRL;ZD1304E6F6;SALDO Fatt.n. 315-21  del 05/03/2021 FORNITURA VOLUMI PER BIBLIOTECA;01/04/2021;1820;0;42;1;Spese correnti;3;Acquisto di beni e servizi;1;Acquisto di beni;1;Giornali, riviste e pubblicazioni;2;Pubblicazioni;07/04/2021
1154;1;9999999;184,64;184,64;NUOVA AUTOCAR 94 SNC;ZAA30AD6F6;SALDO Fatt.n. 2021-PA-000002  del 28/02/2021  REVISIONE AUTOMEZZO  IVECO  BV 340 BC;01/04/2021;3538;0;155;1;Spese correnti;3;Acquisto di beni e servizi;2;Acquisto di servizi;9;Manutenzione ordinaria e riparazioni;1;Manutenzione ordinaria e riparazioni di mezzi di trasporto ad uso civile, di sicurezza e ordine pubblico;07/04/2021
1155;1;9999999;237,53;237,53;SUPERBETON SPA;ZE330B9BB6;SALDO Fatt.n. VP/179  del 27/02/2021 FORNITURA ASFALTO LIMENA;01/04/2021;3538;0;166;1;Spese correnti;3;Acquisto di beni e servizi;2;Acquisto di servizi;9;Manutenzione ordinaria e riparazioni;8;Manutenzione ordinaria e riparazioni di beni immobili;07/04/2021
1156;1;9999999;17.456,57;17.456,57;SOC. SOCIOCULTURALE COOP. SOCIALE;80171200B8;SALDO Fatt.n. 766 PAS  del 05/03/2021 MESE DI DICEMBRE 2020 - ASSISTENZA DOMICILIARE E TRASPORTO;01/04/2021;3944;0;975;1;Spese correnti;3;Acquisto di beni e servizi;2;Acquisto di servizi;15;Contratti di servizio pubblico;9;Contratti di servizio di assistenza sociale domiciliare;07/04/2021
1157;1;9999999;676;676;TONIATO ARIANNA;ZAA29AF873;SALDO Fatt.n. 5  del 15/02/2021 PROGETTAZIONE ESECUTIVO PER LAVORI DI ADEGUAMENTO NORMATIVO CIMITERO DI SMS;01/04/2021;8020;80;990;2;Spese in conto capitale;2;Investimenti fissi lordi e acquisto di terreni;1;Beni materiali;9;Beni immobili;15;Cimiteri;07/04/2021
1158;1;9999999;848,75;4.599,02;VODAFONE ITALIA SPA;ZED3129CBE;SALDO Fatt.n. AN04459541  del 13/03/2021 PERIODO 08 GENNAIO - 08 MARZO 2021 - TELEFONIA;02/04/2021;134;32;310;1;Spese correnti;3;Acquisto di beni e servizi;2;Acquisto di servizi;5;Utenze e canoni;2;Telefonia mobile;07/04/2021
1158;2;9999999;955,01;4.599,02;VODAFONE ITALIA SPA;ZED3129CBE;SALDO Fatt.n. AN04459542  del 13/03/2021 PERIODO 08 GENNAIO - 08 MARZO 2021 - TELEFONIA;02/04/2021;134;32;310;1;Spese correnti;3;Acquisto di beni e servizi;2;Acquisto di servizi;5;Utenze e canoni;2;Telefonia mobile;07/04/2021
1158;3;9999999;2.795,26;4.599,02;VODAFONE ITALIA SPA;ZED3129CBE;SALDO Fatt.n. AN04459380  del 13/03/2021 PERIODO 08 GENNAIO - 08 MARZO 2021 - TELEFONIA;02/04/2021;134;32;310;1;Spese correnti;3;Acquisto di beni e servizi;2;Acquisto di servizi;5;Utenze e canoni;2;Telefonia mobile;07/04/2021
1159;1;9999999;860,57;860,57;VODAFONE ITALIA SPA;ZED3129CBE;SALDO Fatt.n. AN04459332  del 13/03/2021 PERIODO 08 GENNAIO - 08 MARZO 2021 - TELEFONIA;02/04/2021;1134;30;311;1;Spese correnti;3;Acquisto di beni e servizi;2;Acquisto di servizi;5;Utenze e canoni;1;Telefonia fissa;07/04/2021
1160;1;9999999;1.000,00;1.000,00;OMESSO NOMINATIVO NEL RISPETTO DELLA NORMATIVA SULLA PROTEZIONE DATI PERSONALI; ;APRILE 2021 INT.RETTA PROGETTO DI DOMICILARIETA;02/04/2021;4157;0;149;1;Spese correnti;4;Trasferimenti correnti;2;Trasferimenti correnti a Famiglie;2;Interventi assistenziali;999;Altri assegni e sussidi assistenziali;07/04/2021
1161;1;9999999;150;150;OMESSO NOMINATIVO NEL RISPETTO DELLA NORMATIVA SULLA PROTEZIONE DATI PERSONALI; ;APRILE 2021 AFFIDO FAMILIARE;02/04/2021;3757;50;282;1;Spese correnti;4;Trasferimenti correnti;2;Trasferimenti correnti a Famiglie;2;Interventi assistenziali;999;Altri assegni e sussidi assistenziali;07/04/2021
1162;1;9999999;261,26;261,26;OMESSO NOMINATIVO NEL RISPETTO DELLA NORMATIVA SULLA PROTEZIONE DATI PERSONALI; ;CONTRIBUTO REGIONALE BUONO-LIBRI ANNO SCOLASTICO 2020/21;02/04/2021;1357;50;290;1;Spese correnti;4;Trasferimenti correnti;2;Trasferimenti correnti a Famiglie;5;Altri trasferimenti a famiglie;999;Altri trasferimenti a famiglie n.a.c.;07/04/2021
1163;1;9999999;71,41;71,41;OMESSO NOMINATIVO NEL RISPETTO DELLA NORMATIVA SULLA PROTEZIONE DATI PERSONALI; ;CONTRIBUTO REGIONALE BUONO-LIBRI ANNO SCOLASTICO 2020/21;02/04/2021;1357;50;290;1;Spese correnti;4;Trasferimenti correnti;2;Trasferimenti correnti a Famiglie;5;Altri trasferimenti a famiglie;999;Altri trasferimenti a famiglie n.a.c.;07/04/2021
1164;1;9999999;324,6;324,6;OMESSO NOMINATIVO NEL RISPETTO DELLA NORMATIVA SULLA PROTEZIONE DATI PERSONALI; ;CONTRIBUTO REGIONALE BUONO-LIBRI ANNO SCOLASTICO 2020/21;02/04/2021;1357;50;290;1;Spese correnti;4;Trasferimenti correnti;2;Trasferimenti correnti a Famiglie;5;Altri trasferimenti a famiglie;999;Altri trasferimenti a famiglie n.a.c.;07/04/2021
1165;1;9999999;124,96;124,96;OMESSO NOMINATIVO NEL RISPETTO DELLA NORMATIVA SULLA PROTEZIONE DATI PERSONALI; ;CONTRIBUTO REGIONALE BUONO-LIBRI ANNO SCOLASTICO 2020/21;02/04/2021;1357;50;290;1;Spese correnti;4;Trasferimenti correnti;2;Trasferimenti correnti a Famiglie;5;Altri trasferimenti a famiglie;999;Altri trasferimenti a famiglie n.a.c.;07/04/2021
1166;1;9999999;487,35;487,35;OMESSO NOMINATIVO NEL RISPETTO DELLA NORMATIVA SULLA PROTEZIONE DATI PERSONALI; ;CONTRIBUTO REGIONALE BUONO-LIBRI ANNO SCOLASTICO 2020/21;02/04/2021;1357;50;290;1;Spese correnti;4;Trasferimenti correnti;2;Trasferimenti correnti a Famiglie;5;Altri trasferimenti a famiglie;999;Altri trasferimenti a famiglie n.a.c.;07/04/2021
1167;1;9999999;137,25;137,25;OMESSO NOMINATIVO NEL RISPETTO DELLA NORMATIVA SULLA PROTEZIONE DATI PERSONALI; ;CONTRIBUTO REGIONALE BUONO-LIBRI ANNO SCOLASTICO 2020/21;02/04/2021;1357;50;290;1;Spese correnti;4;Trasferimenti correnti;2;Trasferimenti correnti a Famiglie;5;Altri trasferimenti a famiglie;999;Altri trasferimenti a famiglie n.a.c.;07/04/2021
1168;1;9999999;45,64;45,64;OMESSO NOMINATIVO NEL RISPETTO DELLA NORMATIVA SULLA PROTEZIONE DATI PERSONALI; ;CONTRIBUTO REGIONALE BUONO-LIBRI ANNO SCOLASTICO 2020/21;02/04/2021;1357;50;290;1;Spese correnti;4;Trasferimenti correnti;2;Trasferimenti correnti a Famiglie;5;Altri trasferimenti a famiglie;999;Altri trasferimenti a famiglie n.a.c.;07/04/2021
1169;1;9999999;53,94;53,94;OMESSO NOMINATIVO NEL RISPETTO DELLA NORMATIVA SULLA PROTEZIONE DATI PERSONALI; ;CONTRIBUTO REGIONALE BUONO-LIBRI ANNO SCOLASTICO 2020/21;02/04/2021;1357;50;290;1;Spese correnti;4;Trasferimenti correnti;2;Trasferimenti correnti a Famiglie;5;Altri trasferimenti a famiglie;999;Altri trasferimenti a famiglie n.a.c.;07/04/2021
1170;1;9999999;370,78;370,78;OMESSO NOMINATIVO NEL RISPETTO DELLA NORMATIVA SULLA PROTEZIONE DATI PERSONALI; ;CONTRIBUTO REGIONALE BUONO-LIBRI ANNO SCOLASTICO 2020/21;02/04/2021;1357;50;290;1;Spese correnti;4;Trasferimenti correnti;2;Trasferimenti correnti a Famiglie;5;Altri trasferimenti a famiglie;999;Altri trasferimenti a famiglie n.a.c.;07/04/2021
1171;1;9999999;300,05;300,05;OMESSO NOMINATIVO NEL RISPETTO DELLA NORMATIVA SULLA PROTEZIONE DATI PERSONALI; ;CONTRIBUTO REGIONALE BUONO-LIBRI ANNO SCOLASTICO 2020/21;02/04/2021;1357;50;290;1;Spese correnti;4;Trasferimenti correnti;2;Trasferimenti correnti a Famiglie;5;Altri trasferimenti a famiglie;999;Altri trasferimenti a famiglie n.a.c.;07/04/2021
1172;1;9999999;106,69;106,69;OMESSO NOMINATIVO NEL RISPETTO DELLA NORMATIVA SULLA PROTEZIONE DATI PERSONALI; ;CONTRIBUTO REGIONALE BUONO-LIBRI ANNO SCOLASTICO 2020/21;02/04/2021;1357;50;290;1;Spese correnti;4;Trasferimenti correnti;2;Trasferimenti correnti a Famiglie;5;Altri trasferimenti a famiglie;999;Altri trasferimenti a famiglie n.a.c.;07/04/2021
1173;1;9999999;163,65;163,65;OMESSO NOMINATIVO NEL RISPETTO DELLA NORMATIVA SULLA PROTEZIONE DATI PERSONALI; ;CONTRIBUTO REGIONALE BUONO-LIBRI ANNO SCOLASTICO 2020/21;02/04/2021;1357;50;290;1;Spese correnti;4;Trasferimenti correnti;2;Trasferimenti correnti a Famiglie;5;Altri trasferimenti a famiglie;999;Altri trasferimenti a famiglie n.a.c.;07/04/2021
1174;1;9999999;32,7;32,7;OMESSO NOMINATIVO NEL RISPETTO DELLA NORMATIVA SULLA PROTEZIONE DATI PERSONALI; ;CONTRIBUTO REGIONALE BUONO-LIBRI ANNO SCOLASTICO 2020/21;02/04/2021;1357;50;290;1;Spese correnti;4;Trasferimenti correnti;2;Trasferimenti correnti a Famiglie;5;Altri trasferimenti a famiglie;999;Altri trasferimenti a famiglie n.a.c.;07/04/2021
1175;1;9999999;554,2;554,2;OMESSO NOMINATIVO NEL RISPETTO DELLA NORMATIVA SULLA PROTEZIONE DATI PERSONALI; ;CONTRIBUTO REGIONALE BUONO-LIBRI ANNO SCOLASTICO 2020/21;02/04/2021;1357;50;290;1;Spese correnti;4;Trasferimenti correnti;2;Trasferimenti correnti a Famiglie;5;Altri trasferimenti a famiglie;999;Altri trasferimenti a famiglie n.a.c.;07/04/2021
1176;1;9999999;358,85;358,85;OMESSO NOMINATIVO NEL RISPETTO DELLA NORMATIVA SULLA PROTEZIONE DATI PERSONALI; ;CONTRIBUTO REGIONALE BUONO-LIBRI ANNO SCOLASTICO 2020/21;02/04/2021;1357;50;290;1;Spese correnti;4;Trasferimenti correnti;2;Trasferimenti correnti a Famiglie;5;Altri trasferimenti a famiglie;999;Altri trasferimenti a famiglie n.a.c.;07/04/2021
1177;1;9999999;39,8;39,8;OMESSO NOMINATIVO NEL RISPETTO DELLA NORMATIVA SULLA PROTEZIONE DATI PERSONALI; ;CONTRIBUTO REGIONALE BUONO-LIBRI ANNO SCOLASTICO 2020/21;02/04/2021;1357;50;290;1;Spese correnti;4;Trasferimenti correnti;2;Trasferimenti correnti a Famiglie;5;Altri trasferimenti a famiglie;999;Altri trasferimenti a famiglie n.a.c.;07/04/2021
1178;1;9999999;61,7;61,7;OMESSO NOMINATIVO NEL RISPETTO DELLA NORMATIVA SULLA PROTEZIONE DATI PERSONALI; ;CONTRIBUTO REGIONALE BUONO-LIBRI ANNO SCOLASTICO 2020/21;02/04/2021;1357;50;290;1;Spese correnti;4;Trasferimenti correnti;2;Trasferimenti correnti a Famiglie;5;Altri trasferimenti a famiglie;999;Altri trasferimenti a famiglie n.a.c.;07/04/2021
1179;1;9999999;83,26;83,26;OMESSO NOMINATIVO NEL RISPETTO DELLA NORMATIVA SULLA PROTEZIONE DATI PERSONALI; ;CONTRIBUTO REGIONALE BUONO-LIBRI ANNO SCOLASTICO 2020/21;02/04/2021;1357;50;290;1;Spese correnti;4;Trasferimenti correnti;2;Trasferimenti correnti a Famiglie;5;Altri trasferimenti a famiglie;999;Altri trasferimenti a famiglie n.a.c.;07/04/2021
1180;1;9999999;185,5;185,5;OMESSO NOMINATIVO NEL RISPETTO DELLA NORMATIVA SULLA PROTEZIONE DATI PERSONALI; ;CONTRIBUTO REGIONALE BUONO-LIBRI ANNO SCOLASTICO 2020/21;02/04/2021;1357;50;290;1;Spese correnti;4;Trasferimenti correnti;2;Trasferimenti correnti a Famiglie;5;Altri trasferimenti a famiglie;999;Altri trasferimenti a famiglie n.a.c.;07/04/2021
1181;1;9999999;152,86;152,86;OMESSO NOMINATIVO NEL RISPETTO DELLA NORMATIVA SULLA PROTEZIONE DATI PERSONALI; ;CONTRIBUTO REGIONALE BUONO-LIBRI ANNO SCOLASTICO 2020/21;02/04/2021;1357;50;290;1;Spese correnti;4;Trasferimenti correnti;2;Trasferimenti correnti a Famiglie;5;Altri trasferimenti a famiglie;999;Altri trasferimenti a famiglie n.a.c.;07/04/2021
1182;1;9999999;293,3;293,3;OMESSO NOMINATIVO NEL RISPETTO DELLA NORMATIVA SULLA PROTEZIONE DATI PERSONALI; ;CONTRIBUTO REGIONALE BUONO-LIBRI ANNO SCOLASTICO 2020/21;02/04/2021;1357;50;290;1;Spese correnti;4;Trasferimenti correnti;2;Trasferimenti correnti a Famiglie;5;Altri trasferimenti a famiglie;999;Altri trasferimenti a famiglie n.a.c.;07/04/2021
1183;1;9999999;179,02;179,02;OMESSO NOMINATIVO NEL RISPETTO DELLA NORMATIVA SULLA PROTEZIONE DATI PERSONALI; ;CONTRIBUTO REGIONALE BUONO-LIBRI ANNO SCOLASTICO 2020/21;02/04/2021;1357;50;290;1;Spese correnti;4;Trasferimenti correnti;2;Trasferimenti correnti a Famiglie;5;Altri trasferimenti a famiglie;999;Altri trasferimenti a famiglie n.a.c.;07/04/2021
1184;1;9999999;62,94;62,94;OMESSO NOMINATIVO NEL RISPETTO DELLA NORMATIVA SULLA PROTEZIONE DATI PERSONALI; ;CONTRIBUTO REGIONALE BUONO-LIBRI ANNO SCOLASTICO 2020/21;02/04/2021;1357;50;290;1;Spese correnti;4;Trasferimenti correnti;2;Trasferimenti correnti a Famiglie;5;Altri trasferimenti a famiglie;999;Altri trasferimenti a famiglie n.a.c.;07/04/2021
1185;1;9999999;63,25;63,25;OMESSO NOMINATIVO NEL RISPETTO DELLA NORMATIVA SULLA PROTEZIONE DATI PERSONALI; ;CONTRIBUTO REGIONALE BUONO-LIBRI ANNO SCOLASTICO 2020/21;02/04/2021;1357;50;290;1;Spese correnti;4;Trasferimenti correnti;2;Trasferimenti correnti a Famiglie;5;Altri trasferimenti a famiglie;999;Altri trasferimenti a famiglie n.a.c.;07/04/2021
1186;1;9999999;415,38;415,38;OMESSO NOMINATIVO NEL RISPETTO DELLA NORMATIVA SULLA PROTEZIONE DATI PERSONALI; ;CONTRIBUTO REGIONALE BUONO-LIBRI ANNO SCOLASTICO 2020/21;02/04/2021;1357;50;290;1;Spese correnti;4;Trasferimenti correnti;2;Trasferimenti correnti a Famiglie;5;Altri trasferimenti a famiglie;999;Altri trasferimenti a famiglie n.a.c.;07/04/2021
1188;1;9999999;43,97;43,97;OMESSO NOMINATIVO NEL RISPETTO DELLA NORMATIVA SULLA PROTEZIONE DATI PERSONALI; ;CONTRIBUTO REGIONALE BUONO-LIBRI ANNO SCOLASTICO 2020/21;02/04/2021;1357;50;290;1;Spese correnti;4;Trasferimenti correnti;2;Trasferimenti correnti a Famiglie;5;Altri trasferimenti a famiglie;999;Altri trasferimenti a famiglie n.a.c.;07/04/2021
1189;1;9999999;155,7;155,7;OMESSO NOMINATIVO NEL RISPETTO DELLA NORMATIVA SULLA PROTEZIONE DATI PERSONALI; ;CONTRIBUTO REGIONALE BUONO-LIBRI ANNO SCOLASTICO 2020/21;02/04/2021;1357;50;290;1;Spese correnti;4;Trasferimenti correnti;2;Trasferimenti correnti a Famiglie;5;Altri trasferimenti a famiglie;999;Altri trasferimenti a famiglie n.a.c.;07/04/2021
1190;1;9999999;43,94;43,94;OMESSO NOMINATIVO NEL RISPETTO DELLA NORMATIVA SULLA PROTEZIONE DATI PERSONALI; ;CONTRIBUTO REGIONALE BUONO-LIBRI ANNO SCOLASTICO 2020/21;02/04/2021;1357;50;290;1;Spese correnti;4;Trasferimenti correnti;2;Trasferimenti correnti a Famiglie;5;Altri trasferimenti a famiglie;999;Altri trasferimenti a famiglie n.a.c.;07/04/2021
1191;1;9999999;314,74;314,74;OMESSO NOMINATIVO NEL RISPETTO DELLA NORMATIVA SULLA PROTEZIONE DATI PERSONALI; ;CONTRIBUTO REGIONALE BUONO-LIBRI ANNO SCOLASTICO 2020/21;02/04/2021;1357;50;290;1;Spese correnti;4;Trasferimenti correnti;2;Trasferimenti correnti a Famiglie;5;Altri trasferimenti a famiglie;999;Altri trasferimenti a famiglie n.a.c.;07/04/2021
1192;1;9999999;272,09;272,09;OMESSO NOMINATIVO NEL RISPETTO DELLA NORMATIVA SULLA PROTEZIONE DATI PERSONALI; ;CONTRIBUTO REGIONALE BUONO-LIBRI ANNO SCOLASTICO 2020/21;02/04/2021;1357;50;290;1;Spese correnti;4;Trasferimenti correnti;2;Trasferimenti correnti a Famiglie;5;Altri trasferimenti a famiglie;999;Altri trasferimenti a famiglie n.a.c.;07/04/2021
1193;1;9999999;345,9;345,9;OMESSO NOMINATIVO NEL RISPETTO DELLA NORMATIVA SULLA PROTEZIONE DATI PERSONALI; ;CONTRIBUTO REGIONALE BUONO-LIBRI ANNO SCOLASTICO 2020/21;02/04/2021;1357;50;290;1;Spese correnti;4;Trasferimenti correnti;2;Trasferimenti correnti a Famiglie;5;Altri trasferimenti a famiglie;999;Altri trasferimenti a famiglie n.a.c.;07/04/2021
1194;1;9999999;93,26;93,26;OMESSO NOMINATIVO NEL RISPETTO DELLA NORMATIVA SULLA PROTEZIONE DATI PERSONALI; ;CONTRIBUTO REGIONALE BUONO-LIBRI ANNO SCOLASTICO 2020/21;02/04/2021;1357;50;290;1;Spese correnti;4;Trasferimenti correnti;2;Trasferimenti correnti a Famiglie;5;Altri trasferimenti a famiglie;999;Altri trasferimenti a famiglie n.a.c.;07/04/2021
1195;1;9999999;95,72;95,72;OMESSO NOMINATIVO NEL RISPETTO DELLA NORMATIVA SULLA PROTEZIONE DATI PERSONALI; ;CONTRIBUTO REGIONALE BUONO-LIBRI ANNO SCOLASTICO 2020/21;02/04/2021;1357;50;290;1;Spese correnti;4;Trasferimenti correnti;2;Trasferimenti correnti a Famiglie;5;Altri trasferimenti a famiglie;999;Altri trasferimenti a famiglie n.a.c.;07/04/2021
1196;1;9999999;122,75;122,75;OMESSO NOMINATIVO NEL RISPETTO DELLA NORMATIVA SULLA PROTEZIONE DATI PERSONALI; ;CONTRIBUTO REGIONALE BUONO-LIBRI ANNO SCOLASTICO 2020/21;02/04/2021;1357;50;290;1;Spese correnti;4;Trasferimenti correnti;2;Trasferimenti correnti a Famiglie;5;Altri trasferimenti a famiglie;999;Altri trasferimenti a famiglie n.a.c.;07/04/2021
1197;1;9999999;297,6;297,6;OMESSO NOMINATIVO NEL RISPETTO DELLA NORMATIVA SULLA PROTEZIONE DATI PERSONALI; ;CONTRIBUTO REGIONALE BUONO-LIBRI ANNO SCOLASTICO 2020/21;02/04/2021;1357;50;290;1;Spese correnti;4;Trasferimenti correnti;2;Trasferimenti correnti a Famiglie;5;Altri trasferimenti a famiglie;999;Altri trasferimenti a famiglie n.a.c.;07/04/2021
1198;1;9999999;74,96;74,96;OMESSO NOMINATIVO NEL RISPETTO DELLA NORMATIVA SULLA PROTEZIONE DATI PERSONALI; ;CONTRIBUTO REGIONALE BUONO-LIBRI ANNO SCOLASTICO 2020/21;02/04/2021;1357;50;290;1;Spese correnti;4;Trasferimenti correnti;2;Trasferimenti correnti a Famiglie;5;Altri trasferimenti a famiglie;999;Altri trasferimenti a famiglie n.a.c.;07/04/2021
1199;1;9999999;329,45;329,45;OMESSO NOMINATIVO NEL RISPETTO DELLA NORMATIVA SULLA PROTEZIONE DATI PERSONALI; ;CONTRIBUTO REGIONALE BUONO-LIBRI ANNO SCOLASTICO 2020/21;02/04/2021;1357;50;290;1;Spese correnti;4;Trasferimenti correnti;2;Trasferimenti correnti a Famiglie;5;Altri trasferimenti a famiglie;999;Altri trasferimenti a famiglie n.a.c.;07/04/2021
1200;1;9999999;297,6;297,6;OMESSO NOMINATIVO NEL RISPETTO DELLA NORMATIVA SULLA PROTEZIONE DATI PERSONALI; ;CONTRIBUTO REGIONALE BUONO-LIBRI ANNO SCOLASTICO 2020/21;02/04/2021;1357;50;290;1;Spese correnti;4;Trasferimenti correnti;2;Trasferimenti correnti a Famiglie;5;Altri trasferimenti a famiglie;999;Altri trasferimenti a famiglie n.a.c.;19/04/2021
1201;1;9999999;187,35;187,35;OMESSO NOMINATIVO NEL RISPETTO DELLA NORMATIVA SULLA PROTEZIONE DATI PERSONALI; ;CONTRIBUTO REGIONALE BUONO-LIBRI ANNO SCOLASTICO 2020/21;02/04/2021;1357;50;290;1;Spese correnti;4;Trasferimenti correnti;2;Trasferimenti correnti a Famiglie;5;Altri trasferimenti a famiglie;999;Altri trasferimenti a famiglie n.a.c.;07/04/2021
1202;1;9999999;137,25;137,25;OMESSO NOMINATIVO NEL RISPETTO DELLA NORMATIVA SULLA PROTEZIONE DATI PERSONALI; ;CONTRIBUTO REGIONALE BUONO-LIBRI ANNO SCOLASTICO 2020/21;02/04/2021;1357;50;290;1;Spese correnti;4;Trasferimenti correnti;2;Trasferimenti correnti a Famiglie;5;Altri trasferimenti a famiglie;999;Altri trasferimenti a famiglie n.a.c.;07/04/2021
1203;1;9999999;61,9;61,9;OMESSO NOMINATIVO NEL RISPETTO DELLA NORMATIVA SULLA PROTEZIONE DATI PERSONALI; ;CONTRIBUTO REGIONALE BUONO-LIBRI ANNO SCOLASTICO 2020/21;02/04/2021;1357;50;290;1;Spese correnti;4;Trasferimenti correnti;2;Trasferimenti correnti a Famiglie;5;Altri trasferimenti a famiglie;999;Altri trasferimenti a famiglie n.a.c.;29/04/2021
1204;1;9999999;131,95;131,95;OMESSO NOMINATIVO NEL RISPETTO DELLA NORMATIVA SULLA PROTEZIONE DATI PERSONALI; ;CONTRIBUTO REGIONALE BUONO-LIBRI ANNO SCOLASTICO 2020/21;02/04/2021;1357;50;290;1;Spese correnti;4;Trasferimenti correnti;2;Trasferimenti correnti a Famiglie;5;Altri trasferimenti a famiglie;999;Altri trasferimenti a famiglie n.a.c.;07/04/2021
1205;1;9999999;53,32;53,32;OMESSO NOMINATIVO NEL RISPETTO DELLA NORMATIVA SULLA PROTEZIONE DATI PERSONALI; ;CONTRIBUTO REGIONALE BUONO-LIBRI ANNO SCOLASTICO 2020/21;02/04/2021;1357;50;290;1;Spese correnti;4;Trasferimenti correnti;2;Trasferimenti correnti a Famiglie;5;Altri trasferimenti a famiglie;999;Altri trasferimenti a famiglie n.a.c.;07/04/2021
1206;1;9999999;137,25;137,25;OMESSO NOMINATIVO NEL RISPETTO DELLA NORMATIVA SULLA PROTEZIONE DATI PERSONALI; ;CONTRIBUTO REGIONALE BUONO-LIBRI ANNO SCOLASTICO 2020/21;02/04/2021;1357;50;290;1;Spese correnti;4;Trasferimenti correnti;2;Trasferimenti correnti a Famiglie;5;Altri trasferimenti a famiglie;999;Altri trasferimenti a famiglie n.a.c.;14/04/2021
1207;1;9999999;518,05;518,05;OMESSO NOMINATIVO NEL RISPETTO DELLA NORMATIVA SULLA PROTEZIONE DATI PERSONALI; ;CONTRIBUTO REGIONALE BUONO-LIBRI ANNO SCOLASTICO 2020/21;02/04/2021;1357;50;290;1;Spese correnti;4;Trasferimenti correnti;2;Trasferimenti correnti a Famiglie;5;Altri trasferimenti a famiglie;999;Altri trasferimenti a famiglie n.a.c.;07/04/2021
1208;1;9999999;105,49;105,49;OMESSO NOMINATIVO NEL RISPETTO DELLA NORMATIVA SULLA PROTEZIONE DATI PERSONALI; ;CONTRIBUTO REGIONALE BUONO-LIBRI ANNO SCOLASTICO 2020/21;02/04/2021;1357;50;290;1;Spese correnti;4;Trasferimenti correnti;2;Trasferimenti correnti a Famiglie;5;Altri trasferimenti a famiglie;999;Altri trasferimenti a famiglie n.a.c.;07/04/2021
1209;1;9999999;225,75;225,75;OMESSO NOMINATIVO NEL RISPETTO DELLA NORMATIVA SULLA PROTEZIONE DATI PERSONALI; ;CONTRIBUTO REGIONALE BUONO-LIBRI ANNO SCOLASTICO 2020/21;02/04/2021;1357;50;290;1;Spese correnti;4;Trasferimenti correnti;2;Trasferimenti correnti a Famiglie;5;Altri trasferimenti a famiglie;999;Altri trasferimenti a famiglie n.a.c.;07/04/2021
1210;1;9999999;312,55;312,55;OMESSO NOMINATIVO NEL RISPETTO DELLA NORMATIVA SULLA PROTEZIONE DATI PERSONALI; ;CONTRIBUTO REGIONALE BUONO-LIBRI ANNO SCOLASTICO 2020/21;02/04/2021;1357;50;290;1;Spese correnti;4;Trasferimenti correnti;2;Trasferimenti correnti a Famiglie;5;Altri trasferimenti a famiglie;999;Altri trasferimenti a famiglie n.a.c.;07/04/2021
1211;1;9999999;399,25;399,25;OMESSO NOMINATIVO NEL RISPETTO DELLA NORMATIVA SULLA PROTEZIONE DATI PERSONALI; ;CONTRIBUTO REGIONALE BUONO-LIBRI ANNO SCOLASTICO 2020/21;02/04/2021;1357;50;290;1;Spese correnti;4;Trasferimenti correnti;2;Trasferimenti correnti a Famiglie;5;Altri trasferimenti a famiglie;999;Altri trasferimenti a famiglie n.a.c.;07/04/2021
1212;1;9999999;170,2;170,2;OMESSO NOMINATIVO NEL RISPETTO DELLA NORMATIVA SULLA PROTEZIONE DATI PERSONALI; ;CONTRIBUTO REGIONALE BUONO-LIBRI ANNO SCOLASTICO 2020/21;02/04/2021;1357;50;290;1;Spese correnti;4;Trasferimenti correnti;2;Trasferimenti correnti a Famiglie;5;Altri trasferimenti a famiglie;999;Altri trasferimenti a famiglie n.a.c.;07/04/2021
1213;1;9999999;106,33;106,33;OMESSO NOMINATIVO NEL RISPETTO DELLA NORMATIVA SULLA PROTEZIONE DATI PERSONALI; ;CONTRIBUTO REGIONALE BUONO-LIBRI ANNO SCOLASTICO 2020/21;02/04/2021;1357;50;290;1;Spese correnti;4;Trasferimenti correnti;2;Trasferimenti correnti a Famiglie;5;Altri trasferimenti a famiglie;999;Altri trasferimenti a famiglie n.a.c.;07/04/2021
1214;1;9999999;28,1;28,1;OMESSO NOMINATIVO NEL RISPETTO DELLA NORMATIVA SULLA PROTEZIONE DATI PERSONALI; ;CONTRIBUTO REGIONALE BUONO-LIBRI ANNO SCOLASTICO 2020/21;02/04/2021;1357;50;290;1;Spese correnti;4;Trasferimenti correnti;2;Trasferimenti correnti a Famiglie;5;Altri trasferimenti a famiglie;999;Altri trasferimenti a famiglie n.a.c.;07/04/2021
1215;1;9999999;99,79;99,79;OMESSO NOMINATIVO NEL RISPETTO DELLA NORMATIVA SULLA PROTEZIONE DATI PERSONALI; ;CONTRIBUTO REGIONALE BUONO-LIBRI ANNO SCOLASTICO 2020/21;02/04/2021;1357;50;290;1;Spese correnti;4;Trasferimenti correnti;2;Trasferimenti correnti a Famiglie;5;Altri trasferimenti a famiglie;999;Altri trasferimenti a famiglie n.a.c.;07/04/2021
1216;1;9999999;268,05;268,05;OMESSO NOMINATIVO NEL RISPETTO DELLA NORMATIVA SULLA PROTEZIONE DATI PERSONALI; ;CONTRIBUTO REGIONALE BUONO-LIBRI ANNO SCOLASTICO 2020/21;02/04/2021;1357;50;290;1;Spese correnti;4;Trasferimenti correnti;2;Trasferimenti correnti a Famiglie;5;Altri trasferimenti a famiglie;999;Altri trasferimenti a famiglie n.a.c.;07/04/2021
1217;1;9999999;300,39;300,39;OMESSO NOMINATIVO NEL RISPETTO DELLA NORMATIVA SULLA PROTEZIONE DATI PERSONALI; ;CONTRIBUTO REGIONALE BUONO-LIBRI ANNO SCOLASTICO 2020/21;02/04/2021;1357;50;290;1;Spese correnti;4;Trasferimenti correnti;2;Trasferimenti correnti a Famiglie;5;Altri trasferimenti a famiglie;999;Altri trasferimenti a famiglie n.a.c.;07/04/2021
1218;1;9999999;57,66;57,66;OMESSO NOMINATIVO NEL RISPETTO DELLA NORMATIVA SULLA PROTEZIONE DATI PERSONALI; ;CONTRIBUTO REGIONALE BUONO-LIBRI ANNO SCOLASTICO 2020/21;02/04/2021;1357;50;290;1;Spese correnti;4;Trasferimenti correnti;2;Trasferimenti correnti a Famiglie;5;Altri trasferimenti a famiglie;999;Altri trasferimenti a famiglie n.a.c.;26/04/2021
1219;1;9999999;413,95;413,95;OMESSO NOMINATIVO NEL RISPETTO DELLA NORMATIVA SULLA PROTEZIONE DATI PERSONALI; ;CONTRIBUTO REGIONALE BUONO-LIBRI ANNO SCOLASTICO 2020/21;02/04/2021;1357;50;290;1;Spese correnti;4;Trasferimenti correnti;2;Trasferimenti correnti a Famiglie;5;Altri trasferimenti a famiglie;999;Altri trasferimenti a famiglie n.a.c.;07/04/2021
1220;1;9999999;297,6;297,6;OMESSO NOMINATIVO NEL RISPETTO DELLA NORMATIVA SULLA PROTEZIONE DATI PERSONALI; ;CONTRIBUTO REGIONALE BUONO-LIBRI ANNO SCOLASTICO 2020/21;02/04/2021;1357;50;290;1;Spese correnti;4;Trasferimenti correnti;2;Trasferimenti correnti a Famiglie;5;Altri trasferimenti a famiglie;999;Altri trasferimenti a famiglie n.a.c.;07/04/2021
1221;1;9999999;78,92;78,92;OMESSO NOMINATIVO NEL RISPETTO DELLA NORMATIVA SULLA PROTEZIONE DATI PERSONALI; ;CONTRIBUTO REGIONALE BUONO-LIBRI ANNO SCOLASTICO 2020/21;02/04/2021;1357;50;290;1;Spese correnti;4;Trasferimenti correnti;2;Trasferimenti correnti a Famiglie;5;Altri trasferimenti a famiglie;999;Altri trasferimenti a famiglie n.a.c.;07/04/2021
1222;1;9999999;192,22;192,22;OMESSO NOMINATIVO NEL RISPETTO DELLA NORMATIVA SULLA PROTEZIONE DATI PERSONALI; ;CONTRIBUTO REGIONALE BUONO-LIBRI ANNO SCOLASTICO 2020/21;02/04/2021;1357;50;290;1;Spese correnti;4;Trasferimenti correnti;2;Trasferimenti correnti a Famiglie;5;Altri trasferimenti a famiglie;999;Altri trasferimenti a famiglie n.a.c.;07/04/2021
1223;1;9999999;106,72;106,72;OMESSO NOMINATIVO NEL RISPETTO DELLA NORMATIVA SULLA PROTEZIONE DATI PERSONALI; ;CONTRIBUTO REGIONALE BUONO-LIBRI ANNO SCOLASTICO 2020/21;02/04/2021;1357;50;290;1;Spese correnti;4;Trasferimenti correnti;2;Trasferimenti correnti a Famiglie;5;Altri trasferimenti a famiglie;999;Altri trasferimenti a famiglie n.a.c.;07/04/2021
1224;1;9999999;176,12;176,12;OMESSO NOMINATIVO NEL RISPETTO DELLA NORMATIVA SULLA PROTEZIONE DATI PERSONALI; ;CONTRIBUTO REGIONALE BUONO-LIBRI ANNO SCOLASTICO 2020/21;02/04/2021;1357;50;290;1;Spese correnti;4;Trasferimenti correnti;2;Trasferimenti correnti a Famiglie;5;Altri trasferimenti a famiglie;999;Altri trasferimenti a famiglie n.a.c.;07/04/2021
1225;1;9999999;178,12;178,12;OMESSO NOMINATIVO NEL RISPETTO DELLA NORMATIVA SULLA PROTEZIONE DATI PERSONALI; ;CONTRIBUTO REGIONALE BUONO-LIBRI ANNO SCOLASTICO 2020/21;02/04/2021;1357;50;290;1;Spese correnti;4;Trasferimenti correnti;2;Trasferimenti correnti a Famiglie;5;Altri trasferimenti a famiglie;999;Altri trasferimenti a famiglie n.a.c.;07/04/2021
1226;1;9999999;62,94;62,94;OMESSO NOMINATIVO NEL RISPETTO DELLA NORMATIVA SULLA PROTEZIONE DATI PERSONALI; ;CONTRIBUTO REGIONALE BUONO-LIBRI ANNO SCOLASTICO 2020/21;02/04/2021;1357;50;290;1;Spese correnti;4;Trasferimenti correnti;2;Trasferimenti correnti a Famiglie;5;Altri trasferimenti a famiglie;999;Altri trasferimenti a famiglie n.a.c.;07/04/2021
1227;1;9999999;73,86;73,86;OMESSO NOMINATIVO NEL RISPETTO DELLA NORMATIVA SULLA PROTEZIONE DATI PERSONALI; ;CONTRIBUTO REGIONALE BUONO-LIBRI ANNO SCOLASTICO 2020/21;02/04/2021;1357;50;290;1;Spese correnti;4;Trasferimenti correnti;2;Trasferimenti correnti a Famiglie;5;Altri trasferimenti a famiglie;999;Altri trasferimenti a famiglie n.a.c.;07/04/2021
1228;1;9999999;53,39;53,39;OMESSO NOMINATIVO NEL RISPETTO DELLA NORMATIVA SULLA PROTEZIONE DATI PERSONALI; ;CONTRIBUTO REGIONALE BUONO-LIBRI ANNO SCOLASTICO 2020/21;02/04/2021;1357;50;290;1;Spese correnti;4;Trasferimenti correnti;2;Trasferimenti correnti a Famiglie;5;Altri trasferimenti a famiglie;999;Altri trasferimenti a famiglie n.a.c.;07/04/2021
1229;1;9999999;241,2;241,2;OMESSO NOMINATIVO NEL RISPETTO DELLA NORMATIVA SULLA PROTEZIONE DATI PERSONALI; ;CONTRIBUTO REGIONALE BUONO-LIBRI ANNO SCOLASTICO 2020/21;02/04/2021;1357;50;290;1;Spese correnti;4;Trasferimenti correnti;2;Trasferimenti correnti a Famiglie;5;Altri trasferimenti a famiglie;999;Altri trasferimenti a famiglie n.a.c.;07/04/2021
1230;1;9999999;710,7;710,7;OMESSO NOMINATIVO NEL RISPETTO DELLA NORMATIVA SULLA PROTEZIONE DATI PERSONALI; ;CONTRIBUTO REGIONALE BUONO-LIBRI ANNO SCOLASTICO 2020/21;02/04/2021;1357;50;290;1;Spese correnti;4;Trasferimenti correnti;2;Trasferimenti correnti a Famiglie;5;Altri trasferimenti a famiglie;999;Altri trasferimenti a famiglie n.a.c.;07/04/2021
1231;1;9999999;368,35;368,35;OMESSO NOMINATIVO NEL RISPETTO DELLA NORMATIVA SULLA PROTEZIONE DATI PERSONALI; ;CONTRIBUTO REGIONALE BUONO-LIBRI ANNO SCOLASTICO 2020/21;02/04/2021;1357;50;290;1;Spese correnti;4;Trasferimenti correnti;2;Trasferimenti correnti a Famiglie;5;Altri trasferimenti a famiglie;999;Altri trasferimenti a famiglie n.a.c.;07/04/2021
1232;1;9999999;40,71;40,71;OMESSO NOMINATIVO NEL RISPETTO DELLA NORMATIVA SULLA PROTEZIONE DATI PERSONALI; ;CONTRIBUTO REGIONALE BUONO-LIBRI ANNO SCOLASTICO 2020/21;02/04/2021;1357;50;290;1;Spese correnti;4;Trasferimenti correnti;2;Trasferimenti correnti a Famiglie;5;Altri trasferimenti a famiglie;999;Altri trasferimenti a famiglie n.a.c.;07/04/2021
1233;1;9999999;307,05;307,05;OMESSO NOMINATIVO NEL RISPETTO DELLA NORMATIVA SULLA PROTEZIONE DATI PERSONALI; ;CONTRIBUTO REGIONALE BUONO-LIBRI ANNO SCOLASTICO 2020/21;02/04/2021;1357;50;290;1;Spese correnti;4;Trasferimenti correnti;2;Trasferimenti correnti a Famiglie;5;Altri trasferimenti a famiglie;999;Altri trasferimenti a famiglie n.a.c.;07/04/2021
1234;1;9999999;63,71;63,71;OMESSO NOMINATIVO NEL RISPETTO DELLA NORMATIVA SULLA PROTEZIONE DATI PERSONALI; ;CONTRIBUTO REGIONALE BUONO-LIBRI ANNO SCOLASTICO 2020/21;02/04/2021;1357;50;290;1;Spese correnti;4;Trasferimenti correnti;2;Trasferimenti correnti a Famiglie;5;Altri trasferimenti a famiglie;999;Altri trasferimenti a famiglie n.a.c.;07/04/2021
1235;1;9999999;735,15;735,15;OMESSO NOMINATIVO NEL RISPETTO DELLA NORMATIVA SULLA PROTEZIONE DATI PERSONALI; ;CONTRIBUTO REGIONALE BUONO-LIBRI ANNO SCOLASTICO 2020/21;02/04/2021;1357;50;290;1;Spese correnti;4;Trasferimenti correnti;2;Trasferimenti correnti a Famiglie;5;Altri trasferimenti a famiglie;999;Altri trasferimenti a famiglie n.a.c.;07/04/2021
1236;1;9999999;28,57;28,57;OMESSO NOMINATIVO NEL RISPETTO DELLA NORMATIVA SULLA PROTEZIONE DATI PERSONALI; ;CONTRIBUTO REGIONALE BUONO-LIBRI ANNO SCOLASTICO 2020/21;02/04/2021;1357;50;290;1;Spese correnti;4;Trasferimenti correnti;2;Trasferimenti correnti a Famiglie;5;Altri trasferimenti a famiglie;999;Altri trasferimenti a famiglie n.a.c.;07/04/2021
1237;1;9999999;58,97;58,97;OMESSO NOMINATIVO NEL RISPETTO DELLA NORMATIVA SULLA PROTEZIONE DATI PERSONALI; ;CONTRIBUTO REGIONALE BUONO-LIBRI ANNO SCOLASTICO 2020/21;02/04/2021;1357;50;290;1;Spese correnti;4;Trasferimenti correnti;2;Trasferimenti correnti a Famiglie;5;Altri trasferimenti a famiglie;999;Altri trasferimenti a famiglie n.a.c.;07/04/2021
1238;1;9999999;148;148;OMESSO NOMINATIVO NEL RISPETTO DELLA NORMATIVA SULLA PROTEZIONE DATI PERSONALI; ;CONTRIBUTO REGIONALE BUONO-LIBRI ANNO SCOLASTICO 2020/21;02/04/2021;1357;50;290;1;Spese correnti;4;Trasferimenti correnti;2;Trasferimenti correnti a Famiglie;5;Altri trasferimenti a famiglie;999;Altri trasferimenti a famiglie n.a.c.;07/04/2021
1239;1;9999999;47,02;47,02;OMESSO NOMINATIVO NEL RISPETTO DELLA NORMATIVA SULLA PROTEZIONE DATI PERSONALI; ;CONTRIBUTO REGIONALE BUONO-LIBRI ANNO SCOLASTICO 2020/21;02/04/2021;1357;50;290;1;Spese correnti;4;Trasferimenti correnti;2;Trasferimenti correnti a Famiglie;5;Altri trasferimenti a famiglie;999;Altri trasferimenti a famiglie n.a.c.;07/04/2021
1240;1;9999999;412,4;412,4;OMESSO NOMINATIVO NEL RISPETTO DELLA NORMATIVA SULLA PROTEZIONE DATI PERSONALI; ;CONTRIBUTO REGIONALE BUONO-LIBRI ANNO SCOLASTICO 2020/21;02/04/2021;1357;50;290;1;Spese correnti;4;Trasferimenti correnti;2;Trasferimenti correnti a Famiglie;5;Altri trasferimenti a famiglie;999;Altri trasferimenti a famiglie n.a.c.;07/04/2021
1241;1;9999999;306,45;306,45;OMESSO NOMINATIVO NEL RISPETTO DELLA NORMATIVA SULLA PROTEZIONE DATI PERSONALI; ;CONTRIBUTO REGIONALE BUONO-LIBRI ANNO SCOLASTICO 2020/21;02/04/2021;1357;50;290;1;Spese correnti;4;Trasferimenti correnti;2;Trasferimenti correnti a Famiglie;5;Altri trasferimenti a famiglie;999;Altri trasferimenti a famiglie n.a.c.;07/04/2021
1242;1;9999999;450,2;450,2;OMESSO NOMINATIVO NEL RISPETTO DELLA NORMATIVA SULLA PROTEZIONE DATI PERSONALI; ;CONTRIBUTO REGIONALE BUONO-LIBRI ANNO SCOLASTICO 2020/21;02/04/2021;1357;50;290;1;Spese correnti;4;Trasferimenti correnti;2;Trasferimenti correnti a Famiglie;5;Altri trasferimenti a famiglie;999;Altri trasferimenti a famiglie n.a.c.;07/04/2021
1243;1;9999999;66,54;66,54;OMESSO NOMINATIVO NEL RISPETTO DELLA NORMATIVA SULLA PROTEZIONE DATI PERSONALI; ;CONTRIBUTO REGIONALE BUONO-LIBRI ANNO SCOLASTICO 2020/21;02/04/2021;1357;50;290;1;Spese correnti;4;Trasferimenti correnti;2;Trasferimenti correnti a Famiglie;5;Altri trasferimenti a famiglie;999;Altri trasferimenti a famiglie n.a.c.;07/04/2021
1245;1;9999999;272,35;272,35;OMESSO NOMINATIVO NEL RISPETTO DELLA NORMATIVA SULLA PROTEZIONE DATI PERSONALI; ;CONTRIBUTO REGIONALE BUONO-LIBRI ANNO SCOLASTICO 2020/21;02/04/2021;1357;50;290;1;Spese correnti;4;Trasferimenti correnti;2;Trasferimenti correnti a Famiglie;5;Altri trasferimenti a famiglie;999;Altri trasferimenti a famiglie n.a.c.;07/04/2021
1246;1;9999999;143,4;143,4;OMESSO NOMINATIVO NEL RISPETTO DELLA NORMATIVA SULLA PROTEZIONE DATI PERSONALI; ;CONTRIBUTO REGIONALE BUONO-LIBRI ANNO SCOLASTICO 2020/21;02/04/2021;1357;50;290;1;Spese correnti;4;Trasferimenti correnti;2;Trasferimenti correnti a Famiglie;5;Altri trasferimenti a famiglie;999;Altri trasferimenti a famiglie n.a.c.;29/04/2021
1247;1;9999999;315,1;315,1;OMESSO NOMINATIVO NEL RISPETTO DELLA NORMATIVA SULLA PROTEZIONE DATI PERSONALI; ;CONTRIBUTO REGIONALE BUONO-LIBRI ANNO SCOLASTICO 2020/21;02/04/2021;1357;50;290;1;Spese correnti;4;Trasferimenti correnti;2;Trasferimenti correnti a Famiglie;5;Altri trasferimenti a famiglie;999;Altri trasferimenti a famiglie n.a.c.;07/04/2021
1248;1;9999999;71,29;71,29;OMESSO NOMINATIVO NEL RISPETTO DELLA NORMATIVA SULLA PROTEZIONE DATI PERSONALI; ;CONTRIBUTO REGIONALE BUONO-LIBRI ANNO SCOLASTICO 2020/21;02/04/2021;1357;50;290;1;Spese correnti;4;Trasferimenti correnti;2;Trasferimenti correnti a Famiglie;5;Altri trasferimenti a famiglie;999;Altri trasferimenti a famiglie n.a.c.;07/04/2021
1249;1;9999999;295,66;295,66;OMESSO NOMINATIVO NEL RISPETTO DELLA NORMATIVA SULLA PROTEZIONE DATI PERSONALI; ;CONTRIBUTO REGIONALE BUONO-LIBRI ANNO SCOLASTICO 2020/21;02/04/2021;1357;50;290;1;Spese correnti;4;Trasferimenti correnti;2;Trasferimenti correnti a Famiglie;5;Altri trasferimenti a famiglie;999;Altri trasferimenti a famiglie n.a.c.;07/04/2021
1250;1;9999999;84,09;84,09;OMESSO NOMINATIVO NEL RISPETTO DELLA NORMATIVA SULLA PROTEZIONE DATI PERSONALI; ;CONTRIBUTO REGIONALE BUONO-LIBRI ANNO SCOLASTICO 2020/21;02/04/2021;1357;50;290;1;Spese correnti;4;Trasferimenti correnti;2;Trasferimenti correnti a Famiglie;5;Altri trasferimenti a famiglie;999;Altri trasferimenti a famiglie n.a.c.;07/04/2021
1251;1;9999999;121,4;121,4;OMESSO NOMINATIVO NEL RISPETTO DELLA NORMATIVA SULLA PROTEZIONE DATI PERSONALI; ;CONTRIBUTO REGIONALE BUONO-LIBRI ANNO SCOLASTICO 2020/21;02/04/2021;1357;50;290;1;Spese correnti;4;Trasferimenti correnti;2;Trasferimenti correnti a Famiglie;5;Altri trasferimenti a famiglie;999;Altri trasferimenti a famiglie n.a.c.;07/04/2021
1253;1;9999999;472,1;472,1;OMESSO NOMINATIVO NEL RISPETTO DELLA NORMATIVA SULLA PROTEZIONE DATI PERSONALI; ;CONTRIBUTO REGIONALE BUONO-LIBRI ANNO SCOLASTICO 2020/21;02/04/2021;1357;50;290;1;Spese correnti;4;Trasferimenti correnti;2;Trasferimenti correnti a Famiglie;5;Altri trasferimenti a famiglie;999;Altri trasferimenti a famiglie n.a.c.;07/04/2021
1254;1;9999999;32,03;32,03;OMESSO NOMINATIVO NEL RISPETTO DELLA NORMATIVA SULLA PROTEZIONE DATI PERSONALI; ;CONTRIBUTO REGIONALE BUONO-LIBRI ANNO SCOLASTICO 2020/21;02/04/2021;1357;50;290;1;Spese correnti;4;Trasferimenti correnti;2;Trasferimenti correnti a Famiglie;5;Altri trasferimenti a famiglie;999;Altri trasferimenti a famiglie n.a.c.;07/04/2021
1255;1;9999999;139,62;139,62;SINERGAS SPA;8300710A94;SALDO Fatt.n. 211073014  del 12/03/2021 FEBBRAIO 2021 - CONSUMI ALLOGGIO VIA DON GALLERANI CALTANA;06/04/2021;134;30;120;1;Spese correnti;3;Acquisto di beni e servizi;2;Acquisto di servizi;5;Utenze e canoni;6;Gas;09/04/2021
1256;1;9999999;330,33;330,33;SINERGAS SPA;8300710A94;SALDO Fatt.n. 211080108  del 12/03/2021 FEBBRAIO 2021 - CONSUMI ALLOGGIO VIA OLIMPIA SMS;06/04/2021;134;31;121;1;Spese correnti;3;Acquisto di beni e servizi;2;Acquisto di servizi;5;Utenze e canoni;6;Gas;09/04/2021
1257;1;9999999;2.370,59;2.370,59;SINERGAS SPA;8300710A94;SALDO Fatt.n. 211073022  del 12/03/2021 FEBBRAIO 2021 - CONSUMI SEDE MUNICIPALE;06/04/2021;134;31;121;1;Spese correnti;3;Acquisto di beni e servizi;2;Acquisto di servizi;5;Utenze e canoni;6;Gas;09/04/2021
1258;1;9999999;0,55;0,55;SINERGAS SPA;8300710A94;SALDO Fatt.n. 211073018  del 12/03/2021 FEBBRAIO 2021 - CONSUMI SC. ELEMENTARE;06/04/2021;1334;30;122;1;Spese correnti;3;Acquisto di beni e servizi;2;Acquisto di servizi;5;Utenze e canoni;6;Gas;09/04/2021
1259;1;9999999;3.277,30;3.277,30;SINERGAS SPA;8300710A94;SALDO Fatt.n. 211073011  del 12/03/2021 FEBBRAIO 2021 - CONSUMI SC. ELEM-SC. MEDIA SMS;06/04/2021;1334;30;122;1;Spese correnti;3;Acquisto di beni e servizi;2;Acquisto di servizi;5;Utenze e canoni;6;Gas;09/04/2021
1260;1;9999999;1.850,41;1.850,41;SINERGAS SPA;8300710A94;SALDO Fatt.n. 211073013  del 12/03/2021 FEBBRAIO 2021 - CONSUMI SC. ELEM. CALTANA;06/04/2021;1334;30;122;1;Spese correnti;3;Acquisto di beni e servizi;2;Acquisto di servizi;5;Utenze e canoni;6;Gas;09/04/2021
1261;1;9999999;747,91;747,91;SINERGAS SPA;8300710A94;ACCONTO Fatt.n. 211073010  del 12/03/2021 FEBBRAIO 2021 - CONSUMI PALESTRA SMS;06/04/2021;1334;30;122;1;Spese correnti;3;Acquisto di beni e servizi;2;Acquisto di servizi;5;Utenze e canoni;6;Gas;09/04/2021
1262;1;9999999;725,51;725,51;SINERGAS SPA;8300710A94;ACCONTO Fatt.n. 211073020  del 12/03/2021 FEBBRAIO 2021 - CONSUMI PALESTRA CALTANA;06/04/2021;1334;30;122;1;Spese correnti;3;Acquisto di beni e servizi;2;Acquisto di servizi;5;Utenze e canoni;6;Gas;09/04/2021
1263;1;9999999;587;587;SINERGAS SPA;8300710A94;ACCONTO Fatt.n. 211073016  del 12/03/2021 FEBBRAIO 2021 - CONSUMI SC. ELEM - PALESTRA CASELLE;06/04/2021;1334;30;122;1;Spese correnti;3;Acquisto di beni e servizi;2;Acquisto di servizi;5;Utenze e canoni;6;Gas;09/04/2021
1264;1;9999999;1.759,90;1.759,90;SINERGAS SPA;8300710A94;ACCONTO Fatt.n. 211073016  del 12/03/2021 FEBBRAIO 2021 - CONSUMI SC. ELEM - PALESTRA CASELLE;06/04/2021;1334;30;122;1;Spese correnti;3;Acquisto di beni e servizi;2;Acquisto di servizi;5;Utenze e canoni;6;Gas;09/04/2021
1265;1;9999999;423;423;SINERGAS SPA;8300710A94;ACCONTO Fatt.n. 211073017  del 12/03/2021 FEBBRAIO 2021 - CONSUMI SC. ELEM-PALESTRA-ASILO S.ANGELO;06/04/2021;1334;30;122;1;Spese correnti;3;Acquisto di beni e servizi;2;Acquisto di servizi;5;Utenze e canoni;6;Gas;09/04/2021
1266;1;9999999;1.269,53;1.269,53;SINERGAS SPA;8300710A94;ACCONTO Fatt.n. 211073017  del 12/03/2021 FEBBRAIO 2021 - CONSUMI SC. ELEM-PALESTRA-ASILO S.ANGELO;06/04/2021;1334;30;122;1;Spese correnti;3;Acquisto di beni e servizi;2;Acquisto di servizi;5;Utenze e canoni;6;Gas;09/04/2021
1267;1;9999999;1.021,34;1.021,34;SINERGAS SPA;8300710A94;ACCONTO Fatt.n. 211073019  del 12/03/2021 FEBBRAIO 2021 - CONSUMI SC. ELEM-PALESTRA VETERNIGO;06/04/2021;1334;30;122;1;Spese correnti;3;Acquisto di beni e servizi;2;Acquisto di servizi;5;Utenze e canoni;6;Gas;09/04/2021
1268;1;9999999;644;644;SINERGAS SPA;8300710A94;ACCONTO Fatt.n. 211073009  del 12/03/2021 FEBBRAIO 2021 - CONSUMI SC.ELEM - PALESTRA STIGLIANO;06/04/2021;1334;30;122;1;Spese correnti;3;Acquisto di beni e servizi;2;Acquisto di servizi;5;Utenze e canoni;6;Gas;09/04/2021
1269;1;9999999;644;644;SINERGAS SPA;8300710A94;ACCONTO Fatt.n. 211073009  del 12/03/2021 FEBBRAIO 2021 - CONSUMI SC.ELEM - PALESTRA STIGLIANO;06/04/2021;1334;30;122;1;Spese correnti;3;Acquisto di beni e servizi;2;Acquisto di servizi;5;Utenze e canoni;6;Gas;09/04/2021
1270;1;9999999;551,32;551,32;SINERGAS SPA;8300710A94;SALDO Fatt.n. 211073009  del 12/03/2021 FEBBRAIO 2021 - CONSUMI SC.ELEM - PALESTRA STIGLIANO;06/04/2021;1334;30;122;1;Spese correnti;3;Acquisto di beni e servizi;2;Acquisto di servizi;5;Utenze e canoni;6;Gas;09/04/2021
1271;1;9999999;625;625;SINERGAS SPA;8300710A94;ACCONTO Fatt.n. 211073019  del 12/03/2021 FEBBRAIO 2021 - CONSUMI SC. ELEM-PALESTRA VETERNIGO;06/04/2021;1334;30;452;1;Spese correnti;3;Acquisto di beni e servizi;2;Acquisto di servizi;5;Utenze e canoni;6;Gas;09/04/2021
1272;1;9999999;625;625;SINERGAS SPA;8300710A94;SALDO Fatt.n. 211073019  del 12/03/2021 FEBBRAIO 2021 - CONSUMI SC. ELEM-PALESTRA VETERNIGO;06/04/2021;1334;30;452;1;Spese correnti;3;Acquisto di beni e servizi;2;Acquisto di servizi;5;Utenze e canoni;6;Gas;09/04/2021
1273;1;9999999;2.000,00;2.000,00;SINERGAS SPA;8300710A94;ACCONTO Fatt.n. 211073012  del 12/03/2021 FEBBRAIO 2021 - CONSUMI VILLA FARSETTI;06/04/2021;1834;0;123;1;Spese correnti;3;Acquisto di beni e servizi;2;Acquisto di servizi;5;Utenze e canoni;6;Gas;09/04/2021
1274;1;9999999;85,72;85,72;SINERGAS SPA;8300710A94;SALDO Fatt.n. 211073015  del 12/03/2021 FEBBRAIO 2021 - CONSUMI IMP. SPORT. CASELLE;06/04/2021;1934;0;124;1;Spese correnti;3;Acquisto di beni e servizi;2;Acquisto di servizi;5;Utenze e canoni;6;Gas;09/04/2021
1275;1;9999999;747,9;747,9;SINERGAS SPA;8300710A94;SALDO Fatt.n. 211073010  del 12/03/2021 FEBBRAIO 2021 - CONSUMI PALESTRA SMS;06/04/2021;1934;0;124;1;Spese correnti;3;Acquisto di beni e servizi;2;Acquisto di servizi;5;Utenze e canoni;6;Gas;09/04/2021
1276;1;9999999;725,52;725,52;SINERGAS SPA;8300710A94;SALDO Fatt.n. 211073020  del 12/03/2021 FEBBRAIO 2021 - CONSUMI PALESTRA CALTANA;06/04/2021;1934;0;124;1;Spese correnti;3;Acquisto di beni e servizi;2;Acquisto di servizi;5;Utenze e canoni;6;Gas;09/04/2021
1277;1;9999999;587;587;SINERGAS SPA;8300710A94;SALDO Fatt.n. 211073016  del 12/03/2021 FEBBRAIO 2021 - CONSUMI SC. ELEM - PALESTRA CASELLE;06/04/2021;1934;0;124;1;Spese correnti;3;Acquisto di beni e servizi;2;Acquisto di servizi;5;Utenze e canoni;6;Gas;09/04/2021
1278;1;9999999;423;423;SINERGAS SPA;8300710A94;SALDO Fatt.n. 211073017  del 12/03/2021 FEBBRAIO 2021 - CONSUMI SC. ELEM-PALESTRA-ASILO S.ANGELO;06/04/2021;1934;0;124;1;Spese correnti;3;Acquisto di beni e servizi;2;Acquisto di servizi;5;Utenze e canoni;6;Gas;09/04/2021
1279;1;9999999;342,53;342,53;SINERGAS SPA;8300710A94;SALDO Fatt.n. 211073021  del 12/03/2021 FEBBRAIO 2021 - CONSUMI MAGAZZINO COMUNALE;06/04/2021;3534;0;125;1;Spese correnti;3;Acquisto di beni e servizi;2;Acquisto di servizi;5;Utenze e canoni;6;Gas;09/04/2021
1280;1;9999999;1.073,09;1.073,09;SINERGAS SPA;8300710A94;ACCONTO Fatt.n. 211073012  del 12/03/2021 FEBBRAIO 2021 - CONSUMI VILLA FARSETTI;06/04/2021;3534;0;1312;1;Spese correnti;3;Acquisto di beni e servizi;2;Acquisto di servizi;5;Utenze e canoni;6;Gas;09/04/2021
1281;1;9999999;338,05;338,05;SINERGAS SPA;8300710A94;ACCONTO Fatt.n. 211073012  del 12/03/2021 FEBBRAIO 2021 - CONSUMI VILLA FARSETTI;06/04/2021;4234;0;126;1;Spese correnti;3;Acquisto di beni e servizi;2;Acquisto di servizi;5;Utenze e canoni;6;Gas;09/04/2021
1282;1;9999999;574,55;574,55;SINERGAS SPA;8300710A94;SALDO Fatt.n. 211073012  del 12/03/2021 FEBBRAIO 2021 - CONSUMI VILLA FARSETTI;06/04/2021;4234;0;1313;1;Spese correnti;3;Acquisto di beni e servizi;2;Acquisto di servizi;5;Utenze e canoni;6;Gas;09/04/2021
1283;1;9999999;2.882,46;2.882,46;ARTEA  SNC DI LION & SALVIATO;Z47300506C;SALDO Fatt.n. 06-2021/PA  del 10/03/2021 OPERAZIONI EFFETTUATE NEI CIMITERI DEL COMUNE DI SANTA MARIA DI SALA NEL MESE DI FEBBRAIO 2021;06/04/2021;4438;0;1377;1;Spese correnti;3;Acquisto di beni e servizi;2;Acquisto di servizi;9;Manutenzione ordinaria e riparazioni;8;Manutenzione ordinaria e riparazioni di beni immobili;09/04/2021
1284;1;9999999;260;260;GOBBATO AMBRA MARIA;Z0229CE768;SALDO Fatt.n. 1PA  del 18/03/2021 PROGETTO DI MESSA IN SICUREZZA VIABILITA CARRABILE E CICLO PEDONALE DEL CAPOLUOGO. PRIMO INTERVENTO - PERIZIA SUPPLETTIVA DI VARIANTE  - SALDO;06/04/2021;8692;0;999;2;Spese in conto capitale;2;Investimenti fissi lordi e acquisto di terreni;1;Beni materiali;9;Beni immobili;12;Infrastrutture stradali;09/04/2021
1285;1;9999999;3.120,00;3.120,00;GOBBATO AMBRA MARIA;Z0229CE768;SALDO Fatt.n. 2PA  del 18/03/2021 PROGETTO DI MESSA IN SICUREZZA VIABILITA CARRABILE E CICLO PEDONALE DEL CAPOLUOGO. PRIMO INTERVENTO - PERIZIA SUPPLETTIVA DI VARIANTE;06/04/2021;8692;0;999;2;Spese in conto capitale;2;Investimenti fissi lordi e acquisto di terreni;1;Beni materiali;9;Beni immobili;12;Infrastrutture stradali;09/04/2021
1286;1;9999999;23.377,64;23.377,64;CARRARO ANGELO;ZA62A76AE0;SALDO Fatt.n. 15  del 09/03/2021 PROGETTO DEFINITIVO - ESECUTIVO PER LA REALIZZAZIONE DELLA PISTA CICLOPEDONALE LUNGO LA   S.R.515;06/04/2021;8563;0;1148;2;Spese in conto capitale;2;Investimenti fissi lordi e acquisto di terreni;1;Beni materiali;9;Beni immobili;12;Infrastrutture stradali;09/04/2021
1287;1;9999999;45,9;45,9;ENI SPA DIVISIONE REFINING & MARKETING;ZA2305CE6E;SALDO Fatt.n. 29179604  del 28/02/2021 FEBBRAIO 2021 - FORNITURA METANO;06/04/2021;4121;0;57;1;Spese correnti;3;Acquisto di beni e servizi;1;Acquisto di beni;2;Altri beni di consumo;2;Carburanti, combustibili e lubrificanti;08/04/2021
1288;1;9999999;10,1;10,1;ENI SPA DIVISIONE REFINING & MARKETING;ZA2305CE6E;ACCONTO Fatt.n. 29179604  del 28/02/2021 FEBBRAIO 2021 - FORNITURA METANO;06/04/2021;4121;0;57;1;Spese correnti;3;Acquisto di beni e servizi;1;Acquisto di beni;2;Altri beni di consumo;2;Carburanti, combustibili e lubrificanti;13/04/2021
1289;1;9999999;26,1;26,1;BARBATO BARBARA ECONOMO COMUNALE; ;Rimborso bolletta N.     2 del  01-02-21 ACQUISTO CANCELLERIA PER UFFICIO VIGILI E UFFICIO TECNICO;06/04/2021;121;6;66;1;Spese correnti;3;Acquisto di beni e servizi;1;Acquisto di beni;2;Altri beni di consumo;1;Carta, cancelleria e stampati;13/04/2021
1290;1;9999999;200;200;BARBATO BARBARA ECONOMO COMUNALE; ;Rimborso bolletta N.     1 del  21-01-21 SPESE POSTALI;06/04/2021;145;0;14;1;Spese correnti;3;Acquisto di beni e servizi;2;Acquisto di servizi;16;Servizi amministrativi;2;Spese postali;13/04/2021
1291;1;9999999;160;160;BARBATO BARBARA ECONOMO COMUNALE; ;Rimborso bolletta N.     4 del  02-02-21 ACQUISTO SCHEDE PREPAGATE APP SU GOOGLE PLAY STORE;06/04/2021;748;0;61;1;Spese correnti;3;Acquisto di beni e servizi;2;Acquisto di servizi;19;Servizi informatici e di telecomunicazioni;1;Gestione e manutenzione applicazioni;13/04/2021
1292;1;9999999;47,7;260,65;BARBATO BARBARA ECONOMO COMUNALE; ;Rimborso bolletta N.     5 del  08-02-21 ACQUISTO CORNICI  PER ARTECHIAMO VIRUS E CORNICI PER OTTIMI SCUOLA MEDIA;06/04/2021;1821;0;38;1;Spese correnti;3;Acquisto di beni e servizi;1;Acquisto di beni;2;Altri beni di consumo;999;Altri beni e materiali di consumo n.a.c.;13/04/2021
1292;2;9999999;56,5;260,65;BARBATO BARBARA ECONOMO COMUNALE; ;Rimborso bolletta N.     7 del  26-03-21 OMAGGI PER BAMBINI MANIFESTAZIONE NATALE SOLIDALE;06/04/2021;1821;0;38;1;Spese correnti;3;Acquisto di beni e servizi;1;Acquisto di beni;2;Altri beni di consumo;999;Altri beni e materiali di consumo n.a.c.;13/04/2021
1292;3;9999999;73,5;260,65;BARBATO BARBARA ECONOMO COMUNALE; ;Rimborso bolletta N.     3 del  01-02-21 ACQUISTO CORNICI PER CONCORSO COVID;06/04/2021;1821;0;38;1;Spese correnti;3;Acquisto di beni e servizi;1;Acquisto di beni;2;Altri beni di consumo;999;Altri beni e materiali di consumo n.a.c.;13/04/2021
1292;4;9999999;82,95;260,65;BARBATO BARBARA ECONOMO COMUNALE; ;Rimborso bolletta N.     6 del  18-02-21 PICCOLI PREMI PER CONCORSO ARTECHIAMO VIRUS;06/04/2021;1821;0;38;1;Spese correnti;3;Acquisto di beni e servizi;1;Acquisto di beni;2;Altri beni di consumo;999;Altri beni e materiali di consumo n.a.c.;13/04/2021
1293;1;9999999;61.345,30;61.345,30;ZCR SRL IMPRESA GENERALE DI COSTRUZIONI;8416635AEA;SALDO Fatt.n. 5PA  del 29/03/2021 SALDO PER INTERVENTI DI EFFICIENTAMENTO ENERGETICO NELLA SCUOLA PRIMARIA F.FARSETTI   CERTIFICATO N. 2 DEL 10/02/2021;07/04/2021;7630;0;671;2;Spese in conto capitale;2;Investimenti fissi lordi e acquisto di terreni;1;Beni materiali;9;Beni immobili;3;Fabbricati ad uso scolastico;09/04/2021
1299;1;9999999;1.296,84;1.296,84;AGENZIA DELLE ENTRATE - IVA; ;LIQUIDAZIONE IVA COMMERCIALE MESE DI MARZO 2021;09/04/2021;291;0;338;1;Spese correnti;10;Altre spese correnti;3;Versamenti IVA a debito;1;Versamenti IVA a debito per le gestioni commerciali;1;Versamenti IVA a debito per le gestioni commerciali;15/04/2021
1300;1;9999999;31,09;31,09;ABACO S.P.A.;766214493F;SALDO Fatt.n. 2021120001038  del 09/03/2021 AGGIO GESTIONI ICP SU INCASSI CONTO CONCESIONARIO ENTE RENDICONTO DELLA GESTIONE DAL 01/02/2021 A 28/02/2021 cig. 766214493F;12/04/2021;332;0;1228;1;Spese correnti;3;Acquisto di beni e servizi;2;Acquisto di servizi;3;Aggi di riscossione;999;Altri aggi di riscossione n.a.c.;14/04/2021
1301;1;9999999;130;130;OMESSO NOMINATIVO NEL RISPETTO DELLA NORMATIVA SULLA PROTEZIONE DATI PERSONALI; ;PRIMA TRANCHE ANNO 2021 ASSEGNI DI SOLLIEVO - PRIMA RATA;12/04/2021;3957;50;316;1;Spese correnti;4;Trasferimenti correnti;2;Trasferimenti correnti a Famiglie;2;Interventi assistenziali;999;Altri assegni e sussidi assistenziali;20/04/2021
1302;1;9999999;220;220;OMESSO NOMINATIVO NEL RISPETTO DELLA NORMATIVA SULLA PROTEZIONE DATI PERSONALI; ;PRIMA TRANCHE ANNO 2021 ASSEGNI DI SOLLIEVO PRIMA RATA;12/04/2021;3957;50;317;1;Spese correnti;4;Trasferimenti correnti;2;Trasferimenti correnti a Famiglie;2;Interventi assistenziali;999;Altri assegni e sussidi assistenziali;26/04/2021
1303;1;9999999;130;130;OMESSO NOMINATIVO NEL RISPETTO DELLA NORMATIVA SULLA PROTEZIONE DATI PERSONALI; ;PRIMA TRANCHE ANNO 2021 ASSEGNI DI SOLLIEVO PRIMA RATA;12/04/2021;3957;50;318;1;Spese correnti;4;Trasferimenti correnti;2;Trasferimenti correnti a Famiglie;2;Interventi assistenziali;999;Altri assegni e sussidi assistenziali;14/04/2021
1304;1;9999999;130;130;OMESSO NOMINATIVO NEL RISPETTO DELLA NORMATIVA SULLA PROTEZIONE DATI PERSONALI; ;PRIMA TRANCHE ANNO 2021 ASSEGNI DI SOLLIEVO PRIMA RATA;12/04/2021;3957;50;319;1;Spese correnti;4;Trasferimenti correnti;2;Trasferimenti correnti a Famiglie;2;Interventi assistenziali;999;Altri assegni e sussidi assistenziali;14/04/2021
1305;1;9999999;130;130;OMESSO NOMINATIVO NEL RISPETTO DELLA NORMATIVA SULLA PROTEZIONE DATI PERSONALI; ;INTERVENTI IN MATERIA DI NON AUTOSUFFICIENZA DENOMINATI ASSEGNI DI SOLLIEVO - IMPEGNO DI SPESA PRIMA TRANCHE ANNO 2021;12/04/2021;3957;50;320;1;Spese correnti;4;Trasferimenti correnti;2;Trasferimenti correnti a Famiglie;2;Interventi assistenziali;999;Altri assegni e sussidi assistenziali;14/04/2021
1306;1;9999999;660;660;OMESSO NOMINATIVO NEL RISPETTO DELLA NORMATIVA SULLA PROTEZIONE DATI PERSONALI; ;PRIMA TRANCHE ANNO 2021 ASSEGNI DI SOLLIEVO PRIMA RATA;12/04/2021;3957;50;321;1;Spese correnti;4;Trasferimenti correnti;2;Trasferimenti correnti a Famiglie;2;Interventi assistenziali;999;Altri assegni e sussidi assistenziali;14/04/2021
1307;1;9999999;110;110;ZORZATO ANGELO ORTOFRUTTA; ;NOTA PER FORNITURA PRODOTTI ALIMENTARI - EMERGENZA COVID;12/04/2021;4122;0;1329;1;Spese correnti;3;Acquisto di beni e servizi;1;Acquisto di beni;2;Altri beni di consumo;11;Generi alimentari;14/04/2021
1309;1;9999999;14.486,67;14.486,67;SCUOLA MATERNA S.GIUSEPPE; ;ACCONTO DEL IL CONTRIBUTO ECONOMICO DA DESTINARE ALLE SCUOLE DELLINFANZIA DEL TERRITORIO COMUNALE ANNO 2021.;12/04/2021;1259;0;322;1;Spese correnti;4;Trasferimenti correnti;4;Trasferimenti correnti a Istituzioni Sociali Private;1;Trasferimenti correnti a Istituzioni Sociali Private;1;Trasferimenti correnti a Istituzioni Sociali Private;14/04/2021
1310;1;9999999;17.675,56;17.675,56;ASILO INFANTILE F.T.CROVATO; ;ACCONTO DEL IL CONTRIBUTO ECONOMICO DA DESTINARE ALLE SCUOLE DELLINFANZIA DEL TERRITORIO COMUNALE ANNO 2021.;12/04/2021;1259;0;323;1;Spese correnti;4;Trasferimenti correnti;4;Trasferimenti correnti a Istituzioni Sociali Private;1;Trasferimenti correnti a Istituzioni Sociali Private;1;Trasferimenti correnti a Istituzioni Sociali Private;14/04/2021
1311;1;9999999;14.486,67;14.486,67;SC.MAT.MADONNA DEL ROSARIO/ASILO NIDO; ;ACCONTO DEL IL CONTRIBUTO ECONOMICO DA DESTINARE ALLE SCUOLE DELLINFANZIA DEL TERRITORIO COMUNALE ANNO 2021.;12/04/2021;1259;0;324;1;Spese correnti;4;Trasferimenti correnti;4;Trasferimenti correnti a Istituzioni Sociali Private;1;Trasferimenti correnti a Istituzioni Sociali Private;1;Trasferimenti correnti a Istituzioni Sociali Private;14/04/2021
1312;1;9999999;20.864,44;20.864,44;SCUOLA MATERNA MARIA BAMBINA; ;ACCONTO DEL IL CONTRIBUTO ECONOMICO DA DESTINARE ALLE SCUOLE DELLINFANZIA DEL TERRITORIO COMUNALE ANNO 2021.;12/04/2021;1259;0;325;1;Spese correnti;4;Trasferimenti correnti;4;Trasferimenti correnti a Istituzioni Sociali Private;1;Trasferimenti correnti a Istituzioni Sociali Private;1;Trasferimenti correnti a Istituzioni Sociali Private;14/04/2021
1313;1;9999999;14.486,67;14.486,67;SCUOLA DELL'INFANZIA SACRO CUORE; ;ACCONTO DEL IL CONTRIBUTO ECONOMICO DA DESTINARE ALLE SCUOLE DELLINFANZIA DEL TERRITORIO COMUNALE ANNO 2021.;12/04/2021;1259;0;326;1;Spese correnti;4;Trasferimenti correnti;4;Trasferimenti correnti a Istituzioni Sociali Private;1;Trasferimenti correnti a Istituzioni Sociali Private;1;Trasferimenti correnti a Istituzioni Sociali Private;14/04/2021
1315;1;9999999;366;366;BASSO MARINO LAVORAZIONI MACCHINE AGRICOLE;ZC930E52B8;SALDO Fatt.n. 1  del 18/03/2021 LAVORI SPARGISALE LUNGOLE STRADE ED AREE PUBBLICHE COMUNALI;12/04/2021;3538;0;284;1;Spese correnti;3;Acquisto di beni e servizi;2;Acquisto di servizi;9;Manutenzione ordinaria e riparazioni;8;Manutenzione ordinaria e riparazioni di beni immobili;14/04/2021
1316;1;9999999;488;488;BASSO THOMAS;Z7B30E5344;SALDO Fatt.n. 2  del 25/03/2021 SPARGISALE LUNGO LE STRADE ED AREE PUBBLICHE COMUNALI;12/04/2021;3538;0;285;1;Spese correnti;3;Acquisto di beni e servizi;2;Acquisto di servizi;9;Manutenzione ordinaria e riparazioni;8;Manutenzione ordinaria e riparazioni di beni immobili;14/04/2021
1317;1;9999999;1.064,41;1.064,41;LA SEMAFORICA srl;Z503100CA7;SALDO Fatt.n. 2100128/8  del 25/03/2021 SOSTITUZIONE PULSANTE PEDONALE E MODULO A LED -RIPROGRAMMAZIONE REGOLATORE SEMAF.;12/04/2021;3538;0;297;1;Spese correnti;3;Acquisto di beni e servizi;2;Acquisto di servizi;9;Manutenzione ordinaria e riparazioni;4;Manutenzione ordinaria e riparazioni di impianti e macchinari;14/04/2021
1318;1;9999999;2.079,86;2.079,86;P. & G. AUTOSERVICE SNC;Z303101B8F;SALDO Fatt.n. 2PA  del 23/03/2021 MANUTENZIONE AUTOMEZZI COMUNALI;12/04/2021;3538;0;298;1;Spese correnti;3;Acquisto di beni e servizi;2;Acquisto di servizi;9;Manutenzione ordinaria e riparazioni;1;Manutenzione ordinaria e riparazioni di mezzi di trasporto ad uso civile, di sicurezza e ordine pubblico;14/04/2021
1319;1;9999999;39.149,00;39.149,00;BORTOLATO LINO SNC;ZC12FB650C;SALDO Fatt.n. 19  del 15/03/2021 AFFIDAMENTO LAVORI DI COMPLETAMENTO NUOVO AMPLIAMENTO DEGLI SPOGLIATOI IMPIANTO SPORTIVO DI VETERNIGO;12/04/2021;8417;0;1322;2;Spese in conto capitale;2;Investimenti fissi lordi e acquisto di terreni;1;Beni materiali;9;Beni immobili;16;Impianti sportivi;14/04/2021
1320;1;9999999;11,24;338,58;V.E.R.I.T.A.S. SPA; ;SALDO Fatt.n. 600005986639  del 19/03/2021 PERIODO 08.07.2020-28.02.2021 - CONSUMI PER MANIFESTAZIONI CALTANA;12/04/2021;134;30;127;1;Spese correnti;3;Acquisto di beni e servizi;2;Acquisto di servizi;5;Utenze e canoni;5;Acqua;14/04/2021
1320;2;9999999;14,71;338,58;V.E.R.I.T.A.S. SPA; ;SALDO Fatt.n. 600005986637  del 19/03/2021 PERIODO 10.07.2020-28.02.2021 - CONSUMI PIAZZA S.D.A. CALTANA;12/04/2021;134;30;127;1;Spese correnti;3;Acquisto di beni e servizi;2;Acquisto di servizi;5;Utenze e canoni;5;Acqua;14/04/2021
1320;3;9999999;20,55;338,58;V.E.R.I.T.A.S. SPA; ;SALDO Fatt.n. 600005986636  del 19/03/2021 PERIODO 03.07.2020-28.02.2021 - CONSUMI PIAZZA ACTV CALTANA;12/04/2021;134;30;127;1;Spese correnti;3;Acquisto di beni e servizi;2;Acquisto di servizi;5;Utenze e canoni;5;Acqua;14/04/2021
1320;4;9999999;25,78;338,58;V.E.R.I.T.A.S. SPA; ;SALDO Fatt.n. 600005986608  del 19/03/2021 PERIODO 03.07.2020-28.02.2021 - CONSUMI MERCATO CALTANA;12/04/2021;134;30;127;1;Spese correnti;3;Acquisto di beni e servizi;2;Acquisto di servizi;5;Utenze e canoni;5;Acqua;14/04/2021
1320;5;9999999;44,11;338,58;V.E.R.I.T.A.S. SPA; ;SALDO Fatt.n. 600005986641  del 19/03/2021 PERIODO 01.01.2021-28.02.2021 - ANTINCENDIO Z.I. SMS;12/04/2021;134;30;127;1;Spese correnti;3;Acquisto di beni e servizi;2;Acquisto di servizi;5;Utenze e canoni;5;Acqua;14/04/2021
1320;6;9999999;44,11;338,58;V.E.R.I.T.A.S. SPA; ;SALDO Fatt.n. 600005986640  del 19/03/2021 PERIODO 01.01.2021-28.02.2021 - ANTINCENDIO Z.I. SMS;12/04/2021;134;30;127;1;Spese correnti;3;Acquisto di beni e servizi;2;Acquisto di servizi;5;Utenze e canoni;5;Acqua;14/04/2021
1320;7;9999999;44,11;338,58;V.E.R.I.T.A.S. SPA; ;SALDO Fatt.n. 600005986626  del 19/03/2021 PERIODO  01.01.2021-28.02.2021 - ANTINCENDIO PARCHEGGIO SMS;12/04/2021;134;30;127;1;Spese correnti;3;Acquisto di beni e servizi;2;Acquisto di servizi;5;Utenze e canoni;5;Acqua;14/04/2021
1320;8;9999999;44,11;338,58;V.E.R.I.T.A.S. SPA; ;SALDO Fatt.n. 600005986638  del 19/03/2021 PERIODO 01.01.2021-28.02.2021 - ANTINCENDIO PARCHEGGIO STIGLIANO;12/04/2021;134;30;127;1;Spese correnti;3;Acquisto di beni e servizi;2;Acquisto di servizi;5;Utenze e canoni;5;Acqua;14/04/2021
1320;9;9999999;44,11;338,58;V.E.R.I.T.A.S. SPA; ;SALDO Fatt.n. 600005986642  del 19/03/2021 PERIODO 01.01.2021-28.02.2021 - ANTINCENDIO PARCHEGGIO C.C. PRISMA;12/04/2021;134;30;127;1;Spese correnti;3;Acquisto di beni e servizi;2;Acquisto di servizi;5;Utenze e canoni;5;Acqua;14/04/2021
1320;10;9999999;45,75;338,58;V.E.R.I.T.A.S. SPA; ;SALDO Fatt.n. 600005986625  del 19/03/2021 PERIODO 14.07.2020-28.02.2021 - CONSUMI DISTRIBUTORE ACQUA CASELLE;12/04/2021;134;30;127;1;Spese correnti;3;Acquisto di beni e servizi;2;Acquisto di servizi;5;Utenze e canoni;5;Acqua;14/04/2021
1321;1;9999999;-128,93;202,15;V.E.R.I.T.A.S. SPA; ;SALDO Fatt.n. 600005986609  del 19/03/2021 PERIODO 25.01.2020-28.02.2021 - NOTA DI ACCREDITO PER CONGUAGLIO CONSUMI;12/04/2021;134;30;127;1;Spese correnti;3;Acquisto di beni e servizi;2;Acquisto di servizi;5;Utenze e canoni;5;Acqua;14/04/2021
1321;2;9999999;-100,23;202,15;V.E.R.I.T.A.S. SPA; ;SALDO Fatt.n. 600005986630  del 19/03/2021 PERIODO 08.07.2020-28.02.2021 - NOTA DI ACCREDITO PER CONGUAGLIO CONSUMI;12/04/2021;134;30;127;1;Spese correnti;3;Acquisto di beni e servizi;2;Acquisto di servizi;5;Utenze e canoni;5;Acqua;14/04/2021
1321;3;9999999;-92,8;202,15;V.E.R.I.T.A.S. SPA; ;SALDO Fatt.n. 600005986612  del 19/03/2021 PERIODO 07.07.2020-28.02.2021 - NOTA DI ACCREDITO PER CONGUAGLIO CONSUMI;12/04/2021;134;30;127;1;Spese correnti;3;Acquisto di beni e servizi;2;Acquisto di servizi;5;Utenze e canoni;5;Acqua;14/04/2021
1321;4;9999999;524,11;202,15;V.E.R.I.T.A.S. SPA; ;SALDO Fatt.n. 600005986616  del 19/03/2021 PERIODO 29.01.2020-28.02.2021 - CONSUMI MERCATO CASELLE;12/04/2021;134;30;127;1;Spese correnti;3;Acquisto di beni e servizi;2;Acquisto di servizi;5;Utenze e canoni;5;Acqua;14/04/2021
1322;1;9999999;327,52;327,52;V.E.R.I.T.A.S. SPA; ;SALDO Fatt.n. 600005986617  del 19/03/2021 PERIODO 12.12.2019-28.02.2021 - CONSUMI SEDE MUNICIPALE;12/04/2021;134;30;127;1;Spese correnti;3;Acquisto di beni e servizi;2;Acquisto di servizi;5;Utenze e canoni;5;Acqua;14/04/2021
1323;1;9999999;6,93;431,41;V.E.R.I.T.A.S. SPA; ;SALDO Fatt.n. 600005986659  del 19/03/2021 PERIODO 29.01.2020-28.02.2021 - CONSUMI FONTANA VERDE CASELLE;12/04/2021;134;31;128;1;Spese correnti;3;Acquisto di beni e servizi;2;Acquisto di servizi;5;Utenze e canoni;5;Acqua;14/04/2021
1323;2;9999999;11,23;431,41;V.E.R.I.T.A.S. SPA; ;SALDO Fatt.n. 600005986651  del 19/03/2021 PERIODO 02.07.2020-28.02.2021 - CONSUMI STRADA PRESSO ALLOGGIO GUIOTTO;12/04/2021;134;31;128;1;Spese correnti;3;Acquisto di beni e servizi;2;Acquisto di servizi;5;Utenze e canoni;5;Acqua;14/04/2021
1323;3;9999999;11,25;431,41;V.E.R.I.T.A.S. SPA; ;SALDO Fatt.n. 600005986644  del 19/03/2021 PERIODO 03.07.2020-28.02.2021 - CONSUMI FONTANA VETERNIGO;12/04/2021;134;31;128;1;Spese correnti;3;Acquisto di beni e servizi;2;Acquisto di servizi;5;Utenze e canoni;5;Acqua;14/04/2021
1323;4;9999999;14,51;431,41;V.E.R.I.T.A.S. SPA; ;SALDO Fatt.n. 600005986656  del 19/03/2021 PERIODO 01.01.2021-28.02.2021 - CONSUMI PARCHEGGIO CASELLE;12/04/2021;134;31;128;1;Spese correnti;3;Acquisto di beni e servizi;2;Acquisto di servizi;5;Utenze e canoni;5;Acqua;14/04/2021
1323;5;9999999;14,51;431,41;V.E.R.I.T.A.S. SPA; ;SALDO Fatt.n. 600005986646  del 19/03/2021 PERIODO 01.01.2021-28.02.2021 - CONSUMI VERDE FONTANA STIGLIANO;12/04/2021;134;31;128;1;Spese correnti;3;Acquisto di beni e servizi;2;Acquisto di servizi;5;Utenze e canoni;5;Acqua;14/04/2021
1323;6;9999999;21,11;431,41;V.E.R.I.T.A.S. SPA; ;SALDO Fatt.n. 600005986645  del 19/03/2021 PERIODO 01.01.2021-28.02.2021 - CONSUMI MERCATO SMS;12/04/2021;134;31;128;1;Spese correnti;3;Acquisto di beni e servizi;2;Acquisto di servizi;5;Utenze e canoni;5;Acqua;14/04/2021
1323;7;9999999;44,11;431,41;V.E.R.I.T.A.S. SPA; ;SALDO Fatt.n. 600005986657  del 19/03/2021 PERIODO  01.01.2021-28.02.2021 - ANTINCENDIO PARCHEGGI CASELLE;12/04/2021;134;31;128;1;Spese correnti;3;Acquisto di beni e servizi;2;Acquisto di servizi;5;Utenze e canoni;5;Acqua;14/04/2021
1323;8;9999999;44,11;431,41;V.E.R.I.T.A.S. SPA; ;SALDO Fatt.n. 600005986647  del 19/03/2021 PERIODO 01.01.2021-28.02.2021 - ANTINCENDIO PER MANIFESTAZIONI SMS;12/04/2021;134;31;128;1;Spese correnti;3;Acquisto di beni e servizi;2;Acquisto di servizi;5;Utenze e canoni;5;Acqua;14/04/2021
1323;9;9999999;44,11;431,41;V.E.R.I.T.A.S. SPA; ;SALDO Fatt.n. 600005986643  del 19/03/2021 PERIODO 01.01.2021-28.02.2021 - ANTINCENDIO STRADA PRESSO ALLOGGIO GUIOTTO;12/04/2021;134;31;128;1;Spese correnti;3;Acquisto di beni e servizi;2;Acquisto di servizi;5;Utenze e canoni;5;Acqua;14/04/2021
1323;10;9999999;44,11;431,41;V.E.R.I.T.A.S. SPA; ;SALDO Fatt.n. 600005986655  del 19/03/2021 PERIODO 01.01.2021-28.02.2021 - ANTINCENDIO PIAZZA BEVILACQUA S.ANGELO;12/04/2021;134;31;128;1;Spese correnti;3;Acquisto di beni e servizi;2;Acquisto di servizi;5;Utenze e canoni;5;Acqua;14/04/2021
1323;11;9999999;49,02;431,41;V.E.R.I.T.A.S. SPA; ;SALDO Fatt.n. 600005986658  del 19/03/2021 PERIODO 11.07.2020-28.02.2021 - CONSUMI PIAZZA CASELLE;12/04/2021;134;31;128;1;Spese correnti;3;Acquisto di beni e servizi;2;Acquisto di servizi;5;Utenze e canoni;5;Acqua;14/04/2021
1323;12;9999999;126,41;431,41;V.E.R.I.T.A.S. SPA; ;SALDO Fatt.n. 600005986648  del 19/03/2021 PERIODO 03.07.2020-28.02.2021 - CONSUMI PER MANIFESTAZIONI SMS;12/04/2021;134;31;128;1;Spese correnti;3;Acquisto di beni e servizi;2;Acquisto di servizi;5;Utenze e canoni;5;Acqua;14/04/2021
1324;1;9999999;44,09;642,08;V.E.R.I.T.A.S. SPA; ;SALDO Fatt.n. 600005986619  del 19/03/2021 PERIODO10.07.2020-28.02.2021 - ANTINCENDIO SCUOLA MEDIA SMS;12/04/2021;1334;30;129;1;Spese correnti;3;Acquisto di beni e servizi;2;Acquisto di servizi;5;Utenze e canoni;5;Acqua;14/04/2021
1324;2;9999999;44,1;642,08;V.E.R.I.T.A.S. SPA; ;SALDO Fatt.n. 600005986621  del 19/03/2021 PERIODO 10.07.2020-28.02.2021 - ANTINCENDIO SC. ELEM. CALTANA;12/04/2021;1334;30;129;1;Spese correnti;3;Acquisto di beni e servizi;2;Acquisto di servizi;5;Utenze e canoni;5;Acqua;14/04/2021
1324;3;9999999;117,86;642,08;V.E.R.I.T.A.S. SPA; ;SALDO Fatt.n. 600005986607  del 19/03/2021 PERIODO 02.07.2020-28.02.2021 - CONSUMI SC. ELEM. CALTANA;12/04/2021;1334;30;129;1;Spese correnti;3;Acquisto di beni e servizi;2;Acquisto di servizi;5;Utenze e canoni;5;Acqua;14/04/2021
1324;4;9999999;117,89;642,08;V.E.R.I.T.A.S. SPA; ;SALDO Fatt.n. 600005986620  del 19/03/2021 PERIODO 10.07.2020-28.02.2021 - CONSUMI SC. ELEM. SMS;12/04/2021;1334;30;129;1;Spese correnti;3;Acquisto di beni e servizi;2;Acquisto di servizi;5;Utenze e canoni;5;Acqua;14/04/2021
1324;5;9999999;318,14;642,08;V.E.R.I.T.A.S. SPA; ;SALDO Fatt.n. 600005986618  del 19/03/2021 PERIODO 01.01.2021-28.02.2021 - CONSUMI SCUOLA MEDIA SMS;12/04/2021;1334;30;129;1;Spese correnti;3;Acquisto di beni e servizi;2;Acquisto di servizi;5;Utenze e canoni;5;Acqua;14/04/2021
1325;1;9999999;20,67;20,67;V.E.R.I.T.A.S. SPA; ;ACCONTO Fatt.n. 600005986653  del 19/03/2021 PERIODO 15.01.2020-28.02.2021 - ANTINCENDIO PALESTRA CALTANA;12/04/2021;1334;30;129;1;Spese correnti;3;Acquisto di beni e servizi;2;Acquisto di servizi;5;Utenze e canoni;5;Acqua;14/04/2021
1326;1;9999999;53;53;V.E.R.I.T.A.S. SPA; ;ACCONTO Fatt.n. 600005986613  del 19/03/2021 PERIODO 02.07.2020-28.02.2021 - CONSUMI SC. ELEM.-PALESTRA-ASILO S.ANGELO;12/04/2021;1334;30;129;1;Spese correnti;3;Acquisto di beni e servizi;2;Acquisto di servizi;5;Utenze e canoni;5;Acqua;14/04/2021
1327;1;9999999;157,82;157,82;V.E.R.I.T.A.S. SPA; ;ACCONTO Fatt.n. 600005986613  del 19/03/2021 PERIODO 02.07.2020-28.02.2021 - CONSUMI SC. ELEM.-PALESTRA-ASILO S.ANGELO;12/04/2021;1334;30;129;1;Spese correnti;3;Acquisto di beni e servizi;2;Acquisto di servizi;5;Utenze e canoni;5;Acqua;14/04/2021
1328;1;9999999;53;53;V.E.R.I.T.A.S. SPA; ;ACCONTO Fatt.n. 600005986610  del 19/03/2021 PERIODO 02.07.2020-28.02.2021 - CONSUMI SC. ELEM. - PALESTRA STIGLIANO;12/04/2021;1334;30;129;1;Spese correnti;3;Acquisto di beni e servizi;2;Acquisto di servizi;5;Utenze e canoni;5;Acqua;14/04/2021
1329;1;9999999;45,81;45,81;V.E.R.I.T.A.S. SPA; ;ACCONTO Fatt.n. 600005986610  del 19/03/2021 PERIODO 02.07.2020-28.02.2021 - CONSUMI SC. ELEM. - PALESTRA STIGLIANO;12/04/2021;1334;30;129;1;Spese correnti;3;Acquisto di beni e servizi;2;Acquisto di servizi;5;Utenze e canoni;5;Acqua;14/04/2021
1330;1;9999999;62,95;62,95;V.E.R.I.T.A.S. SPA; ;ACCONTO Fatt.n. 600005986652  del 19/03/2021 PERIODO 15.01.2020-28.02.2021 - CONSUMI PALESTRA CALTANA;12/04/2021;1334;30;129;1;Spese correnti;3;Acquisto di beni e servizi;2;Acquisto di servizi;5;Utenze e canoni;5;Acqua;14/04/2021
1331;1;9999999;104,06;104,06;V.E.R.I.T.A.S. SPA; ;ACCONTO Fatt.n. 600005986614  del 19/03/2021 PERIODO 01.01.2021-28.02.2021 -   CONSUMI PALESTRA SMS;12/04/2021;1334;30;129;1;Spese correnti;3;Acquisto di beni e servizi;2;Acquisto di servizi;5;Utenze e canoni;5;Acqua;14/04/2021
1332;1;9999999;9;9;V.E.R.I.T.A.S. SPA; ;ACCONTO Fatt.n. 600005986624  del 19/03/2021 PERIODO 02.07.2020-28.02.2021 - ANTINCENDIO SC.ELEM-PALESTRA-ASILO S.ANGELO;12/04/2021;1334;30;129;1;Spese correnti;3;Acquisto di beni e servizi;2;Acquisto di servizi;5;Utenze e canoni;5;Acqua;14/04/2021
1333;1;9999999;26,09;26,09;V.E.R.I.T.A.S. SPA; ;ACCONTO Fatt.n. 600005986624  del 19/03/2021 PERIODO 02.07.2020-28.02.2021 - ANTINCENDIO SC.ELEM-PALESTRA-ASILO S.ANGELO;12/04/2021;1334;30;129;1;Spese correnti;3;Acquisto di beni e servizi;2;Acquisto di servizi;5;Utenze e canoni;5;Acqua;14/04/2021
1334;1;9999999;15;15;V.E.R.I.T.A.S. SPA; ;ACCONTO Fatt.n. 600005986611  del 19/03/2021 PERIODO 02.07.2020-28.02.2021 - ANTINCENDIO SC. ELEM-PALESTRA STIGLIANO;12/04/2021;1334;30;129;1;Spese correnti;3;Acquisto di beni e servizi;2;Acquisto di servizi;5;Utenze e canoni;5;Acqua;14/04/2021
1335;1;9999999;14,09;14,09;V.E.R.I.T.A.S. SPA; ;ACCONTO Fatt.n. 600005986611  del 19/03/2021 PERIODO 02.07.2020-28.02.2021 - ANTINCENDIO SC. ELEM-PALESTRA STIGLIANO;12/04/2021;1334;30;129;1;Spese correnti;3;Acquisto di beni e servizi;2;Acquisto di servizi;5;Utenze e canoni;5;Acqua;14/04/2021
1336;1;9999999;9;9;V.E.R.I.T.A.S. SPA; ;ACCONTO Fatt.n. 600005986622  del 19/03/2021 PERIODO 29.01.2020-28.02.2021 - ANTINCENDIO SC. ELEM - PALESTRA CASELLE;12/04/2021;1334;30;129;1;Spese correnti;3;Acquisto di beni e servizi;2;Acquisto di servizi;5;Utenze e canoni;5;Acqua;14/04/2021
1337;1;9999999;26,1;26,1;V.E.R.I.T.A.S. SPA; ;ACCONTO Fatt.n. 600005986622  del 19/03/2021 PERIODO 29.01.2020-28.02.2021 - ANTINCENDIO SC. ELEM - PALESTRA CASELLE;12/04/2021;1334;30;129;1;Spese correnti;3;Acquisto di beni e servizi;2;Acquisto di servizi;5;Utenze e canoni;5;Acqua;14/04/2021
1338;1;9999999;22;22;V.E.R.I.T.A.S. SPA; ;ACCONTO Fatt.n. 600005986623  del 19/03/2021 PERIODO  07.07.2020-28.02.2021 - ANTINCENDIO SC. ELEM - PALESTRA VETERNIGO;12/04/2021;1334;30;129;1;Spese correnti;3;Acquisto di beni e servizi;2;Acquisto di servizi;5;Utenze e canoni;5;Acqua;14/04/2021
1339;1;9999999;35,04;35,04;V.E.R.I.T.A.S. SPA; ;ACCONTO Fatt.n. 600005986623  del 19/03/2021 PERIODO  07.07.2020-28.02.2021 - ANTINCENDIO SC. ELEM - PALESTRA VETERNIGO;12/04/2021;1334;30;129;1;Spese correnti;3;Acquisto di beni e servizi;2;Acquisto di servizi;5;Utenze e canoni;5;Acqua;14/04/2021
1340;1;9999999;423,98;423,98;V.E.R.I.T.A.S. SPA; ;SALDO Fatt.n. 600005986654  del 19/03/2021 PERIODO 01.01.2021-28.02.2021 - CONSUMI VILLA FARSETTI;12/04/2021;1834;0;318;1;Spese correnti;3;Acquisto di beni e servizi;2;Acquisto di servizi;5;Utenze e canoni;5;Acqua;14/04/2021
1341;1;9999999;44,1;116,59;V.E.R.I.T.A.S. SPA; ;SALDO Fatt.n. 600005986649  del 19/03/2021 PERIODO 09.07.2020-28.02.2021 - ANTINCENDIO ECOCENTRO COMUNALE;12/04/2021;1934;0;131;1;Spese correnti;3;Acquisto di beni e servizi;2;Acquisto di servizi;5;Utenze e canoni;5;Acqua;14/04/2021
1341;2;9999999;72,49;116,59;V.E.R.I.T.A.S. SPA; ;SALDO Fatt.n. 600005986650  del 19/03/2021 PERIODO 09.07.2020-28.02.2021 - CONSUMI ECOCENTRO COMUNALE;12/04/2021;1934;0;131;1;Spese correnti;3;Acquisto di beni e servizi;2;Acquisto di servizi;5;Utenze e canoni;5;Acqua;14/04/2021
1342;1;9999999;20,66;20,66;V.E.R.I.T.A.S. SPA; ;SALDO Fatt.n. 600005986653  del 19/03/2021 PERIODO 15.01.2020-28.02.2021 - ANTINCENDIO PALESTRA CALTANA;12/04/2021;1934;0;131;1;Spese correnti;3;Acquisto di beni e servizi;2;Acquisto di servizi;5;Utenze e canoni;5;Acqua;14/04/2021
1343;1;9999999;53;53;V.E.R.I.T.A.S. SPA; ;SALDO Fatt.n. 600005986613  del 19/03/2021 PERIODO 02.07.2020-28.02.2021 - CONSUMI SC. ELEM.-PALESTRA-ASILO S.ANGELO;12/04/2021;1934;0;131;1;Spese correnti;3;Acquisto di beni e servizi;2;Acquisto di servizi;5;Utenze e canoni;5;Acqua;14/04/2021
1344;1;9999999;53;53;V.E.R.I.T.A.S. SPA; ;SALDO Fatt.n. 600005986610  del 19/03/2021 PERIODO 02.07.2020-28.02.2021 - CONSUMI SC. ELEM. - PALESTRA STIGLIANO;12/04/2021;1934;0;131;1;Spese correnti;3;Acquisto di beni e servizi;2;Acquisto di servizi;5;Utenze e canoni;5;Acqua;14/04/2021
1345;1;9999999;62,94;62,94;V.E.R.I.T.A.S. SPA; ;SALDO Fatt.n. 600005986652  del 19/03/2021 PERIODO 15.01.2020-28.02.2021 - CONSUMI PALESTRA CALTANA;12/04/2021;1934;0;131;1;Spese correnti;3;Acquisto di beni e servizi;2;Acquisto di servizi;5;Utenze e canoni;5;Acqua;14/04/2021
1346;1;9999999;104,06;104,06;V.E.R.I.T.A.S. SPA; ;SALDO Fatt.n. 600005986614  del 19/03/2021 PERIODO 01.01.2021-28.02.2021 -   CONSUMI PALESTRA SMS;12/04/2021;1934;0;131;1;Spese correnti;3;Acquisto di beni e servizi;2;Acquisto di servizi;5;Utenze e canoni;5;Acqua;14/04/2021
1347;1;9999999;9;9;V.E.R.I.T.A.S. SPA; ;SALDO Fatt.n. 600005986624  del 19/03/2021 PERIODO 02.07.2020-28.02.2021 - ANTINCENDIO SC.ELEM-PALESTRA-ASILO S.ANGELO;12/04/2021;1934;0;131;1;Spese correnti;3;Acquisto di beni e servizi;2;Acquisto di servizi;5;Utenze e canoni;5;Acqua;14/04/2021
1348;1;9999999;15;15;V.E.R.I.T.A.S. SPA; ;SALDO Fatt.n. 600005986611  del 19/03/2021 PERIODO 02.07.2020-28.02.2021 - ANTINCENDIO SC. ELEM-PALESTRA STIGLIANO;12/04/2021;1934;0;131;1;Spese correnti;3;Acquisto di beni e servizi;2;Acquisto di servizi;5;Utenze e canoni;5;Acqua;14/04/2021
1349;1;9999999;9;9;V.E.R.I.T.A.S. SPA; ;SALDO Fatt.n. 600005986622  del 19/03/2021 PERIODO 29.01.2020-28.02.2021 - ANTINCENDIO SC. ELEM - PALESTRA CASELLE;12/04/2021;1934;0;131;1;Spese correnti;3;Acquisto di beni e servizi;2;Acquisto di servizi;5;Utenze e canoni;5;Acqua;14/04/2021
1350;1;9999999;22;22;V.E.R.I.T.A.S. SPA; ;SALDO Fatt.n. 600005986623  del 19/03/2021 PERIODO  07.07.2020-28.02.2021 - ANTINCENDIO SC. ELEM - PALESTRA VETERNIGO;12/04/2021;1934;0;131;1;Spese correnti;3;Acquisto di beni e servizi;2;Acquisto di servizi;5;Utenze e canoni;5;Acqua;14/04/2021
1351;1;9999999;3,97;98,71;V.E.R.I.T.A.S. SPA; ;SALDO Fatt.n. 600005986628  del 19/03/2021 PERIODO 09.07.2020-28.02.2021 - CONSUMI MAGAZZINO COMUNALE;12/04/2021;3534;0;132;1;Spese correnti;3;Acquisto di beni e servizi;2;Acquisto di servizi;5;Utenze e canoni;5;Acqua;14/04/2021
1351;2;9999999;94,74;98,71;V.E.R.I.T.A.S. SPA; ;SALDO Fatt.n. 600005986629  del 19/03/2021 PERIODO 09.07.2020-28.02.2021 - ANTINCENDIO MAGAZZINO COMUNALE;12/04/2021;3534;0;132;1;Spese correnti;3;Acquisto di beni e servizi;2;Acquisto di servizi;5;Utenze e canoni;5;Acqua;14/04/2021
1352;1;9999999;44,11;138,21;V.E.R.I.T.A.S. SPA; ;SALDO Fatt.n. 600005986627  del 19/03/2021 PERIODO 01.01.2021-28.02.2021 - ANTINCENDIO VILLA FARSETTI;12/04/2021;4234;0;133;1;Spese correnti;3;Acquisto di beni e servizi;2;Acquisto di servizi;5;Utenze e canoni;5;Acqua;14/04/2021
1352;2;9999999;94,1;138,21;V.E.R.I.T.A.S. SPA; ;SALDO Fatt.n. 600005986615  del 19/03/2021 PERIODO 25.01.2020-28.02.2021 - CONSUMI VILLA FARSETTI;12/04/2021;4234;0;133;1;Spese correnti;3;Acquisto di beni e servizi;2;Acquisto di servizi;5;Utenze e canoni;5;Acqua;14/04/2021
1353;1;9999999;13,46;293,69;V.E.R.I.T.A.S. SPA; ;SALDO Fatt.n. 600005986634  del 19/03/2021 PERIODO 30.01.2020-28.02.2021 - CONSUMI CIMITERO CASELLE;12/04/2021;4434;0;134;1;Spese correnti;3;Acquisto di beni e servizi;2;Acquisto di servizi;5;Utenze e canoni;5;Acqua;14/04/2021
1353;2;9999999;15,38;293,69;V.E.R.I.T.A.S. SPA; ;SALDO Fatt.n. 600005986633  del 19/03/2021 PERIODO 02.07.2020-28.02.2021 - CONSUMI CIMITERO S.ANGELO;12/04/2021;4434;0;134;1;Spese correnti;3;Acquisto di beni e servizi;2;Acquisto di servizi;5;Utenze e canoni;5;Acqua;14/04/2021
1353;3;9999999;32,69;293,69;V.E.R.I.T.A.S. SPA; ;SALDO Fatt.n. 600005986632  del 19/03/2021 PERIODO 04.07.2020-28.02.2021 - CONSUMI CIMITERO VETERNIGO;12/04/2021;4434;0;134;1;Spese correnti;3;Acquisto di beni e servizi;2;Acquisto di servizi;5;Utenze e canoni;5;Acqua;14/04/2021
1353;4;9999999;104,85;293,69;V.E.R.I.T.A.S. SPA; ;SALDO Fatt.n. 600005986635  del 19/03/2021 PERIODO 01.01.2021-28.02.2021 -   CONSUMI CIMITERO STIGLIANO;12/04/2021;4434;0;134;1;Spese correnti;3;Acquisto di beni e servizi;2;Acquisto di servizi;5;Utenze e canoni;5;Acqua;14/04/2021
1353;5;9999999;127,31;293,69;V.E.R.I.T.A.S. SPA; ;SALDO Fatt.n. 600005986631  del 19/03/2021 PERIODO 15.07.2020-28.02.2021 - CONSUMI CIMITERO CALTANA;12/04/2021;4434;0;134;1;Spese correnti;3;Acquisto di beni e servizi;2;Acquisto di servizi;5;Utenze e canoni;5;Acqua;14/04/2021
1354;1;9999999;22,76;22,76;COMUNE DI S.MARIA DI SALA; ;AGGIO CONTRIBUTO IFEL RISCOSSIONE IMU RENDICONTO AL 09-04-2021;12/04/2021;332;0;0;1;Spese correnti;3;Acquisto di beni e servizi;2;Acquisto di servizi;3;Aggi di riscossione;999;Altri aggi di riscossione n.a.c.;14/04/2021
1355;1;9999999;120;120;INTERAZIONE SRL;ZDE3066CC5;SALDO Fatt.n. 145/00  del 24/03/2021 ABBONAMENTO ALLA PUBBLICAZIONE BOLLETTINO E-MAIL ANNO 2021;13/04/2021;121;6;63;1;Spese correnti;3;Acquisto di beni e servizi;1;Acquisto di beni;2;Altri beni di consumo;14;Stampati specialistici;15/04/2021
1356;1;9999999;146,4;146,4;DELFINO & PARTNERS SPA;Z24310776E;SALDO Fatt.n. 602/PA  del 17/03/2021 ABBONAMENTO NEWS DELFINO E PARTNERS S.P.A. ANNO 2021;13/04/2021;134;0;295;1;Spese correnti;3;Acquisto di beni e servizi;2;Acquisto di servizi;5;Utenze e canoni;3;Accesso a banche dati e a pubblicazioni on line;15/04/2021
1357;1;9999999;136,64;136,64;ECOLOGY COOP SPA;Z952CA2711;SALDO Fatt.n. 44PA  del 24/03/2021 INTERVENTI A CHIAMATA DI PULIZIA EDIFICI COMUNALI  MESE DI FEBBRAIO 2021;13/04/2021;142;0;441;1;Spese correnti;3;Acquisto di beni e servizi;2;Acquisto di servizi;13;Servizi ausiliari per il funzionamento dell'ente;2;Servizi di pulizia e lavanderia;15/04/2021
1358;1;9999999;249,43;249,43;ABACO S.P.A.;766214493F;SALDO Fatt.n. 2021120001039  del 09/03/2021 AGGIO GESTIONI ICP SU INCASSI CONTO ENTE RENDICONTO DELLA GESTIONE DAL 01/02/2021 A 28/02/2021 cig. 766214493F;13/04/2021;332;0;1228;1;Spese correnti;3;Acquisto di beni e servizi;2;Acquisto di servizi;3;Aggi di riscossione;999;Altri aggi di riscossione n.a.c.;15/04/2021
1359;1;9999999;679,14;679,14;ASTON ENERGY SRL;Z7C281D20F;SALDO Fatt.n. 000018/PA  del 26/03/2021 MANUTENZIONE DEL GRUPPO STATICO DI CONTINUITA DELLA SEDE MUNICIPALE ANNO 2021;13/04/2021;548;0;539;1;Spese correnti;3;Acquisto di beni e servizi;2;Acquisto di servizi;9;Manutenzione ordinaria e riparazioni;4;Manutenzione ordinaria e riparazioni di impianti e macchinari;15/04/2021
1360;1;9999999;679,14;679,14;ASTON ENERGY SRL;Z7C281D20F;SALDO Fatt.n. 000017/PA  del 26/03/2021 MANUTENZIONE DEL GRUPPO STATICO DI CONTINUITA DELLA SEDE MUNICIPALE ANNO 2020;13/04/2021;548;0;539;1;Spese correnti;3;Acquisto di beni e servizi;2;Acquisto di servizi;9;Manutenzione ordinaria e riparazioni;4;Manutenzione ordinaria e riparazioni di impianti e macchinari;15/04/2021
1361;1;9999999;7.686,00;7.686,00;CHIP COMPUTERS SRL;Z20310A17E;SALDO Fatt.n. 43/7  del 24/03/2021 ACQUISTO LICENZE MICROSOFT 365 BUSINESS - STRUMENTI DI COLLABORAZIONE E CONDIVISIONE PER IL LAVORO AGILE - EMERGENZA COVID;13/04/2021;748;0;299;1;Spese correnti;3;Acquisto di beni e servizi;2;Acquisto di servizi;19;Servizi informatici e di telecomunicazioni;3;Servizi per l'interoperabilità e la cooperazione;15/04/2021
1362;1;9999999;60;60;INTERAZIONE SRL;Z5A30F7374;SALDO Fatt.n. 73/03  del 08/04/2021 PARTECIPAZIONE AL WEBINAR PRIMA GIORNATA FORMAZIONE INTEGRATA IVA DEL 16.03.2021 - FUNZIONARIO SETTORE ECONOMICO AMMINISTRATIVO;13/04/2021;833;0;291;1;Spese correnti;3;Acquisto di beni e servizi;2;Acquisto di servizi;4;Acquisto di servizi per formazione e addestramento del personale dell'ente;999;Acquisto di servizi per altre spese per formazione e addestramento n.a.c.;15/04/2021
1363;1;9999999;1.783,64;1.783,64;GLOBEX MVR S.R.L.;Z111FF33BF;SALDO Fatt.n. FATTPA 13_21  del 30/03/2021 NOLEGGIO CABINE VELO OK N. 17 BIMESTRE FEBBRAIO MARZO 2021;13/04/2021;1136;0;572;1;Spese correnti;3;Acquisto di beni e servizi;2;Acquisto di servizi;7;Utilizzo di beni di terzi;8;Noleggi di impianti e macchinari;15/04/2021
1364;1;9999999;97,6;97,6;GRAFICHE QUATTRO SRL;Z8B30B5BCB;SALDO Fatt.n. 000002-0CPAPA  del 04/03/2021 VOLANTINI PER UFFICIO INFORMA GIOVANI;13/04/2021;1831;0;162;1;Spese correnti;3;Acquisto di beni e servizi;2;Acquisto di servizi;2;Organizzazione eventi, pubblicita` e servizi per trasferta;999;Altre spese per relazioni pubbliche, convegni e mostre, pubblicita` n.a.c;15/04/2021
1365;1;9999999;495;495;R.C.M. RINASCITA COOP. MUSICALE;Z8530BEA4E;SALDO Fatt.n. 2021-D197P-0000019  del 07/04/2021 RASSEGNA SOTTOCOPERTA 3 DA CORSINI CARLO - ON LINE;13/04/2021;1849;0;169;1;Spese correnti;3;Acquisto di beni e servizi;2;Acquisto di servizi;99;Altri servizi;999;Altri servizi diversi n.a.c.;16/04/2021
1366;1;9999999;3.210,00;19.680,00;F.LLI LANDO SPA; ;SALDO Fatt.n. 181/98  del 22/03/2021 BUONI SPESA COVID;13/04/2021;4122;0;1329;1;Spese correnti;3;Acquisto di beni e servizi;1;Acquisto di beni;2;Altri beni di consumo;11;Generi alimentari;15/04/2021
1366;2;9999999;16.470,00;19.680,00;F.LLI LANDO SPA; ;SALDO Fatt.n. 182/98  del 22/03/2021 BUONI SPESA COVID;13/04/2021;4122;0;1329;1;Spese correnti;3;Acquisto di beni e servizi;1;Acquisto di beni;2;Altri beni di consumo;11;Generi alimentari;15/04/2021
1367;1;9999999;3.016,00;3.016,00;SCARABOTTOLO NADIA;Z222DCDD09;SALDO Fatt.n. 2PA  del 29/03/2021 SALDO PER IL COORDINAMENTO DELLA SICUREZZA IN ESECUZIONE RELATIVO ALL'INTERVENTO DI MESSA IN SICUREZZA DEL CENTRO ABITATO DI SANTA MARIA DI SALA;13/04/2021;8692;0;1275;2;Spese in conto capitale;2;Investimenti fissi lordi e acquisto di terreni;1;Beni materiali;9;Beni immobili;12;Infrastrutture stradali;16/04/2021
1368;1;9999999;3.973,20;3.973,20;BONAVENTURA EXPRESS SRL;84410227B5;ACCONTO Fatt.n. 57PA  del 31/03/2021 MARZO 2021 - TRASPORTO SCOLASTICO;13/04/2021;1344;0;780;1;Spese correnti;3;Acquisto di beni e servizi;2;Acquisto di servizi;15;Contratti di servizio pubblico;2;Contratti di servizio di trasporto scolastico;16/04/2021
1369;1;9999999;880;880;BONAVENTURA EXPRESS SRL;Z552F92CAE;SALDO Fatt.n. 58PA  del 31/03/2021 SANIFICAZIONE PER EMERGENZA COVID -19 - TRASPORTO SCOLASTICO MARZO 2021;13/04/2021;1344;0;1243;1;Spese correnti;3;Acquisto di beni e servizi;2;Acquisto di servizi;15;Contratti di servizio pubblico;999;Altre spese per contratti di servizio pubblico;16/04/2021
1370;1;9999999;4.840,00;4.840,00;BONAVENTURA EXPRESS SRL;84410227B5;SALDO Fatt.n. 57PA  del 31/03/2021 MARZO 2021 - TRASPORTO SCOLASTICO;13/04/2021;1344;0;1243;1;Spese correnti;3;Acquisto di beni e servizi;2;Acquisto di servizi;15;Contratti di servizio pubblico;999;Altre spese per contratti di servizio pubblico;16/04/2021
1372;1;9999999;1.200,00;1.200,00;LABS LABORATORIO SOLIDALE ONLUS; ;MARZO 2021 - CONTRIBUTO ECONOMICO AGLI ENTI DEL TERZO SETTORE PER LA COLLABORAZIONE AD ATTIVITA DI PUBBLICA UTILITA SOCIALE, SERVIZI AUSILIARI COLLEGATI ALLA SCUOLA.;13/04/2021;1257;0;159;1;Spese correnti;4;Trasferimenti correnti;4;Trasferimenti correnti a Istituzioni Sociali Private;1;Trasferimenti correnti a Istituzioni Sociali Private;1;Trasferimenti correnti a Istituzioni Sociali Private;16/04/2021
1373;1;9999999;2.195,00;2.195,00;MANO AMICA - GRUPPO SALESE DI IMPEGNO SOCIALE O.D.V.; ;MARZO 2021 - CONTRIBUTO ECONOMICO AGLI ENTI DEL TERZO SETTORE PER LA COLLABORAZIONE AD ATTIVITA DI PUBBLICA UTILITA SOCIALE, SERVIZI AUSILIARI COLLEGATI ALLA SCUOLA.;13/04/2021;1257;0;160;1;Spese correnti;4;Trasferimenti correnti;4;Trasferimenti correnti a Istituzioni Sociali Private;1;Trasferimenti correnti a Istituzioni Sociali Private;1;Trasferimenti correnti a Istituzioni Sociali Private;16/04/2021
1374;1;9999999;150;150;ASS.VOLONTARI PROT.CIVILE S.M. DI SALA ODV; ;MARZO 2021 - CONTRIBUTO ECONOMICO AGLI ENTI DEL TERZO SETTORE PER LA COLLABORAZIONE AD ATTIVITA DI PUBBLICA UTILITA SOCIALE, SERVIZI AUSILIARI COLLEGATI ALLA SCUOLA.;13/04/2021;1257;0;161;1;Spese correnti;4;Trasferimenti correnti;4;Trasferimenti correnti a Istituzioni Sociali Private;1;Trasferimenti correnti a Istituzioni Sociali Private;1;Trasferimenti correnti a Istituzioni Sociali Private;16/04/2021
1375;1;9999999;510,95;510,95;VIVIAN GIOVANNI; ;CONTRIBUTO REGIONALE BUONO LIBRI 20/21;13/04/2021;1357;50;290;1;Spese correnti;4;Trasferimenti correnti;2;Trasferimenti correnti a Famiglie;5;Altri trasferimenti a famiglie;999;Altri trasferimenti a famiglie n.a.c.;16/04/2021
1376;1;9999999;23,01;23,01;C/C/P 1039683022 ICP - PUBB.AFFISSIONI; ;SPESE GESTIONE CONTO POSTALE ICP E DPA RENDCONTO MARZO 2021;15/04/2021;146;0;0;1;Spese correnti;3;Acquisto di beni e servizi;2;Acquisto di servizi;17;Servizi finanziari;999;Spese per servizi finanziari n.a.c.;21/04/2021
1377;1;9999999;105,65;105,65;ABACO S.P.A.;Z4B0FF1CA6;SALDO Fatt.n. 2021140001250  del 02/04/2021 AGGIO RISCOSSIONE COATTIVA CDS LOTTO 1 RENDICONTO DELLA GESTIONE DAL 01/03/2021 A 31/03/2021 CIG Z4B0FF1CA6;15/04/2021;332;0;0;1;Spese correnti;3;Acquisto di beni e servizi;2;Acquisto di servizi;3;Aggi di riscossione;999;Altri aggi di riscossione n.a.c.;21/04/2021
1378;1;9999999;10,5;10,5;ABACO S.P.A.;5325258DE8;SALDO Fatt.n. 2021140001251  del 02/04/2021 AGGIO RISCOSSIONE COATTIVA ICI IMU E TASI LOTTO 6 RENDICONTO DELLA GESTIONE AL 31/03/2021 CIG.5325258DE8;15/04/2021;332;0;0;1;Spese correnti;3;Acquisto di beni e servizi;2;Acquisto di servizi;3;Aggi di riscossione;999;Altri aggi di riscossione n.a.c.;21/04/2021
1379;1;9999999;17,89;17,89;ABACO S.P.A.;766214493F;SALDO Fatt.n. 2021120001467  del 09/04/2021 AGGIO RISCOSSIONE COATTIVA ICP E DPA CONTO ABACO SPA RENDICONTO DELLA GESTIONE DAL 01/03/2021 A 31/03/2021 CIG 766214493F;15/04/2021;332;0;0;1;Spese correnti;3;Acquisto di beni e servizi;2;Acquisto di servizi;3;Aggi di riscossione;999;Altri aggi di riscossione n.a.c.;21/04/2021
1380;1;9999999;35,93;35,93;C/C/P 15453301 SERVIZIO DI TESORERIA COM; ;SPESE DI GESTIONE CONTO CORRENTE POSTALE MESE DI MARZO 2021;15/04/2021;146;0;0;1;Spese correnti;3;Acquisto di beni e servizi;2;Acquisto di servizi;17;Servizi finanziari;999;Spese per servizi finanziari n.a.c.;21/04/2021
1381;1;9999999;415;415;ABACO S.P.A.;766214493F;ACCONTO Fatt.n. 2021140001252  del 02/04/2021 AGGIO RISCOSSIONE COATTIVA INCASSI ICI IMU TASI LOTTO 10- 11-12_DET. 788-19RENDICONTO DELLA GESTIONE DAL 01/03/2021 A 31/03/2021 CIG766214493F;15/04/2021;332;0;26;1;Spese correnti;3;Acquisto di beni e servizi;2;Acquisto di servizi;3;Aggi di riscossione;999;Altri aggi di riscossione n.a.c.;21/04/2021
1382;1;9999999;71,71;71,71;ABACO S.P.A.;766214493F;SALDO Fatt.n. 2021140001252  del 02/04/2021 AGGIO RISCOSSIONE COATTIVA INCASSI ICI IMU TASI LOTTO 10- 11-12_DET. 788-19RENDICONTO DELLA GESTIONE DAL 01/03/2021 A 31/03/2021 CIG766214493F;15/04/2021;332;0;0;1;Spese correnti;3;Acquisto di beni e servizi;2;Acquisto di servizi;3;Aggi di riscossione;999;Altri aggi di riscossione n.a.c.;21/04/2021
1385;1;9999999;600;600;ASS.NE DI PROMOZIONE SOC. LA CASA SULL' ALBERO; ;ASSEGNAZIONE DI CONTRIBUTI ECONOMICI ALLE ASSOCIAZIONI CULTURALI  DEL TERRITORIO PER IL SOSTEGNO ALLE LORO ATTIVITA SOCIALI NEL 2021;19/04/2021;1859;0;328;1;Spese correnti;4;Trasferimenti correnti;4;Trasferimenti correnti a Istituzioni Sociali Private;1;Trasferimenti correnti a Istituzioni Sociali Private;1;Trasferimenti correnti a Istituzioni Sociali Private;22/04/2021
1386;1;9999999;500;500;CITY FOR YOU - C4U; ;ASSEGNAZIONE DI CONTRIBUTI ECONOMICI ALLE ASSOCIAZIONI CULTURALI  DEL TERRITORIO PER IL SOSTEGNO ALLE LORO ATTIVITA SOCIALI NEL 2021;19/04/2021;1859;0;329;1;Spese correnti;4;Trasferimenti correnti;4;Trasferimenti correnti a Istituzioni Sociali Private;1;Trasferimenti correnti a Istituzioni Sociali Private;1;Trasferimenti correnti a Istituzioni Sociali Private;22/04/2021
1387;1;9999999;300;300;L'ESDE - ASSOCIAZIONE CULTURALE DI STORIA LOCALE; ;ASSEGNAZIONE DI CONTRIBUTI ECONOMICI ALLE ASSOCIAZIONI CULTURALI  DEL TERRITORIO PER IL SOSTEGNO ALLE LORO ATTIVITA SOCIALI NEL 2021;19/04/2021;1859;0;330;1;Spese correnti;4;Trasferimenti correnti;4;Trasferimenti correnti a Istituzioni Sociali Private;1;Trasferimenti correnti a Istituzioni Sociali Private;1;Trasferimenti correnti a Istituzioni Sociali Private;22/04/2021
1388;1;9999999;500;500;GRUPPO ASTROFILI SALESE GALILEO GALILEI; ;ASSEGNAZIONE DI CONTRIBUTI ECONOMICI ALLE ASSOCIAZIONI CULTURALI  DEL TERRITORIO PER IL SOSTEGNO ALLE LORO ATTIVITA SOCIALI NEL 2021;19/04/2021;1859;0;331;1;Spese correnti;4;Trasferimenti correnti;4;Trasferimenti correnti a Istituzioni Sociali Private;1;Trasferimenti correnti a Istituzioni Sociali Private;1;Trasferimenti correnti a Istituzioni Sociali Private;22/04/2021
1389;1;9999999;250;250;F.B.F. IMPIANTI SRL;Z672E75E6E;ACCONTO Fatt.n. 55FPA  del 31/03/2021 CANONE MANUTENZIONE ORDINARIA  IMPIANTI MECCANICI - 2 TRIMESTRE STAGIONE 2020 -2021;19/04/2021;134;30;135;1;Spese correnti;3;Acquisto di beni e servizi;2;Acquisto di servizi;5;Utenze e canoni;6;Gas;22/04/2021
1390;1;9999999;2.250,00;2.250,00;F.B.F. IMPIANTI SRL;Z672E75E6E;ACCONTO Fatt.n. 55FPA  del 31/03/2021 CANONE MANUTENZIONE ORDINARIA  IMPIANTI MECCANICI - 2 TRIMESTRE STAGIONE 2020 -2021;19/04/2021;134;31;136;1;Spese correnti;3;Acquisto di beni e servizi;2;Acquisto di servizi;5;Utenze e canoni;6;Gas;22/04/2021
1391;1;9999999;439,64;439,64;C.E.I.F. DI BESSEGA VANNI;ZB9305D59C;SALDO Fatt.n. 1-3  del 31/03/2021 MATERIALE VARIO DI FERRAMENTA PER MANUTENZIONI;19/04/2021;522;0;58;1;Spese correnti;3;Acquisto di beni e servizi;1;Acquisto di beni;2;Altri beni di consumo;999;Altri beni e materiali di consumo n.a.c.;22/04/2021
1392;1;9999999;150;150;MAGGIOLI SPA;ZAF30E9735;SALDO Fatt.n. 0002112242  del 23/03/2021 RIVISTA I SERVIZI DEMOGRAFICI-PDF;19/04/2021;649;0;287;1;Spese correnti;3;Acquisto di beni e servizi;2;Acquisto di servizi;99;Altri servizi;3;Quote di associazioni;22/04/2021
1393;1;9999999;1.691,97;1.691,97;F.B.F. IMPIANTI SRL;Z672E75E6E;ACCONTO Fatt.n. 54FPA  del 31/03/2021 PERIODO 2-TRIMESTRE STAGIONE 2020/2021 SERVIZIO DI CONDUZIONE E MANUTENZIONE ORDINARIA DEGLI IMPIANTI TERMICI PALESTRE COMUNALI (INTEGRAZIONE IVA REVERSE CHARGE);19/04/2021;1334;30;143;1;Spese correnti;3;Acquisto di beni e servizi;2;Acquisto di servizi;5;Utenze e canoni;6;Gas;22/04/2021
1394;1;9999999;1.091,59;1.091,59;F.B.F. IMPIANTI SRL;Z672E75E6E;ACCONTO Fatt.n. 55FPA  del 31/03/2021 CANONE MANUTENZIONE ORDINARIA  IMPIANTI MECCANICI - 2 TRIMESTRE STAGIONE 2020 -2021;19/04/2021;1334;30;143;1;Spese correnti;3;Acquisto di beni e servizi;2;Acquisto di servizi;5;Utenze e canoni;6;Gas;22/04/2021
1395;1;9999999;244;244;JOLLY BOX SRL;Z642E237DF;SALDO Fatt.n. 1126-V0-2021  del 27/03/2021 NOLEGGIO DI 2 CONTAINER NAVALI PER LE SCUOLE COMUNALI  - MESE DI MARZO 2021;19/04/2021;1336;0;679;1;Spese correnti;3;Acquisto di beni e servizi;2;Acquisto di servizi;7;Utilizzo di beni di terzi;8;Noleggi di impianti e macchinari;22/04/2021
1396;1;9999999;1.100,00;1.100,00;F.B.F. IMPIANTI SRL;Z672E75E6E;ACCONTO Fatt.n. 55FPA  del 31/03/2021 CANONE MANUTENZIONE ORDINARIA  IMPIANTI MECCANICI - 2 TRIMESTRE STAGIONE 2020 -2021;19/04/2021;1834;0;137;1;Spese correnti;3;Acquisto di beni e servizi;2;Acquisto di servizi;5;Utenze e canoni;6;Gas;22/04/2021
1397;1;9999999;1.100,00;1.100,00;F.B.F. IMPIANTI SRL;Z672E75E6E;SALDO Fatt.n. 54FPA  del 31/03/2021 PERIODO 2-TRIMESTRE STAGIONE 2020/2021 SERVIZIO DI CONDUZIONE E MANUTENZIONE ORDINARIA DEGLI IMPIANTI TERMICI PALESTRE COMUNALI (INTEGRAZIONE IVA REVERSE CHARGE);19/04/2021;1934;0;138;1;Spese correnti;3;Acquisto di beni e servizi;2;Acquisto di servizi;5;Utenze e canoni;6;Gas;22/04/2021
1398;1;9999999;1.100,00;1.100,00;F.B.F. IMPIANTI SRL;Z672E75E6E;ACCONTO Fatt.n. 55FPA  del 31/03/2021 CANONE MANUTENZIONE ORDINARIA  IMPIANTI MECCANICI - 2 TRIMESTRE STAGIONE 2020 -2021;19/04/2021;1934;0;138;1;Spese correnti;3;Acquisto di beni e servizi;2;Acquisto di servizi;5;Utenze e canoni;6;Gas;22/04/2021
1399;1;9999999;4.819,00;4.819,00;SOCIETA'AGRICOLA VIVAI GARDIN S.S.;Z2630EF7A0;SALDO Fatt.n. 17/M  del 29/03/2021 INTERVENTO DI POTATURE CARPINI PRESSO VILLA FARSETTI;19/04/2021;2549;0;288;1;Spese correnti;3;Acquisto di beni e servizi;2;Acquisto di servizi;99;Altri servizi;9;Acquisto di sevizi per verde e arredo urbano;22/04/2021
1400;1;9999999;250;250;F.B.F. IMPIANTI SRL;Z672E75E6E;ACCONTO Fatt.n. 55FPA  del 31/03/2021 CANONE MANUTENZIONE ORDINARIA  IMPIANTI MECCANICI - 2 TRIMESTRE STAGIONE 2020 -2021;19/04/2021;3534;0;139;1;Spese correnti;3;Acquisto di beni e servizi;2;Acquisto di servizi;5;Utenze e canoni;6;Gas;22/04/2021
1401;1;9999999;1.100,00;1.100,00;F.B.F. IMPIANTI SRL;Z672E75E6E;SALDO Fatt.n. 55FPA  del 31/03/2021 CANONE MANUTENZIONE ORDINARIA  IMPIANTI MECCANICI - 2 TRIMESTRE STAGIONE 2020 -2021;19/04/2021;4234;0;140;1;Spese correnti;3;Acquisto di beni e servizi;2;Acquisto di servizi;5;Utenze e canoni;6;Gas;22/04/2021
1402;1;9999999;20.618,29;20.618,29;F.LLI SPAGGIARI SNC DI SPAGGIARI ALEX E C.;ZD82F635CF;SALDO Fatt.n. 38  del 19/03/2021 TELAIO E LASTRE DI MARMO CIMITERO CASELLE -  CHIUSURA LOCULI NEL CIMITERO DI SANTA MARIA DI SALA;19/04/2021;8020;0;1163;2;Spese in conto capitale;2;Investimenti fissi lordi e acquisto di terreni;1;Beni materiali;9;Beni immobili;15;Cimiteri;22/04/2021
1403;1;9999999;174.411,20;174.411,20;SALIMA SRL;8476261FD7;SALDO Fatt.n. 22 / PA  del 06/04/2021 INTERVENTI DI MANUTENZIONE STRAORDINARIA VIABILITA' EXTRAURBANA NEL TERRITORIO COMUNALE - CERTIFICATO DI PAGAMENTO N. 1;19/04/2021;8558;0;1203;2;Spese in conto capitale;2;Investimenti fissi lordi e acquisto di terreni;1;Beni materiali;9;Beni immobili;12;Infrastrutture stradali;22/04/2021
1404;1;9999999;5.412,00;5.412,00;BASSO SAS DI BASSO SANDRO;ZE53047B99;SALDO Fatt.n. 23  del 30/03/2021 REALIZZAZIONE DI NUOVE ISOLE SALVAGENTE ALL'INTERNO DEL COMUNE DI SANTA MARIA DI SALA;19/04/2021;8692;0;1275;2;Spese in conto capitale;2;Investimenti fissi lordi e acquisto di terreni;1;Beni materiali;9;Beni immobili;12;Infrastrutture stradali;22/04/2021
1405;1;9999999;8.186,72;8.186,72;DIVERSI-AMMINISTRATORI COM.LI; ;STIPENDI MESE DI APRILE 21;20/04/2021;30;99;0;1;Spese correnti;3;Acquisto di beni e servizi;2;Acquisto di servizi;1;Organi e incarichi istituzionali dell'amministrazione;1;Organi istituzionali dell'amministrazione - Indennità;27/04/2021
1498;1;9999999;5.312,18;5.312,18;LABS LABORATORIO SOLIDALE ONLUS; ;LIQUIDAZIONE SERVIZIO DI PULIZIA E DISINFEZIONE DI N.6 PALESTRE COMUNALI IN ORARIO SCOLASTICO PERIODO GENNAIO MARZO 2021;23/04/2021;1959;0;1341;1;Spese correnti;4;Trasferimenti correnti;4;Trasferimenti correnti a Istituzioni Sociali Private;1;Trasferimenti correnti a Istituzioni Sociali Private;1;Trasferimenti correnti a Istituzioni Sociali Private;27/04/2021
1499;1;9999999;10;10;COOP. ALLEANZA 3.0 SOC. COOPERATIVA; ;FORNITURA PRODOTTI DI PRIMA NECESSITA;23/04/2021;4122;0;1329;1;Spese correnti;3;Acquisto di beni e servizi;1;Acquisto di beni;2;Altri beni di consumo;11;Generi alimentari;27/04/2021
1500;1;9999999;100;100;CONSORZIO DI BONIFICA ACQUE RISORGIVE; ;POS.211/2021 - SPESE ISTRUTTORIA;23/04/2021;8563;0;1372;2;Spese in conto capitale;2;Investimenti fissi lordi e acquisto di terreni;1;Beni materiali;9;Beni immobili;12;Infrastrutture stradali;27/04/2021
1501;1;9999999;115;115;OMESSO NOMINATIVO NEL RISPETTO DELLA NORMATIVA SULLA PROTEZIONE DATI PERSONALI; ;APRILE 2021 COMPETENZE TIROCINIO INSERIMENTO LAVORATIVO;23/04/2021;4157;0;355;1;Spese correnti;4;Trasferimenti correnti;2;Trasferimenti correnti a Famiglie;2;Interventi assistenziali;999;Altri assegni e sussidi assistenziali;27/04/2021
1502;1;9999999;1.097,98;1.097,98;TIM SPA - TELECOM ITALIA SPA;ZE027DF92B;SALDO Fatt.n. 4220421800014557  del 12/04/2021 3 BIM 2021 - CONNETTIVITA FIBRA GBE;23/04/2021;134;0;379;1;Spese correnti;3;Acquisto di beni e servizi;2;Acquisto di servizi;5;Utenze e canoni;999;Utenze e canoni per altri servizi n.a.c.;27/04/2021
1503;1;9999999;57,73;1.367,30;TIM SPA - TELECOM ITALIA SPA;Z502F0ADA2;SALDO Fatt.n. 8E00237422  del 12/04/2021 3 BIM 2021 - UTENZA FAX SEDE MUNICIPALE;23/04/2021;134;0;944;1;Spese correnti;3;Acquisto di beni e servizi;2;Acquisto di servizi;5;Utenze e canoni;1;Telefonia fissa;27/04/2021
1503;2;9999999;61;1.367,30;TIM SPA - TELECOM ITALIA SPA;Z502F0ADA2;SALDO Fatt.n. 8E00237402  del 12/04/2021 3 BIM 2021 - UTENZA CENTRO PRELIEVI;23/04/2021;134;0;944;1;Spese correnti;3;Acquisto di beni e servizi;2;Acquisto di servizi;5;Utenze e canoni;1;Telefonia fissa;27/04/2021
1503;3;9999999;85,4;1.367,30;TIM SPA - TELECOM ITALIA SPA;Z502F0ADA2;SALDO Fatt.n. 8E00238350  del 12/04/2021 3 BIM 2021 - UTENZA POLIZIA LOCALE;23/04/2021;134;0;944;1;Spese correnti;3;Acquisto di beni e servizi;2;Acquisto di servizi;5;Utenze e canoni;1;Telefonia fissa;27/04/2021
1503;4;9999999;85,96;1.367,30;TIM SPA - TELECOM ITALIA SPA;Z502F0ADA2;SALDO Fatt.n. 8E00239540  del 12/04/2021 3 BIM 2021 UTENZA FAX BIBLIOTECA;23/04/2021;134;0;944;1;Spese correnti;3;Acquisto di beni e servizi;2;Acquisto di servizi;5;Utenze e canoni;1;Telefonia fissa;27/04/2021
1503;5;9999999;90,63;1.367,30;TIM SPA - TELECOM ITALIA SPA;Z502F0ADA2;SALDO Fatt.n. 8E00237774  del 12/04/2021 3 BIM 2021 - UTENZA BIBLIOTECA;23/04/2021;134;0;944;1;Spese correnti;3;Acquisto di beni e servizi;2;Acquisto di servizi;5;Utenze e canoni;1;Telefonia fissa;27/04/2021
1503;6;9999999;97,97;1.367,30;TIM SPA - TELECOM ITALIA SPA;Z502F0ADA2;SALDO Fatt.n. 8E00238884  del 12/04/2021 3 BIM 2021 - UTENZA CENTRO PRELIEVI;23/04/2021;134;0;944;1;Spese correnti;3;Acquisto di beni e servizi;2;Acquisto di servizi;5;Utenze e canoni;1;Telefonia fissa;27/04/2021
1503;7;9999999;125,66;1.367,30;TIM SPA - TELECOM ITALIA SPA;Z502F0ADA2;SALDO Fatt.n. 8E00237576  del 12/04/2021 3 BIM 2021 - UTENZA SEDE MUNICIPALE;23/04/2021;134;0;944;1;Spese correnti;3;Acquisto di beni e servizi;2;Acquisto di servizi;5;Utenze e canoni;1;Telefonia fissa;27/04/2021
1503;8;9999999;126,49;1.367,30;TIM SPA - TELECOM ITALIA SPA;Z502F0ADA2;SALDO Fatt.n. 8E00240470  del 12/04/2021 3 BIM 2021 - UTENZA SEDE MUNICIPALE;23/04/2021;134;0;944;1;Spese correnti;3;Acquisto di beni e servizi;2;Acquisto di servizi;5;Utenze e canoni;1;Telefonia fissa;27/04/2021
1503;9;9999999;164,29;1.367,30;TIM SPA - TELECOM ITALIA SPA;Z502F0ADA2;SALDO Fatt.n. 8E00237051  del 12/04/2021 3 BIM 2021 - UTENZA FAX POLIZIA LOCALE;23/04/2021;134;0;944;1;Spese correnti;3;Acquisto di beni e servizi;2;Acquisto di servizi;5;Utenze e canoni;1;Telefonia fissa;27/04/2021
1503;10;9999999;176,49;1.367,30;TIM SPA - TELECOM ITALIA SPA;Z502F0ADA2;SALDO Fatt.n. 8E00239860  del 12/04/2021 3 BIM 2021 - UTENZA SERVIZI SOCIALI;23/04/2021;134;0;944;1;Spese correnti;3;Acquisto di beni e servizi;2;Acquisto di servizi;5;Utenze e canoni;1;Telefonia fissa;27/04/2021
1503;11;9999999;295,68;1.367,30;TIM SPA - TELECOM ITALIA SPA;Z502F0ADA2;SALDO Fatt.n. 8E00237429  del 12/04/2021 3 BIM 2021 - UTENZA SEDE MUNICIPALE;23/04/2021;134;0;944;1;Spese correnti;3;Acquisto di beni e servizi;2;Acquisto di servizi;5;Utenze e canoni;1;Telefonia fissa;27/04/2021
1504;1;9999999;452,65;452,65;TIM SPA - TELECOM ITALIA SPA;ZEB27AA043;SALDO Fatt.n. 7X01397917  del 12/04/2021 3 BIM 2021 - CONVENZIONE CONSIP TELEFONIA MOBILE 7;23/04/2021;134;0;151;1;Spese correnti;3;Acquisto di beni e servizi;2;Acquisto di servizi;5;Utenze e canoni;2;Telefonia mobile;27/04/2021
1505;1;9999999;1.853,86;1.853,86;FORNITECNICA S.R.L.;Z88269EF2B;SALDO Fatt.n. 000226PA21  del 01/04/2021 COSTO COPIA PERIODO APRILE -GIUGNO 2021;23/04/2021;748;0;18;1;Spese correnti;3;Acquisto di beni e servizi;2;Acquisto di servizi;19;Servizi informatici e di telecomunicazioni;5;Servizi per i sistemi e relativa manutenzione;27/04/2021
1506;1;9999999;36,16;254,04;SONEPAR ITALIA  SPA;ZD1310D90B;SALDO Fatt.n. 0031066005  del 31/03/2021 MATERIALE ELETTRICO PER MANUTENZIONI;23/04/2021;3538;0;314;1;Spese correnti;3;Acquisto di beni e servizi;2;Acquisto di servizi;9;Manutenzione ordinaria e riparazioni;4;Manutenzione ordinaria e riparazioni di impianti e macchinari;27/04/2021
1506;2;9999999;217,88;254,04;SONEPAR ITALIA  SPA;ZD1310D90B;SALDO Fatt.n. 0031084146  del 02/04/2021 MATERIALE ELETTRICO PER MANUTENZIONI;23/04/2021;3538;0;314;1;Spese correnti;3;Acquisto di beni e servizi;2;Acquisto di servizi;9;Manutenzione ordinaria e riparazioni;4;Manutenzione ordinaria e riparazioni di impianti e macchinari;27/04/2021
1507;1;9999999;4.948,32;4.948,32;BUGGIN ANTONIO;ZFA2AF1CBA;SALDO Fatt.n. FATTPA 10_21  del 02/04/2021 VARIANTE GENERALE AL PIANO INTERVENTI;23/04/2021;8699;1;1265;2;Spese in conto capitale;2;Investimenti fissi lordi e acquisto di terreni;3;Beni immateriali;99;Spese di investimento per beni immateriali n.a.c.;1;Spese di investimento per beni immateriali n.a.c.;27/04/2021
1508;1;9999999;16.032,01;16.032,01;ABACO S.P.A.;766214493F;SALDO Fatt.n. 2021120001468  del 09/04/2021 AGGIO RISCOSSIONE E GESTIONI ICP E CUP SU INCASSI ENTE RENDICONTO DELLA GESTIONE DAL 01/03/2021 A 31/03/2021 CIG 766214493F;23/04/2021;332;0;1228;1;Spese correnti;3;Acquisto di beni e servizi;2;Acquisto di servizi;3;Aggi di riscossione;999;Altri aggi di riscossione n.a.c.;27/04/2021
1509;1;9999999;100;100;OMESSO NOMINATIVO NEL RISPETTO DELLA NORMATIVA SULLA PROTEZIONE DATI PERSONALI; ;APRILE 2021 MINIMO VITALE;26/04/2021;4157;0;373;1;Spese correnti;4;Trasferimenti correnti;2;Trasferimenti correnti a Famiglie;2;Interventi assistenziali;999;Altri assegni e sussidi assistenziali;30/04/2021
1510;1;9999999;100;100;OMESSO NOMINATIVO NEL RISPETTO DELLA NORMATIVA SULLA PROTEZIONE DATI PERSONALI; ;APRILE 2021 MINIMO VITALE;26/04/2021;4157;0;306;1;Spese correnti;4;Trasferimenti correnti;2;Trasferimenti correnti a Famiglie;2;Interventi assistenziali;999;Altri assegni e sussidi assistenziali;29/04/2021
1511;1;9999999;100;100;OMESSO NOMINATIVO NEL RISPETTO DELLA NORMATIVA SULLA PROTEZIONE DATI PERSONALI; ;APRILE 2021 MINIMO VITALE;26/04/2021;4157;0;361;1;Spese correnti;4;Trasferimenti correnti;2;Trasferimenti correnti a Famiglie;2;Interventi assistenziali;999;Altri assegni e sussidi assistenziali;11/05/2021
1512;1;9999999;150;150;OMESSO NOMINATIVO NEL RISPETTO DELLA NORMATIVA SULLA PROTEZIONE DATI PERSONALI; ;APRILE 2021 MINIMO VITALE;26/04/2021;4157;0;374;1;Spese correnti;4;Trasferimenti correnti;2;Trasferimenti correnti a Famiglie;2;Interventi assistenziali;999;Altri assegni e sussidi assistenziali;20/05/2021
1513;1;9999999;250;250;OMESSO NOMINATIVO NEL RISPETTO DELLA NORMATIVA SULLA PROTEZIONE DATI PERSONALI; ;APRILE 2021 MINIMO VITALE;26/04/2021;4157;0;375;1;Spese correnti;4;Trasferimenti correnti;2;Trasferimenti correnti a Famiglie;2;Interventi assistenziali;999;Altri assegni e sussidi assistenziali;29/04/2021
1514;1;9999999;600;600;OMESSO NOMINATIVO NEL RISPETTO DELLA NORMATIVA SULLA PROTEZIONE DATI PERSONALI; ;APRILE 2021 MINIMO VITALE;26/04/2021;4157;0;362;1;Spese correnti;4;Trasferimenti correnti;2;Trasferimenti correnti a Famiglie;2;Interventi assistenziali;999;Altri assegni e sussidi assistenziali;14/05/2021
1515;1;9999999;450;450;OMESSO NOMINATIVO NEL RISPETTO DELLA NORMATIVA SULLA PROTEZIONE DATI PERSONALI; ;APRILE 2021 MINIMO VITALE;26/04/2021;4157;0;363;1;Spese correnti;4;Trasferimenti correnti;2;Trasferimenti correnti a Famiglie;2;Interventi assistenziali;999;Altri assegni e sussidi assistenziali;29/04/2021
1516;1;9999999;150;150;OMESSO NOMINATIVO NEL RISPETTO DELLA NORMATIVA SULLA PROTEZIONE DATI PERSONALI; ;APRILE 2021 MINIMO VITALE;26/04/2021;4157;0;92;1;Spese correnti;4;Trasferimenti correnti;2;Trasferimenti correnti a Famiglie;2;Interventi assistenziali;999;Altri assegni e sussidi assistenziali;29/04/2021
1517;1;9999999;100;100;OMESSO NOMINATIVO NEL RISPETTO DELLA NORMATIVA SULLA PROTEZIONE DATI PERSONALI; ;APRILE 2021 MINIMO VITALE;26/04/2021;4157;51;147;1;Spese correnti;4;Trasferimenti correnti;2;Trasferimenti correnti a Famiglie;2;Interventi assistenziali;999;Altri assegni e sussidi assistenziali;29/04/2021
1518;1;9999999;150;150;OMESSO NOMINATIVO NEL RISPETTO DELLA NORMATIVA SULLA PROTEZIONE DATI PERSONALI; ;APRILE 2021 MINIMO VITALE;26/04/2021;4157;0;999;1;Spese correnti;4;Trasferimenti correnti;2;Trasferimenti correnti a Famiglie;2;Interventi assistenziali;999;Altri assegni e sussidi assistenziali;28/04/2021
1519;1;9999999;130;130;OMESSO NOMINATIVO NEL RISPETTO DELLA NORMATIVA SULLA PROTEZIONE DATI PERSONALI; ;APRILE 2021 MINIMO VITALE;26/04/2021;4157;0;376;1;Spese correnti;4;Trasferimenti correnti;2;Trasferimenti correnti a Famiglie;2;Interventi assistenziali;999;Altri assegni e sussidi assistenziali;28/05/2021
1520;1;9999999;100;100;OMESSO NOMINATIVO NEL RISPETTO DELLA NORMATIVA SULLA PROTEZIONE DATI PERSONALI; ;APRILE 2021 MINIMO VITALE;26/04/2021;4157;0;377;1;Spese correnti;4;Trasferimenti correnti;2;Trasferimenti correnti a Famiglie;2;Interventi assistenziali;999;Altri assegni e sussidi assistenziali;30/04/2021
1521;1;9999999;150;150;OMESSO NOMINATIVO NEL RISPETTO DELLA NORMATIVA SULLA PROTEZIONE DATI PERSONALI; ;APRILE 2021 MINIMO VITALE;26/04/2021;3957;54;148;1;Spese correnti;4;Trasferimenti correnti;2;Trasferimenti correnti a Famiglie;5;Altri trasferimenti a famiglie;999;Altri trasferimenti a famiglie n.a.c.;10/05/2021
1522;1;9999999;100;100;OMESSO NOMINATIVO NEL RISPETTO DELLA NORMATIVA SULLA PROTEZIONE DATI PERSONALI; ;APRILE 2021 MINIMO VITALE;26/04/2021;4157;0;364;1;Spese correnti;4;Trasferimenti correnti;2;Trasferimenti correnti a Famiglie;2;Interventi assistenziali;999;Altri assegni e sussidi assistenziali;05/05/2021
1523;1;9999999;200;200;OMESSO NOMINATIVO NEL RISPETTO DELLA NORMATIVA SULLA PROTEZIONE DATI PERSONALI; ;APRILE 2021 MINIMO VITALE;26/04/2021;4157;0;365;1;Spese correnti;4;Trasferimenti correnti;2;Trasferimenti correnti a Famiglie;2;Interventi assistenziali;999;Altri assegni e sussidi assistenziali;04/05/2021
1524;1;9999999;150;150;OMESSO NOMINATIVO NEL RISPETTO DELLA NORMATIVA SULLA PROTEZIONE DATI PERSONALI; ;APRILE 2021 MINIMO VITALE;26/04/2021;4157;0;366;1;Spese correnti;4;Trasferimenti correnti;2;Trasferimenti correnti a Famiglie;2;Interventi assistenziali;999;Altri assegni e sussidi assistenziali;06/05/2021
1525;1;9999999;200;200;OMESSO NOMINATIVO NEL RISPETTO DELLA NORMATIVA SULLA PROTEZIONE DATI PERSONALI; ;APRILE 2021 MINIMO VITALE;26/04/2021;4157;0;302;1;Spese correnti;4;Trasferimenti correnti;2;Trasferimenti correnti a Famiglie;2;Interventi assistenziali;999;Altri assegni e sussidi assistenziali;05/05/2021
1526;1;9999999;100;100;OMESSO NOMINATIVO NEL RISPETTO DELLA NORMATIVA SULLA PROTEZIONE DATI PERSONALI; ;APRILE 2021 MINIMO VITALE;26/04/2021;4157;0;378;1;Spese correnti;4;Trasferimenti correnti;2;Trasferimenti correnti a Famiglie;2;Interventi assistenziali;999;Altri assegni e sussidi assistenziali;05/05/2021
1527;1;9999999;200;200;OMESSO NOMINATIVO NEL RISPETTO DELLA NORMATIVA SULLA PROTEZIONE DATI PERSONALI; ;APRILE 2021 MINIMO VITALE;26/04/2021;4157;0;303;1;Spese correnti;4;Trasferimenti correnti;2;Trasferimenti correnti a Famiglie;2;Interventi assistenziali;999;Altri assegni e sussidi assistenziali;10/05/2021
1528;1;9999999;150;150;OMESSO NOMINATIVO NEL RISPETTO DELLA NORMATIVA SULLA PROTEZIONE DATI PERSONALI; ;APRILE 2021 MINIMO VITALE;26/04/2021;4157;0;1002;1;Spese correnti;4;Trasferimenti correnti;2;Trasferimenti correnti a Famiglie;2;Interventi assistenziali;999;Altri assegni e sussidi assistenziali;28/04/2021
1529;1;9999999;200;200;OMESSO NOMINATIVO NEL RISPETTO DELLA NORMATIVA SULLA PROTEZIONE DATI PERSONALI; ;APRILE 2021 MINIMO VITALE;26/04/2021;4157;0;305;1;Spese correnti;4;Trasferimenti correnti;2;Trasferimenti correnti a Famiglie;2;Interventi assistenziali;999;Altri assegni e sussidi assistenziali;04/05/2021
1530;1;9999999;140;140;OMESSO NOMINATIVO NEL RISPETTO DELLA NORMATIVA SULLA PROTEZIONE DATI PERSONALI; ;APRILE 2021 MINIMO VITALE;26/04/2021;4157;0;379;1;Spese correnti;4;Trasferimenti correnti;2;Trasferimenti correnti a Famiglie;2;Interventi assistenziali;999;Altri assegni e sussidi assistenziali;07/05/2021
1531;1;9999999;700;700;OMESSO NOMINATIVO NEL RISPETTO DELLA NORMATIVA SULLA PROTEZIONE DATI PERSONALI; ;PROGETTO RILEVANZA SOCIALE APRILE 2021;26/04/2021;4157;0;91;1;Spese correnti;4;Trasferimenti correnti;2;Trasferimenti correnti a Famiglie;2;Interventi assistenziali;999;Altri assegni e sussidi assistenziali;28/04/2021
1532;1;9999999;100;100;OMESSO NOMINATIVO NEL RISPETTO DELLA NORMATIVA SULLA PROTEZIONE DATI PERSONALI; ;APRILE 2021 MINIMO VITALE;26/04/2021;4157;51;147;1;Spese correnti;4;Trasferimenti correnti;2;Trasferimenti correnti a Famiglie;2;Interventi assistenziali;999;Altri assegni e sussidi assistenziali;05/05/2021
1533;1;9999999;243;243;OMESSO NOMINATIVO NEL RISPETTO DELLA NORMATIVA SULLA PROTEZIONE DATI PERSONALI; ;APRILE 2021 MINIMO VITALE (girocontabile rev.1350);26/04/2021;4157;0;368;1;Spese correnti;4;Trasferimenti correnti;2;Trasferimenti correnti a Famiglie;2;Interventi assistenziali;999;Altri assegni e sussidi assistenziali;28/04/2021
1534;1;9999999;150;150;OMESSO NOMINATIVO NEL RISPETTO DELLA NORMATIVA SULLA PROTEZIONE DATI PERSONALI; ;APRILE 2021 MINIMO VITALE;26/04/2021;4157;0;1004;1;Spese correnti;4;Trasferimenti correnti;2;Trasferimenti correnti a Famiglie;2;Interventi assistenziali;999;Altri assegni e sussidi assistenziali;30/04/2021
1535;1;9999999;100;100;OMESSO NOMINATIVO NEL RISPETTO DELLA NORMATIVA SULLA PROTEZIONE DATI PERSONALI; ;APRILE 2021 MINIMO VITALE;26/04/2021;4157;0;380;1;Spese correnti;4;Trasferimenti correnti;2;Trasferimenti correnti a Famiglie;2;Interventi assistenziali;999;Altri assegni e sussidi assistenziali;05/05/2021
1536;1;9999999;500;500;OMESSO NOMINATIVO NEL RISPETTO DELLA NORMATIVA SULLA PROTEZIONE DATI PERSONALI; ;APRILE 2021 MINIMO VITALE;26/04/2021;4157;0;369;1;Spese correnti;4;Trasferimenti correnti;2;Trasferimenti correnti a Famiglie;2;Interventi assistenziali;999;Altri assegni e sussidi assistenziali;28/04/2021
1537;1;9999999;500;500;OMESSO NOMINATIVO NEL RISPETTO DELLA NORMATIVA SULLA PROTEZIONE DATI PERSONALI; ;APRILE 2021 MINIMO VITALE;26/04/2021;4157;0;369;1;Spese correnti;4;Trasferimenti correnti;2;Trasferimenti correnti a Famiglie;2;Interventi assistenziali;999;Altri assegni e sussidi assistenziali;28/04/2021
1538;1;9999999;150;150;OMESSO NOMINATIVO NEL RISPETTO DELLA NORMATIVA SULLA PROTEZIONE DATI PERSONALI; ;APRILE 2021 MINIMO VITALE;26/04/2021;4157;0;1005;1;Spese correnti;4;Trasferimenti correnti;2;Trasferimenti correnti a Famiglie;2;Interventi assistenziali;999;Altri assegni e sussidi assistenziali;28/04/2021
1539;1;9999999;300;300;OMESSO NOMINATIVO NEL RISPETTO DELLA NORMATIVA SULLA PROTEZIONE DATI PERSONALI; ;APRILE 2021 MINIMO VITALE;26/04/2021;4157;0;370;1;Spese correnti;4;Trasferimenti correnti;2;Trasferimenti correnti a Famiglie;2;Interventi assistenziali;999;Altri assegni e sussidi assistenziali;05/05/2021
1540;1;9999999;100;100;OMESSO NOMINATIVO NEL RISPETTO DELLA NORMATIVA SULLA PROTEZIONE DATI PERSONALI; ;APRILE 2021 MINIMO VITALE;26/04/2021;4157;0;371;1;Spese correnti;4;Trasferimenti correnti;2;Trasferimenti correnti a Famiglie;2;Interventi assistenziali;999;Altri assegni e sussidi assistenziali;28/04/2021
1541;1;9999999;400;400;OMESSO NOMINATIVO NEL RISPETTO DELLA NORMATIVA SULLA PROTEZIONE DATI PERSONALI; ;APRILE 2021 MINIMO VITALE;26/04/2021;4157;0;372;1;Spese correnti;4;Trasferimenti correnti;2;Trasferimenti correnti a Famiglie;2;Interventi assistenziali;999;Altri assegni e sussidi assistenziali;10/05/2021
1542;1;9999999;831,5;831,5;MAG SPA;Z163065738;PAGAMENTO PREMIO DI REGOLAZIONE POLIZZA LIBRO MATRICOLA AUTOMEZZI COMUNALI RELATIVO AL PERIODO 31.12.2019-31.12.2020.;26/04/2021;992;0;65;1;Spese correnti;10;Altre spese correnti;4;Premi di assicurazione;1;Premi di assicurazione contro i danni;1;Premi di assicurazione su beni mobili;28/04/2021
1543;1;9999999;219,66;219,66;OMESSO NOMINATIVO NEL RISPETTO DELLA NORMATIVA SULLA PROTEZIONE DATI PERSONALI; ;riproposizione mandato non andato a buon fine CONTR.BUONO LIBRI (vedi mandato 1187);27/04/2021;1357;50;290;1;Spese correnti;4;Trasferimenti correnti;2;Trasferimenti correnti a Famiglie;5;Altri trasferimenti a famiglie;999;Altri trasferimenti a famiglie n.a.c.;30/04/2021
1544;1;9999999;200;200;OMESSO NOMINATIVO NEL RISPETTO DELLA NORMATIVA SULLA PROTEZIONE DATI PERSONALI; ;PROGETTO RIA - MESE DI MARZO 2021;27/04/2021;3957;54;146;1;Spese correnti;4;Trasferimenti correnti;2;Trasferimenti correnti a Famiglie;5;Altri trasferimenti a famiglie;999;Altri trasferimenti a famiglie n.a.c.;30/04/2021
1545;1;9999999;200;200;OMESSO NOMINATIVO NEL RISPETTO DELLA NORMATIVA SULLA PROTEZIONE DATI PERSONALI; ;PROGETTO RIA - MESE DI MARZO 2021;27/04/2021;3957;54;146;1;Spese correnti;4;Trasferimenti correnti;2;Trasferimenti correnti a Famiglie;5;Altri trasferimenti a famiglie;999;Altri trasferimenti a famiglie n.a.c.;05/05/2021
1546;1;9999999;200;200;OMESSO NOMINATIVO NEL RISPETTO DELLA NORMATIVA SULLA PROTEZIONE DATI PERSONALI; ;PROGETTO RIA - MESE DI MARZO 2021;27/04/2021;3957;54;146;1;Spese correnti;4;Trasferimenti correnti;2;Trasferimenti correnti a Famiglie;5;Altri trasferimenti a famiglie;999;Altri trasferimenti a famiglie n.a.c.;30/04/2021
1547;1;9999999;200;200;OMESSO NOMINATIVO NEL RISPETTO DELLA NORMATIVA SULLA PROTEZIONE DATI PERSONALI; ;PROGETTO RIA - MESE DI MARZO 2021;27/04/2021;3957;54;146;1;Spese correnti;4;Trasferimenti correnti;2;Trasferimenti correnti a Famiglie;5;Altri trasferimenti a famiglie;999;Altri trasferimenti a famiglie n.a.c.;30/04/2021
1548;1;9999999;200;200;OMESSO NOMINATIVO NEL RISPETTO DELLA NORMATIVA SULLA PROTEZIONE DATI PERSONALI; ;PROGETTO RIA - MESE DI MARZO 2021;27/04/2021;3957;54;146;1;Spese correnti;4;Trasferimenti correnti;2;Trasferimenti correnti a Famiglie;5;Altri trasferimenti a famiglie;999;Altri trasferimenti a famiglie n.a.c.;30/04/2021
1549;1;9999999;200;200;OMESSO NOMINATIVO NEL RISPETTO DELLA NORMATIVA SULLA PROTEZIONE DATI PERSONALI; ;PROGETTO RIA - MESE DI MARZO 2021;27/04/2021;3957;54;146;1;Spese correnti;4;Trasferimenti correnti;2;Trasferimenti correnti a Famiglie;5;Altri trasferimenti a famiglie;999;Altri trasferimenti a famiglie n.a.c.;05/05/2021
1550;1;9999999;200;200;OMESSO NOMINATIVO NEL RISPETTO DELLA NORMATIVA SULLA PROTEZIONE DATI PERSONALI; ;PROGETTO RIA - MESE DI MARZO 2021;27/04/2021;3957;54;146;1;Spese correnti;4;Trasferimenti correnti;2;Trasferimenti correnti a Famiglie;5;Altri trasferimenti a famiglie;999;Altri trasferimenti a famiglie n.a.c.;30/04/2021
1551;1;9999999;200;200;OMESSO NOMINATIVO NEL RISPETTO DELLA NORMATIVA SULLA PROTEZIONE DATI PERSONALI; ;PROGETTO RIA - MESE DI MARZO 2021;27/04/2021;3957;54;146;1;Spese correnti;4;Trasferimenti correnti;2;Trasferimenti correnti a Famiglie;5;Altri trasferimenti a famiglie;999;Altri trasferimenti a famiglie n.a.c.;30/04/2021
1743;1;9999999;12,59;12,59;MCTC MINISTERO INFRASTRUTTURE TRASPORTI; ;SALDO S000004722  del 14/04/2021 UTENZA SERVIZIO TELEMATICO ACCESSO ARCHIVI I TRIMESTRE 2021;29/04/2021;1134;0;43;1;Spese correnti;3;Acquisto di beni e servizi;2;Acquisto di servizi;5;Utenze e canoni;3;Accesso a banche dati e a pubblicazioni on line;03/05/2021
1744;1;9999999;9,82;9,82;COMUNE DI S.MARIA DI SALA; ;CONTRIBUTO IFEL RISCOSSIONE IMU RENDICONTO AL 29-04-2021;29/04/2021;332;0;0;1;Spese correnti;3;Acquisto di beni e servizi;2;Acquisto di servizi;3;Aggi di riscossione;999;Altri aggi di riscossione n.a.c.;03/05/2021
1745;1;9999999;7.435,20;7.435,20;SINERGO SPA;8510456A74;ACCONTO Fatt.n. 108  del 30/03/2021 INCARICO DI SERVIZIO PROGETTAZIONE DEFINITIVA - ESECUTIVA,  DIREZIONE LAVORI PER INTERVENTO DI CONSOLIDAMENTO  IN CEMENTO ARMATO  E RIQUALIFICAZIONE PALESTRA SMS;29/04/2021;8469;0;1013;2;Spese in conto capitale;2;Investimenti fissi lordi e acquisto di terreni;1;Beni materiali;9;Beni immobili;16;Impianti sportivi;03/05/2021
1746;1;9999999;7.435,20;7.435,20;SINERGO SPA;8510456A74;SALDO Fatt.n. 108  del 30/03/2021 INCARICO DI SERVIZIO PROGETTAZIONE DEFINITIVA - ESECUTIVA,  DIREZIONE LAVORI PER INTERVENTO DI CONSOLIDAMENTO  IN CEMENTO ARMATO  E RIQUALIFICAZIONE PALESTRA SMS;29/04/2021;8469;0;1013;2;Spese in conto capitale;2;Investimenti fissi lordi e acquisto di terreni;1;Beni materiali;9;Beni immobili;16;Impianti sportivi;03/05/2021
1747;1;9999999;280;280;ZORZATO ANGELO ORTOFRUTTA; ;FORNITURA GENERI DI PRIMA NECESSITA;29/04/2021;4122;0;1329;1;Spese correnti;3;Acquisto di beni e servizi;1;Acquisto di beni;2;Altri beni di consumo;11;Generi alimentari;03/05/2021
1749;1;9999999;4.479,39;4.479,39;F.M.S.  S.R.L. - FRATELLI MICHIELETTO STRADE;8,34E+12;ACCONTO Fatt.n. 2021-AFAT4-0000010  del 12/04/2021 INTERVENTO DI MESSA IN SICUREZZA DEL CENTRO ABITATO DI SANTA MARIA DI SALA - STATO AVANZAMENTO LAVORI N. 2  CORRISPONDENTE AL FINALE;04/05/2021;8692;0;1275;2;Spese in conto capitale;2;Investimenti fissi lordi e acquisto di terreni;1;Beni materiali;9;Beni immobili;12;Infrastrutture stradali;06/05/2021
1750;1;9999999;3.500,00;3.500,00;F.M.S.  S.R.L. - FRATELLI MICHIELETTO STRADE;8,34E+12;ACCONTO Fatt.n. 2021-AFAT4-0000010  del 12/04/2021 INTERVENTO DI MESSA IN SICUREZZA DEL CENTRO ABITATO DI SANTA MARIA DI SALA - STATO AVANZAMENTO LAVORI N. 2  CORRISPONDENTE AL FINALE;04/05/2021;8692;0;1275;2;Spese in conto capitale;2;Investimenti fissi lordi e acquisto di terreni;1;Beni materiali;9;Beni immobili;12;Infrastrutture stradali;06/05/2021
1751;1;9999999;12.936,32;12.936,32;F.M.S.  S.R.L. - FRATELLI MICHIELETTO STRADE;8,34E+12;ACCONTO Fatt.n. 2021-AFAT4-0000010  del 12/04/2021 INTERVENTO DI MESSA IN SICUREZZA DEL CENTRO ABITATO DI SANTA MARIA DI SALA - STATO AVANZAMENTO LAVORI N. 2  CORRISPONDENTE AL FINALE;04/05/2021;8692;0;1275;2;Spese in conto capitale;2;Investimenti fissi lordi e acquisto di terreni;1;Beni materiali;9;Beni immobili;12;Infrastrutture stradali;06/05/2021
1752;1;9999999;35.000,00;35.000,00;F.M.S.  S.R.L. - FRATELLI MICHIELETTO STRADE;8,34E+12;SALDO Fatt.n. 2021-AFAT4-0000010  del 12/04/2021 INTERVENTO DI MESSA IN SICUREZZA DEL CENTRO ABITATO DI SANTA MARIA DI SALA - STATO AVANZAMENTO LAVORI N. 2  CORRISPONDENTE AL FINALE;04/05/2021;8692;0;1275;2;Spese in conto capitale;2;Investimenti fissi lordi e acquisto di terreni;1;Beni materiali;9;Beni immobili;12;Infrastrutture stradali;06/05/2021
1753;1;9999999;3.589,13;3.589,13;ECOLOGY COOP SPA;Z952CA2711;SALDO Fatt.n. 57PA  del 12/04/2021 SERVIZIO ORDINARIO DI PULIZIA UFFICI COMUNALI  -  MARZO 2021;04/05/2021;142;0;441;1;Spese correnti;3;Acquisto di beni e servizi;2;Acquisto di servizi;13;Servizi ausiliari per il funzionamento dell'ente;2;Servizi di pulizia e lavanderia;06/05/2021
1754;1;9999999;292,8;292,8;VEDETTA 2 MONDIALPOL SPA;Z5A29219B1;ACCONTO Fatt.n. VZ-5282  del 07/04/2021 PERIODO GENNAIO  - MARZO 2021- SERVIZIO DI VIGILANZA MAGAZZINO COMUNALE - PROTEZIONE CIVILE  VIA FERRARIS 1 - SMS;04/05/2021;548;0;780;1;Spese correnti;3;Acquisto di beni e servizi;2;Acquisto di servizi;9;Manutenzione ordinaria e riparazioni;8;Manutenzione ordinaria e riparazioni di beni immobili;06/05/2021
1755;1;9999999;490,44;490,44;ASSA ABLOY ENTRANCE SYSTEMS ITALY SRL;ZB830D35B9;SALDO Fatt.n. 000047/PA  del 09/04/2021  MANUTENZIONE PORTE AUTOMATICHE SCORREVOLI;04/05/2021;548;0;175;1;Spese correnti;3;Acquisto di beni e servizi;2;Acquisto di servizi;9;Manutenzione ordinaria e riparazioni;4;Manutenzione ordinaria e riparazioni di impianti e macchinari;06/05/2021
1756;1;9999999;2.251,18;6.841,70;SODEXO ITALIA SPA;78886743B9;SALDO Fatt.n. 6400012924  del 31/03/2021 MARZO 2021 - PASTI  SCUOLE MATERNE BAMBINI E INSEGNANTI;04/05/2021;1344;0;543;1;Spese correnti;3;Acquisto di beni e servizi;2;Acquisto di servizi;15;Contratti di servizio pubblico;6;Contratti di servizio per le mense scolastiche;06/05/2021
1756;2;9999999;4.590,52;6.841,70;SODEXO ITALIA SPA;78886743B9;SALDO Fatt.n. 6400012925  del 31/03/2021 MARZO 2021 - PASTI TRASPORTATI SCUOLE BAMBINI E INSEGNANTI;04/05/2021;1344;0;543;1;Spese correnti;3;Acquisto di beni e servizi;2;Acquisto di servizi;15;Contratti di servizio pubblico;6;Contratti di servizio per le mense scolastiche;06/05/2021
1757;1;9999999;457,5;457,5;SYSTEMDOC SRL;ZAD311DDF3;SALDO Fatt.n. 24-PA  del 14/04/2021 FORNITURA E STAMPA VOLANTINI SERVIZIO INFORMAGIOVANI;04/05/2021;1831;0;327;1;Spese correnti;3;Acquisto di beni e servizi;2;Acquisto di servizi;2;Organizzazione eventi, pubblicita` e servizi per trasferta;999;Altre spese per relazioni pubbliche, convegni e mostre, pubblicita` n.a.c;06/05/2021
1758;1;9999999;72,79;72,79;IDRONORD SRL;ZAF3049734;SALDO Fatt.n. 710  del 31/03/2021 MATERIALI EDILI PER MANUTENZIONI;04/05/2021;3538;0;49;1;Spese correnti;3;Acquisto di beni e servizi;2;Acquisto di servizi;9;Manutenzione ordinaria e riparazioni;8;Manutenzione ordinaria e riparazioni di beni immobili;06/05/2021
1759;1;9999999;1.088,40;1.088,40;EPIU' SRL - COSTRUIRE INSIEME;Z4230934B4;SALDO Fatt.n. 7049  del 31/03/2021 MATERIALI EDILI PER MANUTENZIONI;04/05/2021;3538;0;167;1;Spese correnti;3;Acquisto di beni e servizi;2;Acquisto di servizi;9;Manutenzione ordinaria e riparazioni;8;Manutenzione ordinaria e riparazioni di beni immobili;06/05/2021
1760;1;9999999;97,66;97,66;ENI SPA DIVISIONE REFINING & MARKETING;ZA2305CE6E;ACCONTO Fatt.n. 29307462  del 31/03/2021 MARZO 2021 - FORNITURA METANO;04/05/2021;4121;0;57;1;Spese correnti;3;Acquisto di beni e servizi;1;Acquisto di beni;2;Altri beni di consumo;2;Carburanti, combustibili e lubrificanti;05/05/2021
1761;1;9999999;18,19;18,19;ENI SPA DIVISIONE REFINING & MARKETING;ZA2305CE6E;SALDO Fatt.n. 29307462  del 31/03/2021 MARZO 2021 - FORNITURA METANO;04/05/2021;4121;0;57;1;Spese correnti;3;Acquisto di beni e servizi;1;Acquisto di beni;2;Altri beni di consumo;2;Carburanti, combustibili e lubrificanti;06/05/2021
1762;1;9999999;146,4;146,4;VEDETTA 2 MONDIALPOL SPA;Z5A29219B1;SALDO Fatt.n. VZ-5282  del 07/04/2021 PERIODO GENNAIO  - MARZO 2021- SERVIZIO DI VIGILANZA MAGAZZINO COMUNALE - PROTEZIONE CIVILE  VIA FERRARIS 1 - SMS;04/05/2021;548;0;780;1;Spese correnti;3;Acquisto di beni e servizi;2;Acquisto di servizi;9;Manutenzione ordinaria e riparazioni;8;Manutenzione ordinaria e riparazioni di beni immobili;06/05/2021
1763;1;9999999;43,07;1.049,68;ENEL ENERGIA SPA;8426072694;SALDO Fatt.n. 004122630794  del 08/04/2021 MARZO 2021 - CONSUMI ALLOGGIO VIA DON GALLERANI - CALTANA;04/05/2021;134;31;111;1;Spese correnti;3;Acquisto di beni e servizi;2;Acquisto di servizi;5;Utenze e canoni;4;Energia elettrica;06/05/2021
1763;2;9999999;52,4;1.049,68;ENEL ENERGIA SPA;8426072694;SALDO Fatt.n. 004128921895  del 15/04/2021 MARZO 2021 - CONSUMI ALLOGGIO VIA OLIMPIA SMS;04/05/2021;134;31;111;1;Spese correnti;3;Acquisto di beni e servizi;2;Acquisto di servizi;5;Utenze e canoni;4;Energia elettrica;06/05/2021
1763;3;9999999;83,58;1.049,68;ENEL ENERGIA SPA;8426072694;SALDO Fatt.n. 004122630856  del 08/04/2021 MARZO 2021 - CONSUMI MERCATO CALTANA;04/05/2021;134;31;111;1;Spese correnti;3;Acquisto di beni e servizi;2;Acquisto di servizi;5;Utenze e canoni;4;Energia elettrica;06/05/2021
1763;4;9999999;99,8;1.049,68;ENEL ENERGIA SPA;8426072694;SALDO Fatt.n. 004122630811  del 08/04/2021 MARZO 2021 - CONSUMI FONTANA VETERNIGO;04/05/2021;134;31;111;1;Spese correnti;3;Acquisto di beni e servizi;2;Acquisto di servizi;5;Utenze e canoni;4;Energia elettrica;06/05/2021
1763;5;9999999;104,36;1.049,68;ENEL ENERGIA SPA;8426072694;SALDO Fatt.n. 004122630823  del 08/04/2021 MARZO 2021 - CONSUMI PARCHEGGIO OVALE SMS;04/05/2021;134;31;111;1;Spese correnti;3;Acquisto di beni e servizi;2;Acquisto di servizi;5;Utenze e canoni;4;Energia elettrica;06/05/2021
1763;6;9999999;123,39;1.049,68;ENEL ENERGIA SPA;8426072694;SALDO Fatt.n. 004122630753  del 08/04/2021 MARZO 2021 - CONSUMI MERCATO SMS;04/05/2021;134;31;111;1;Spese correnti;3;Acquisto di beni e servizi;2;Acquisto di servizi;5;Utenze e canoni;4;Energia elettrica;06/05/2021
1763;7;9999999;129,47;1.049,68;ENEL ENERGIA SPA;8426072694;SALDO Fatt.n. 004122630819  del 08/04/2021 MARZO 2021 - CONSUMI PIAZZA S.D.A. CALTANA;04/05/2021;134;31;111;1;Spese correnti;3;Acquisto di beni e servizi;2;Acquisto di servizi;5;Utenze e canoni;4;Energia elettrica;06/05/2021
1763;8;9999999;129,83;1.049,68;ENEL ENERGIA SPA;8426072694;SALDO Fatt.n. 004122630746  del 08/04/2021 MARZO 2021 - CONSUMI ILLUMINAZIONE PUBBLICA;04/05/2021;134;31;111;1;Spese correnti;3;Acquisto di beni e servizi;2;Acquisto di servizi;5;Utenze e canoni;4;Energia elettrica;06/05/2021
1763;9;9999999;283,78;1.049,68;ENEL ENERGIA SPA;8426072694;SALDO Fatt.n. 004122630853  del 08/04/2021 MARZO 2021 - CONSUMI PARCHEGGIO C.C. PRISMA CASELLE;04/05/2021;134;31;111;1;Spese correnti;3;Acquisto di beni e servizi;2;Acquisto di servizi;5;Utenze e canoni;4;Energia elettrica;06/05/2021
1764;1;9999999;1.177,53;1.177,53;ENEL ENERGIA SPA;8426072694;SALDO Fatt.n. 004122630773  del 08/04/2021 MARZO 2021 - CONSUMI SEDE MUNICIPALE;04/05/2021;134;31;111;1;Spese correnti;3;Acquisto di beni e servizi;2;Acquisto di servizi;5;Utenze e canoni;4;Energia elettrica;06/05/2021
1765;1;9999999;4,67;4,67;ENEL ENERGIA SPA;8426072694;ACCONTO Fatt.n. 004122630777  del 08/04/2021 MARZO 2021 - CONSUMI CIMITERO CALTANA - LAMPADE VOTIVE;04/05/2021;134;31;111;1;Spese correnti;3;Acquisto di beni e servizi;2;Acquisto di servizi;5;Utenze e canoni;4;Energia elettrica;06/05/2021
1766;1;9999999;4,83;4,83;ENEL ENERGIA SPA;8426072694;ACCONTO Fatt.n. 004122630764  del 08/04/2021 MARZO 2021 - CONSUMI CIMITERO SMS - LAMPADE VOTIVE;04/05/2021;134;31;111;1;Spese correnti;3;Acquisto di beni e servizi;2;Acquisto di servizi;5;Utenze e canoni;4;Energia elettrica;06/05/2021
1767;1;9999999;6,44;6,44;ENEL ENERGIA SPA;8426072694;ACCONTO Fatt.n. 004125821434  del 11/04/2021 MARZO 2021 - CONSUMI CIMITERO CASELLE - LAMPADE VOTIVE;04/05/2021;134;31;111;1;Spese correnti;3;Acquisto di beni e servizi;2;Acquisto di servizi;5;Utenze e canoni;4;Energia elettrica;06/05/2021
1768;1;9999999;3,63;3,63;ENEL ENERGIA SPA;8426072694;ACCONTO Fatt.n. 004122630841  del 08/04/2021 MARZO 2021 - CONSUMI CIMITERO VETERNIGO - LAMPADE VOTIVE;04/05/2021;134;31;111;1;Spese correnti;3;Acquisto di beni e servizi;2;Acquisto di servizi;5;Utenze e canoni;4;Energia elettrica;06/05/2021
1769;1;9999999;3,96;3,96;ENEL ENERGIA SPA;8426072694;ACCONTO Fatt.n. 004122630835  del 08/04/2021 MARZO 2021 - CONSUMI CIMITERO S,ANGELO - LAMPADE VOTIVE;04/05/2021;134;31;111;1;Spese correnti;3;Acquisto di beni e servizi;2;Acquisto di servizi;5;Utenze e canoni;4;Energia elettrica;06/05/2021
1770;1;9999999;68,25;2.480,52;ENEL ENERGIA SPA;8426072694;SALDO Fatt.n. 004122630806  del 08/04/2021 MARZO 2021 - CONSUMI SC. ELEM. SMS;04/05/2021;1334;30;112;1;Spese correnti;3;Acquisto di beni e servizi;2;Acquisto di servizi;5;Utenze e canoni;4;Energia elettrica;06/05/2021
1770;2;9999999;245,87;2.480,52;ENEL ENERGIA SPA;8426072694;SALDO Fatt.n. 004122630833  del 08/04/2021 MARZO 2021 - CONSUMI SCUOLA ELEM. CALTANA;04/05/2021;1334;30;112;1;Spese correnti;3;Acquisto di beni e servizi;2;Acquisto di servizi;5;Utenze e canoni;4;Energia elettrica;06/05/2021
1770;3;9999999;404,34;2.480,52;ENEL ENERGIA SPA;8426072694;SALDO Fatt.n. 004122630810  del 08/04/2021 MARZO 2021 - CONSUMI SC. ELEMENTARE CASELLE;04/05/2021;1334;30;112;1;Spese correnti;3;Acquisto di beni e servizi;2;Acquisto di servizi;5;Utenze e canoni;4;Energia elettrica;06/05/2021
1770;4;9999999;1.762,06;2.480,52;ENEL ENERGIA SPA;8426072694;SALDO Fatt.n. 004122630847  del 08/04/2021 MARZO 2021 - CONSUMI SCUOLA MEDIA SMS;04/05/2021;1334;30;112;1;Spese correnti;3;Acquisto di beni e servizi;2;Acquisto di servizi;5;Utenze e canoni;4;Energia elettrica;06/05/2021
1771;1;9999999;170,49;170,49;ENEL ENERGIA SPA;8426072694;ACCONTO Fatt.n. 004122630862  del 08/04/2021 MARZO 2021 - CONSUMI PALESTRA SMS;04/05/2021;1334;30;112;1;Spese correnti;3;Acquisto di beni e servizi;2;Acquisto di servizi;5;Utenze e canoni;4;Energia elettrica;06/05/2021
1772;1;9999999;289,26;289,26;ENEL ENERGIA SPA;8426072694;ACCONTO Fatt.n. 004122630824  del 08/04/2021 MARZO 2021 - CONSUMI PALESTRA CALTANA;04/05/2021;1334;30;112;1;Spese correnti;3;Acquisto di beni e servizi;2;Acquisto di servizi;5;Utenze e canoni;4;Energia elettrica;06/05/2021
1773;1;9999999;77,6;77,6;ENEL ENERGIA SPA;8426072694;ACCONTO Fatt.n. 004122630803  del 08/04/2021 MARZO 2021 - CONSUMI PALESTRA CASELLE;04/05/2021;1334;30;112;1;Spese correnti;3;Acquisto di beni e servizi;2;Acquisto di servizi;5;Utenze e canoni;4;Energia elettrica;06/05/2021
1774;1;9999999;215;215;ENEL ENERGIA SPA;8426072694;ACCONTO Fatt.n. 004122630751  del 08/04/2021 MARZO 2021 - CONSUMI SC. ELEMEN.- PALESTRA VETERNIGO;04/05/2021;1334;30;112;1;Spese correnti;3;Acquisto di beni e servizi;2;Acquisto di servizi;5;Utenze e canoni;4;Energia elettrica;06/05/2021
1775;1;9999999;349,19;349,19;ENEL ENERGIA SPA;8426072694;ACCONTO Fatt.n. 004122630751  del 08/04/2021 MARZO 2021 - CONSUMI SC. ELEMEN.- PALESTRA VETERNIGO;04/05/2021;1334;30;112;1;Spese correnti;3;Acquisto di beni e servizi;2;Acquisto di servizi;5;Utenze e canoni;4;Energia elettrica;06/05/2021
1776;1;9999999;155;155;ENEL ENERGIA SPA;8426072694;ACCONTO Fatt.n. 004122630815  del 08/04/2021 MARZO 2021 - CONSUMI SC. ELEM-PALESTRA STIGLIANO;04/05/2021;1334;30;112;1;Spese correnti;3;Acquisto di beni e servizi;2;Acquisto di servizi;5;Utenze e canoni;4;Energia elettrica;06/05/2021
1777;1;9999999;132,85;132,85;ENEL ENERGIA SPA;8426072694;ACCONTO Fatt.n. 004122630815  del 08/04/2021 MARZO 2021 - CONSUMI SC. ELEM-PALESTRA STIGLIANO;04/05/2021;1334;30;112;1;Spese correnti;3;Acquisto di beni e servizi;2;Acquisto di servizi;5;Utenze e canoni;4;Energia elettrica;06/05/2021
1778;1;9999999;221;221;ENEL ENERGIA SPA;8426072694;ACCONTO Fatt.n. 004122630857  del 08/04/2021 MARZO 2021 - CONSUMI SC. ELEM - PALESTRA-ASILO S.ANGELO;04/05/2021;1334;30;112;1;Spese correnti;3;Acquisto di beni e servizi;2;Acquisto di servizi;5;Utenze e canoni;4;Energia elettrica;06/05/2021
1779;1;9999999;662,08;662,08;ENEL ENERGIA SPA;8426072694;ACCONTO Fatt.n. 004122630857  del 08/04/2021 MARZO 2021 - CONSUMI SC. ELEM - PALESTRA-ASILO S.ANGELO;04/05/2021;1334;30;112;1;Spese correnti;3;Acquisto di beni e servizi;2;Acquisto di servizi;5;Utenze e canoni;4;Energia elettrica;06/05/2021
1780;1;9999999;488,76;488,76;ENEL ENERGIA SPA;8426072694;SALDO Fatt.n. 004122630832  del 08/04/2021 MARZO 2021 - CONSUMI VILLA FARSETTI;04/05/2021;1834;0;113;1;Spese correnti;3;Acquisto di beni e servizi;2;Acquisto di servizi;5;Utenze e canoni;4;Energia elettrica;06/05/2021
1781;1;9999999;115,49;115,49;ENEL ENERGIA SPA;8426072694;SALDO Fatt.n. 004122630838  del 08/04/2021 MARZO 2021 - CONSUMI IMP. SPORT. SMS;04/05/2021;1934;0;114;1;Spese correnti;3;Acquisto di beni e servizi;2;Acquisto di servizi;5;Utenze e canoni;4;Energia elettrica;06/05/2021
1782;1;9999999;111,98;111,98;ENEL ENERGIA SPA;8426072694;SALDO Fatt.n. 004122630776  del 08/04/2021 MARZO 2021 - CONSUMI IMO. SPORT.CASELLE;04/05/2021;1934;0;114;1;Spese correnti;3;Acquisto di beni e servizi;2;Acquisto di servizi;5;Utenze e canoni;4;Energia elettrica;06/05/2021
1783;1;9999999;170,48;170,48;ENEL ENERGIA SPA;8426072694;SALDO Fatt.n. 004122630862  del 08/04/2021 MARZO 2021 - CONSUMI PALESTRA SMS;04/05/2021;1934;0;114;1;Spese correnti;3;Acquisto di beni e servizi;2;Acquisto di servizi;5;Utenze e canoni;4;Energia elettrica;06/05/2021
1784;1;9999999;289,26;289,26;ENEL ENERGIA SPA;8426072694;SALDO Fatt.n. 004122630824  del 08/04/2021 MARZO 2021 - CONSUMI PALESTRA CALTANA;04/05/2021;1934;0;114;1;Spese correnti;3;Acquisto di beni e servizi;2;Acquisto di servizi;5;Utenze e canoni;4;Energia elettrica;06/05/2021
1785;1;9999999;77,6;77,6;ENEL ENERGIA SPA;8426072694;SALDO Fatt.n. 004122630803  del 08/04/2021 MARZO 2021 - CONSUMI PALESTRA CASELLE;04/05/2021;1934;0;114;1;Spese correnti;3;Acquisto di beni e servizi;2;Acquisto di servizi;5;Utenze e canoni;4;Energia elettrica;06/05/2021
1786;1;9999999;215;215;ENEL ENERGIA SPA;8426072694;SALDO Fatt.n. 004122630751  del 08/04/2021 MARZO 2021 - CONSUMI SC. ELEMEN.- PALESTRA VETERNIGO;04/05/2021;1934;0;114;1;Spese correnti;3;Acquisto di beni e servizi;2;Acquisto di servizi;5;Utenze e canoni;4;Energia elettrica;06/05/2021
1787;1;9999999;155;155;ENEL ENERGIA SPA;8426072694;SALDO Fatt.n. 004122630815  del 08/04/2021 MARZO 2021 - CONSUMI SC. ELEM-PALESTRA STIGLIANO;04/05/2021;1934;0;114;1;Spese correnti;3;Acquisto di beni e servizi;2;Acquisto di servizi;5;Utenze e canoni;4;Energia elettrica;06/05/2021
1788;1;9999999;221;221;ENEL ENERGIA SPA;8426072694;SALDO Fatt.n. 004122630857  del 08/04/2021 MARZO 2021 - CONSUMI SC. ELEM - PALESTRA-ASILO S.ANGELO;04/05/2021;1934;0;114;1;Spese correnti;3;Acquisto di beni e servizi;2;Acquisto di servizi;5;Utenze e canoni;4;Energia elettrica;06/05/2021
1789;1;9999999;310,69;310,69;ENEL ENERGIA SPA;8426072694;SALDO Fatt.n. 004122630809  del 08/04/2021 MARZO 2021 - CONSUMI MAGAZZINO COMUNALE;04/05/2021;3534;0;116;1;Spese correnti;3;Acquisto di beni e servizi;2;Acquisto di servizi;5;Utenze e canoni;4;Energia elettrica;06/05/2021
1790;1;9999999;23,94;23,94;ENEL ENERGIA SPA;8426072694;SALDO Fatt.n. 004122630732  del 08/04/2021 MARZO 2021 - CONSUMI ECOCENTRO COMUNALE;04/05/2021;3534;0;116;1;Spese correnti;3;Acquisto di beni e servizi;2;Acquisto di servizi;5;Utenze e canoni;4;Energia elettrica;06/05/2021
1791;1;9999999;11,19;770,55;ENEL ENERGIA SPA;8426072694;SALDO Fatt.n. 004122630731  del 08/04/2021 MARZO 2021 - CONSUMI ILLUMINAZIONE PUBBLICA;04/05/2021;3544;0;119;1;Spese correnti;3;Acquisto di beni e servizi;2;Acquisto di servizi;15;Contratti di servizio pubblico;15;Contratti di servizio per l'illuminazione pubblica;06/05/2021
1791;2;9999999;103,64;770,55;ENEL ENERGIA SPA;8426072694;SALDO Fatt.n. 004122630733  del 08/04/2021 MARZO 2021 - CONSUMI ILLUMINAZIONE PUBBLICA;04/05/2021;3544;0;119;1;Spese correnti;3;Acquisto di beni e servizi;2;Acquisto di servizi;15;Contratti di servizio pubblico;15;Contratti di servizio per l'illuminazione pubblica;06/05/2021
1791;3;9999999;162,99;770,55;ENEL ENERGIA SPA;8426072694;SALDO Fatt.n. 004122630734  del 08/04/2021 MARZO 2021 - CONSUMI ILLUMINAZIONE PUBBLICA;04/05/2021;3544;0;119;1;Spese correnti;3;Acquisto di beni e servizi;2;Acquisto di servizi;15;Contratti di servizio pubblico;15;Contratti di servizio per l'illuminazione pubblica;06/05/2021
1791;4;9999999;492,73;770,55;ENEL ENERGIA SPA;8426072694;SALDO Fatt.n. 004122630730  del 08/04/2021 MARZO 2021 - CONSUMI ILLUMINAZIONE PUBBLICA;04/05/2021;3544;0;119;1;Spese correnti;3;Acquisto di beni e servizi;2;Acquisto di servizi;15;Contratti di servizio pubblico;15;Contratti di servizio per l'illuminazione pubblica;06/05/2021
1792;1;9999999;7,33;1.946,07;ENEL ENERGIA SPA;8426072694;SALDO Fatt.n. 004122630736  del 08/04/2021 MARZO 2021 - CONSUMI ILLUMINAZIONE PUBBLICA;04/05/2021;3544;0;119;1;Spese correnti;3;Acquisto di beni e servizi;2;Acquisto di servizi;15;Contratti di servizio pubblico;15;Contratti di servizio per l'illuminazione pubblica;06/05/2021
1792;2;9999999;15,74;1.946,07;ENEL ENERGIA SPA;8426072694;SALDO Fatt.n. 004122630735  del 08/04/2021 MARZO 2021 - CONSUMI ILLUMINAZIONE PUBBLICA;04/05/2021;3544;0;119;1;Spese correnti;3;Acquisto di beni e servizi;2;Acquisto di servizi;15;Contratti di servizio pubblico;15;Contratti di servizio per l'illuminazione pubblica;06/05/2021
1792;3;9999999;130,05;1.946,07;ENEL ENERGIA SPA;8426072694;SALDO Fatt.n. 004122630738  del 08/04/2021 MARZO 2021 - CONSUMI ILLUMINAZIONE PUBBLICA;04/05/2021;3544;0;119;1;Spese correnti;3;Acquisto di beni e servizi;2;Acquisto di servizi;15;Contratti di servizio pubblico;15;Contratti di servizio per l'illuminazione pubblica;06/05/2021
1792;4;9999999;236,62;1.946,07;ENEL ENERGIA SPA;8426072694;SALDO Fatt.n. 004122630737  del 08/04/2021 MARZO 2021 - CONSUMI ILLUMINAZIONE PUBBLICA;04/05/2021;3544;0;119;1;Spese correnti;3;Acquisto di beni e servizi;2;Acquisto di servizi;15;Contratti di servizio pubblico;15;Contratti di servizio per l'illuminazione pubblica;06/05/2021
1792;5;9999999;345,91;1.946,07;ENEL ENERGIA SPA;8426072694;SALDO Fatt.n. 004122630739  del 08/04/2021 MARZO 2021 - CONSUMI ILLUMINAZIONE PUBBLICA;04/05/2021;3544;0;119;1;Spese correnti;3;Acquisto di beni e servizi;2;Acquisto di servizi;15;Contratti di servizio pubblico;15;Contratti di servizio per l'illuminazione pubblica;06/05/2021
1792;6;9999999;374,03;1.946,07;ENEL ENERGIA SPA;8426072694;SALDO Fatt.n. 004122630740  del 08/04/2021 MARZO 2021 - CONSUMI ILLUMINAZIONE PUBBLICA;04/05/2021;3544;0;119;1;Spese correnti;3;Acquisto di beni e servizi;2;Acquisto di servizi;15;Contratti di servizio pubblico;15;Contratti di servizio per l'illuminazione pubblica;06/05/2021
1792;7;9999999;396,07;1.946,07;ENEL ENERGIA SPA;8426072694;SALDO Fatt.n. 004122630742  del 08/04/2021 MARZO 2021 - CONSUMI ILLUMINAZIONE PUBBLICA;04/05/2021;3544;0;119;1;Spese correnti;3;Acquisto di beni e servizi;2;Acquisto di servizi;15;Contratti di servizio pubblico;15;Contratti di servizio per l'illuminazione pubblica;06/05/2021
1792;8;9999999;440,32;1.946,07;ENEL ENERGIA SPA;8426072694;SALDO Fatt.n. 004122630741  del 08/04/2021 MARZO 2021 - CONSUMI ILLUMINAZIONE PUBBLICA;04/05/2021;3544;0;119;1;Spese correnti;3;Acquisto di beni e servizi;2;Acquisto di servizi;15;Contratti di servizio pubblico;15;Contratti di servizio per l'illuminazione pubblica;06/05/2021
1793;1;9999999;0,6;1.016,89;ENEL ENERGIA SPA;8426072694;SALDO Fatt.n. 004122630747  del 08/04/2021 MARZO 2021 - CONSUMI ILLUMINAZIONE PUBBLICA;04/05/2021;3544;0;119;1;Spese correnti;3;Acquisto di beni e servizi;2;Acquisto di servizi;15;Contratti di servizio pubblico;15;Contratti di servizio per l'illuminazione pubblica;06/05/2021
1793;2;9999999;1,49;1.016,89;ENEL ENERGIA SPA;8426072694;SALDO Fatt.n. 004122630752  del 08/04/2021 MARZO 2021 - CONSUMI ILLUMINAZIONE PUBBLICA;04/05/2021;3544;0;119;1;Spese correnti;3;Acquisto di beni e servizi;2;Acquisto di servizi;15;Contratti di servizio pubblico;15;Contratti di servizio per l'illuminazione pubblica;06/05/2021
1793;3;9999999;10,3;1.016,89;ENEL ENERGIA SPA;8426072694;SALDO Fatt.n. 004122630757  del 08/04/2021 MARZO 2021 - CONSUMI ILLUMINAZIONE PUBBLICA;04/05/2021;3544;0;119;1;Spese correnti;3;Acquisto di beni e servizi;2;Acquisto di servizi;15;Contratti di servizio pubblico;15;Contratti di servizio per l'illuminazione pubblica;06/05/2021
1793;4;9999999;20,65;1.016,89;ENEL ENERGIA SPA;8426072694;SALDO Fatt.n. 004122630744  del 08/04/2021 MARZO 2021 - CONSUMI ILLUMINAZIONE PUBBLICA;04/05/2021;3544;0;119;1;Spese correnti;3;Acquisto di beni e servizi;2;Acquisto di servizi;15;Contratti di servizio pubblico;15;Contratti di servizio per l'illuminazione pubblica;06/05/2021
1793;5;9999999;37,06;1.016,89;ENEL ENERGIA SPA;8426072694;SALDO Fatt.n. 004122630759  del 08/04/2021 MARZO 2021 - CONSUMI ILLUMINAZIONE PUBBLICA;04/05/2021;3544;0;119;1;Spese correnti;3;Acquisto di beni e servizi;2;Acquisto di servizi;15;Contratti di servizio pubblico;15;Contratti di servizio per l'illuminazione pubblica;06/05/2021
1793;6;9999999;68,28;1.016,89;ENEL ENERGIA SPA;8426072694;SALDO Fatt.n. 004122630756  del 08/04/2021 MARZO 2021 - CONSUMI ILLUMINAZIONE PUBBLICA;04/05/2021;3544;0;119;1;Spese correnti;3;Acquisto di beni e servizi;2;Acquisto di servizi;15;Contratti di servizio pubblico;15;Contratti di servizio per l'illuminazione pubblica;06/05/2021
1793;7;9999999;79,87;1.016,89;ENEL ENERGIA SPA;8426072694;SALDO Fatt.n. 004122630750  del 08/04/2021 MARZO 2021 - CONSUMI ILLUMINAZIONE PUBBLICA;04/05/2021;3544;0;119;1;Spese correnti;3;Acquisto di beni e servizi;2;Acquisto di servizi;15;Contratti di servizio pubblico;15;Contratti di servizio per l'illuminazione pubblica;06/05/2021
1793;8;9999999;94,2;1.016,89;ENEL ENERGIA SPA;8426072694;SALDO Fatt.n. 004122630749  del 08/04/2021 MARZO 2021 - CONSUMI ILLUMINAZIONE PUBBLICA;04/05/2021;3544;0;119;1;Spese correnti;3;Acquisto di beni e servizi;2;Acquisto di servizi;15;Contratti di servizio pubblico;15;Contratti di servizio per l'illuminazione pubblica;06/05/2021
1793;9;9999999;153,98;1.016,89;ENEL ENERGIA SPA;8426072694;SALDO Fatt.n. 004122630748  del 08/04/2021 MARZO 2021 - CONSUMI ILLUMINAZIONE PUBBLICA;04/05/2021;3544;0;119;1;Spese correnti;3;Acquisto di beni e servizi;2;Acquisto di servizi;15;Contratti di servizio pubblico;15;Contratti di servizio per l'illuminazione pubblica;06/05/2021
1793;10;9999999;223,72;1.016,89;ENEL ENERGIA SPA;8426072694;SALDO Fatt.n. 004122630758  del 08/04/2021 MARZO 2021 - CONSUMI ILLUMINAZIONE PUBBLICA;04/05/2021;3544;0;119;1;Spese correnti;3;Acquisto di beni e servizi;2;Acquisto di servizi;15;Contratti di servizio pubblico;15;Contratti di servizio per l'illuminazione pubblica;06/05/2021
1793;11;9999999;326,74;1.016,89;ENEL ENERGIA SPA;8426072694;SALDO Fatt.n. 004122630755  del 08/04/2021 MARZO 2021 - CONSUMI ILLUMINAZIONE PUBBLICA;04/05/2021;3544;0;119;1;Spese correnti;3;Acquisto di beni e servizi;2;Acquisto di servizi;15;Contratti di servizio pubblico;15;Contratti di servizio per l'illuminazione pubblica;06/05/2021
1794;1;9999999;13,85;1.263,07;ENEL ENERGIA SPA;8426072694;SALDO Fatt.n. 004122630760  del 08/04/2021 MARZO 2021 - CONSUMI ILLUMINAZIONE PUBBLICA;04/05/2021;3544;0;119;1;Spese correnti;3;Acquisto di beni e servizi;2;Acquisto di servizi;15;Contratti di servizio pubblico;15;Contratti di servizio per l'illuminazione pubblica;06/05/2021
1794;2;9999999;14,32;1.263,07;ENEL ENERGIA SPA;8426072694;SALDO Fatt.n. 004122630771  del 08/04/2021 MARZO 2021 - CONSUMI ILLUMINAZIONE PUBBLICA;04/05/2021;3544;0;119;1;Spese correnti;3;Acquisto di beni e servizi;2;Acquisto di servizi;15;Contratti di servizio pubblico;15;Contratti di servizio per l'illuminazione pubblica;06/05/2021
1794;3;9999999;27,15;1.263,07;ENEL ENERGIA SPA;8426072694;SALDO Fatt.n. 004122630774  del 08/04/2021 MARZO 2021 - CONSUMI ILLUMINAZIONE PUBBLICA;04/05/2021;3544;0;119;1;Spese correnti;3;Acquisto di beni e servizi;2;Acquisto di servizi;15;Contratti di servizio pubblico;15;Contratti di servizio per l'illuminazione pubblica;06/05/2021
1794;4;9999999;54,83;1.263,07;ENEL ENERGIA SPA;8426072694;SALDO Fatt.n. 004122630767  del 08/04/2021 MARZO 2021 - CONSUMI ILLUMINAZIONE PUBBLICA;04/05/2021;3544;0;119;1;Spese correnti;3;Acquisto di beni e servizi;2;Acquisto di servizi;15;Contratti di servizio pubblico;15;Contratti di servizio per l'illuminazione pubblica;06/05/2021
1794;5;9999999;83,41;1.263,07;ENEL ENERGIA SPA;8426072694;SALDO Fatt.n. 004122630765  del 08/04/2021 MARZO 2021 - CONSUMI ILLUMINAZIONE PUBBLICA;04/05/2021;3544;0;119;1;Spese correnti;3;Acquisto di beni e servizi;2;Acquisto di servizi;15;Contratti di servizio pubblico;15;Contratti di servizio per l'illuminazione pubblica;06/05/2021
1794;6;9999999;134,63;1.263,07;ENEL ENERGIA SPA;8426072694;SALDO Fatt.n. 004122630763  del 08/04/2021 MARZO 2021 - CONSUMI ILLUMINAZIONE PUBBLICA;04/05/2021;3544;0;119;1;Spese correnti;3;Acquisto di beni e servizi;2;Acquisto di servizi;15;Contratti di servizio pubblico;15;Contratti di servizio per l'illuminazione pubblica;06/05/2021
1794;7;9999999;135,03;1.263,07;ENEL ENERGIA SPA;8426072694;SALDO Fatt.n. 004122630772  del 08/04/2021 MARZO 2021 - CONSUMI ILLUMINAZIONE PUBBLICA;04/05/2021;3544;0;119;1;Spese correnti;3;Acquisto di beni e servizi;2;Acquisto di servizi;15;Contratti di servizio pubblico;15;Contratti di servizio per l'illuminazione pubblica;06/05/2021
1794;8;9999999;135,44;1.263,07;ENEL ENERGIA SPA;8426072694;SALDO Fatt.n. 004122630766  del 08/04/2021 MARZO 2021 - CONSUMI ILLUMINAZIONE PUBBLICA;04/05/2021;3544;0;119;1;Spese correnti;3;Acquisto di beni e servizi;2;Acquisto di servizi;15;Contratti di servizio pubblico;15;Contratti di servizio per l'illuminazione pubblica;06/05/2021
1794;9;9999999;148,33;1.263,07;ENEL ENERGIA SPA;8426072694;SALDO Fatt.n. 004122630762  del 08/04/2021 MARZO 2021 - CONSUMI ILLUMINAZIONE PUBBLICA;04/05/2021;3544;0;119;1;Spese correnti;3;Acquisto di beni e servizi;2;Acquisto di servizi;15;Contratti di servizio pubblico;15;Contratti di servizio per l'illuminazione pubblica;06/05/2021
1794;10;9999999;181,34;1.263,07;ENEL ENERGIA SPA;8426072694;SALDO Fatt.n. 004122630770  del 08/04/2021 MARZO 2021 - CONSUMI ILLUMINAZIONE PUBBLICA;04/05/2021;3544;0;119;1;Spese correnti;3;Acquisto di beni e servizi;2;Acquisto di servizi;15;Contratti di servizio pubblico;15;Contratti di servizio per l'illuminazione pubblica;06/05/2021
1794;11;9999999;334,74;1.263,07;ENEL ENERGIA SPA;8426072694;SALDO Fatt.n. 004122630768  del 08/04/2021 MARZO 2021 - CONSUMI ILLUMINAZIONE PUBBLICA;04/05/2021;3544;0;119;1;Spese correnti;3;Acquisto di beni e servizi;2;Acquisto di servizi;15;Contratti di servizio pubblico;15;Contratti di servizio per l'illuminazione pubblica;06/05/2021
1795;1;9999999;16,67;1.509,30;ENEL ENERGIA SPA;8426072694;SALDO Fatt.n. 004122630780  del 08/04/2021 MARZO 2021 - CONSUMI ILLUMINAZIONE PUBBLICA;04/05/2021;3544;0;119;1;Spese correnti;3;Acquisto di beni e servizi;2;Acquisto di servizi;15;Contratti di servizio pubblico;15;Contratti di servizio per l'illuminazione pubblica;06/05/2021
1795;2;9999999;26,94;1.509,30;ENEL ENERGIA SPA;8426072694;SALDO Fatt.n. 004122630778  del 08/04/2021 MARZO 2021 - CONSUMI ILLUMINAZIONE PUBBLICA;04/05/2021;3544;0;119;1;Spese correnti;3;Acquisto di beni e servizi;2;Acquisto di servizi;15;Contratti di servizio pubblico;15;Contratti di servizio per l'illuminazione pubblica;06/05/2021
1795;3;9999999;42,15;1.509,30;ENEL ENERGIA SPA;8426072694;SALDO Fatt.n. 004122630785  del 08/04/2021 MARZO 2021 - CONSUMI ILLUMINAZIONE PUBBLICA;04/05/2021;3544;0;119;1;Spese correnti;3;Acquisto di beni e servizi;2;Acquisto di servizi;15;Contratti di servizio pubblico;15;Contratti di servizio per l'illuminazione pubblica;06/05/2021
1795;4;9999999;98,15;1.509,30;ENEL ENERGIA SPA;8426072694;SALDO Fatt.n. 004122630783  del 08/04/2021 MARZO 2021 - CONSUMI ILLUMINAZIONE PUBBLICA;04/05/2021;3544;0;119;1;Spese correnti;3;Acquisto di beni e servizi;2;Acquisto di servizi;15;Contratti di servizio pubblico;15;Contratti di servizio per l'illuminazione pubblica;06/05/2021
1795;5;9999999;102,61;1.509,30;ENEL ENERGIA SPA;8426072694;SALDO Fatt.n. 004122630779  del 08/04/2021 MARZO 2021 - CONSUMI ILLUMINAZIONE PUBBLICA;04/05/2021;3544;0;119;1;Spese correnti;3;Acquisto di beni e servizi;2;Acquisto di servizi;15;Contratti di servizio pubblico;15;Contratti di servizio per l'illuminazione pubblica;06/05/2021
1795;6;9999999;157,22;1.509,30;ENEL ENERGIA SPA;8426072694;SALDO Fatt.n. 004122630786  del 08/04/2021 MARZO 2021 - CONSUMI ILLUMINAZIONE PUBBLICA;04/05/2021;3544;0;119;1;Spese correnti;3;Acquisto di beni e servizi;2;Acquisto di servizi;15;Contratti di servizio pubblico;15;Contratti di servizio per l'illuminazione pubblica;06/05/2021
1795;7;9999999;192,13;1.509,30;ENEL ENERGIA SPA;8426072694;SALDO Fatt.n. 004122630775  del 08/04/2021 MARZO 2021 - CONSUMI ILLUMINAZIONE PUBBLICA;04/05/2021;3544;0;119;1;Spese correnti;3;Acquisto di beni e servizi;2;Acquisto di servizi;15;Contratti di servizio pubblico;15;Contratti di servizio per l'illuminazione pubblica;06/05/2021
1795;8;9999999;192,32;1.509,30;ENEL ENERGIA SPA;8426072694;SALDO Fatt.n. 004122630784  del 08/04/2021 MARZO 2021 - CONSUMI ILLUMINAZIONE PUBBLICA;04/05/2021;3544;0;119;1;Spese correnti;3;Acquisto di beni e servizi;2;Acquisto di servizi;15;Contratti di servizio pubblico;15;Contratti di servizio per l'illuminazione pubblica;06/05/2021
1795;9;9999999;307,79;1.509,30;ENEL ENERGIA SPA;8426072694;SALDO Fatt.n. 004122630781  del 08/04/2021 MARZO 2021 - CONSUMI ILLUMINAZIONE PUBBLICA;04/05/2021;3544;0;119;1;Spese correnti;3;Acquisto di beni e servizi;2;Acquisto di servizi;15;Contratti di servizio pubblico;15;Contratti di servizio per l'illuminazione pubblica;06/05/2021
1795;10;9999999;373,32;1.509,30;ENEL ENERGIA SPA;8426072694;SALDO Fatt.n. 004122630782  del 08/04/2021 MARZO 2021 - CONSUMI ILLUMINAZIONE PUBBLICA;04/05/2021;3544;0;119;1;Spese correnti;3;Acquisto di beni e servizi;2;Acquisto di servizi;15;Contratti di servizio pubblico;15;Contratti di servizio per l'illuminazione pubblica;06/05/2021
1796;1;9999999;20,84;1.134,63;ENEL ENERGIA SPA;8426072694;SALDO Fatt.n. 004122630793  del 08/04/2021 MARZO 2021 - CONSUMI ILLUMINAZIONE PUBBLICA;04/05/2021;3544;0;119;1;Spese correnti;3;Acquisto di beni e servizi;2;Acquisto di servizi;15;Contratti di servizio pubblico;15;Contratti di servizio per l'illuminazione pubblica;06/05/2021
1796;2;9999999;26,55;1.134,63;ENEL ENERGIA SPA;8426072694;SALDO Fatt.n. 004122630792  del 08/04/2021 MARZO 2021 - CONSUMI ILLUMINAZIONE PUBBLICA;04/05/2021;3544;0;119;1;Spese correnti;3;Acquisto di beni e servizi;2;Acquisto di servizi;15;Contratti di servizio pubblico;15;Contratti di servizio per l'illuminazione pubblica;06/05/2021
1796;3;9999999;37,28;1.134,63;ENEL ENERGIA SPA;8426072694;SALDO Fatt.n. 004122630795  del 08/04/2021 MARZO 2021 - CONSUMI ILLUMINAZIONE PUBBLICA;04/05/2021;3544;0;119;1;Spese correnti;3;Acquisto di beni e servizi;2;Acquisto di servizi;15;Contratti di servizio pubblico;15;Contratti di servizio per l'illuminazione pubblica;06/05/2021
1796;4;9999999;53,51;1.134,63;ENEL ENERGIA SPA;8426072694;SALDO Fatt.n. 004122630790  del 08/04/2021 MARZO 2021 - CONSUMI ILLUMINAZIONE PUBBLICA;04/05/2021;3544;0;119;1;Spese correnti;3;Acquisto di beni e servizi;2;Acquisto di servizi;15;Contratti di servizio pubblico;15;Contratti di servizio per l'illuminazione pubblica;06/05/2021
1796;5;9999999;60,91;1.134,63;ENEL ENERGIA SPA;8426072694;SALDO Fatt.n. 004122630791  del 08/04/2021 MARZO 2021 - CONSUMI ILLUMINAZIONE PUBBLICA;04/05/2021;3544;0;119;1;Spese correnti;3;Acquisto di beni e servizi;2;Acquisto di servizi;15;Contratti di servizio pubblico;15;Contratti di servizio per l'illuminazione pubblica;06/05/2021
1796;6;9999999;77,1;1.134,63;ENEL ENERGIA SPA;8426072694;SALDO Fatt.n. 004122630797  del 08/04/2021 MARZO 2021 - CONSUMI ILLUMINAZIONE PUBBLICA;04/05/2021;3544;0;119;1;Spese correnti;3;Acquisto di beni e servizi;2;Acquisto di servizi;15;Contratti di servizio pubblico;15;Contratti di servizio per l'illuminazione pubblica;06/05/2021
1796;7;9999999;120,1;1.134,63;ENEL ENERGIA SPA;8426072694;SALDO Fatt.n. 004122630796  del 08/04/2021 MARZO 2021 - CONSUMI ILLUMINAZIONE PUBBLICA;04/05/2021;3544;0;119;1;Spese correnti;3;Acquisto di beni e servizi;2;Acquisto di servizi;15;Contratti di servizio pubblico;15;Contratti di servizio per l'illuminazione pubblica;06/05/2021
1796;8;9999999;160,95;1.134,63;ENEL ENERGIA SPA;8426072694;SALDO Fatt.n. 004122630789  del 08/04/2021 MARZO 2021 - CONSUMI ILLUMINAZIONE PUBBLICA;04/05/2021;3544;0;119;1;Spese correnti;3;Acquisto di beni e servizi;2;Acquisto di servizi;15;Contratti di servizio pubblico;15;Contratti di servizio per l'illuminazione pubblica;06/05/2021
1796;9;9999999;197,57;1.134,63;ENEL ENERGIA SPA;8426072694;SALDO Fatt.n. 004122630787  del 08/04/2021 MARZO 2021 - CONSUMI ILLUMINAZIONE PUBBLICA;04/05/2021;3544;0;119;1;Spese correnti;3;Acquisto di beni e servizi;2;Acquisto di servizi;15;Contratti di servizio pubblico;15;Contratti di servizio per l'illuminazione pubblica;06/05/2021
1796;10;9999999;379,82;1.134,63;ENEL ENERGIA SPA;8426072694;SALDO Fatt.n. 004122630788  del 08/04/2021 MARZO 2021 - CONSUMI ILLUMINAZIONE PUBBLICA;04/05/2021;3544;0;119;1;Spese correnti;3;Acquisto di beni e servizi;2;Acquisto di servizi;15;Contratti di servizio pubblico;15;Contratti di servizio per l'illuminazione pubblica;06/05/2021
1797;1;9999999;0,6;1.694,92;ENEL ENERGIA SPA;8426072694;SALDO Fatt.n. 004122630807  del 08/04/2021 MARZO 2021 - CONSUMI ILLUMINAZIONE PUBBLICA;04/05/2021;3544;0;119;1;Spese correnti;3;Acquisto di beni e servizi;2;Acquisto di servizi;15;Contratti di servizio pubblico;15;Contratti di servizio per l'illuminazione pubblica;06/05/2021
1797;2;9999999;26,55;1.694,92;ENEL ENERGIA SPA;8426072694;SALDO Fatt.n. 004122630808  del 08/04/2021 MARZO 2021 - CONSUMI ILLUMINAZIONE PUBBLICA;04/05/2021;3544;0;119;1;Spese correnti;3;Acquisto di beni e servizi;2;Acquisto di servizi;15;Contratti di servizio pubblico;15;Contratti di servizio per l'illuminazione pubblica;06/05/2021
1797;3;9999999;40,65;1.694,92;ENEL ENERGIA SPA;8426072694;SALDO Fatt.n. 004122630798  del 08/04/2021 MARZO 2021 - CONSUMI ILLUMINAZIONE PUBBLICA;04/05/2021;3544;0;119;1;Spese correnti;3;Acquisto di beni e servizi;2;Acquisto di servizi;15;Contratti di servizio pubblico;15;Contratti di servizio per l'illuminazione pubblica;06/05/2021
1797;4;9999999;43,42;1.694,92;ENEL ENERGIA SPA;8426072694;SALDO Fatt.n. 004122630799  del 08/04/2021 MARZO 2021 - CONSUMI ILLUMINAZIONE PUBBLICA;04/05/2021;3544;0;119;1;Spese correnti;3;Acquisto di beni e servizi;2;Acquisto di servizi;15;Contratti di servizio pubblico;15;Contratti di servizio per l'illuminazione pubblica;06/05/2021
1797;5;9999999;91,62;1.694,92;ENEL ENERGIA SPA;8426072694;SALDO Fatt.n. 004122630804  del 08/04/2021 MARZO 2021 - CONSUMI ILLUMINAZIONE PUBBLICA;04/05/2021;3544;0;119;1;Spese correnti;3;Acquisto di beni e servizi;2;Acquisto di servizi;15;Contratti di servizio pubblico;15;Contratti di servizio per l'illuminazione pubblica;06/05/2021
1797;6;9999999;152,34;1.694,92;ENEL ENERGIA SPA;8426072694;SALDO Fatt.n. 004122630805  del 08/04/2021 MARZO 2021 - CONSUMI ILLUMINAZIONE PUBBLICA;04/05/2021;3544;0;119;1;Spese correnti;3;Acquisto di beni e servizi;2;Acquisto di servizi;15;Contratti di servizio pubblico;15;Contratti di servizio per l'illuminazione pubblica;06/05/2021
1797;7;9999999;231,12;1.694,92;ENEL ENERGIA SPA;8426072694;SALDO Fatt.n. 004122630801  del 08/04/2021 MARZO 2021 - CONSUMI ILLUMINAZIONE PUBBLICA;04/05/2021;3544;0;119;1;Spese correnti;3;Acquisto di beni e servizi;2;Acquisto di servizi;15;Contratti di servizio pubblico;15;Contratti di servizio per l'illuminazione pubblica;06/05/2021
1797;8;9999999;233,68;1.694,92;ENEL ENERGIA SPA;8426072694;SALDO Fatt.n. 004122630812  del 08/04/2021 MARZO 2021 - CONSUMI ILLUMINAZIONE PUBBLICA;04/05/2021;3544;0;119;1;Spese correnti;3;Acquisto di beni e servizi;2;Acquisto di servizi;15;Contratti di servizio pubblico;15;Contratti di servizio per l'illuminazione pubblica;06/05/2021
1797;9;9999999;297,72;1.694,92;ENEL ENERGIA SPA;8426072694;SALDO Fatt.n. 004122630802  del 08/04/2021 MARZO 2021 - CONSUMI ILLUMINAZIONE PUBBLICA;04/05/2021;3544;0;119;1;Spese correnti;3;Acquisto di beni e servizi;2;Acquisto di servizi;15;Contratti di servizio pubblico;15;Contratti di servizio per l'illuminazione pubblica;06/05/2021
1797;10;9999999;577,22;1.694,92;ENEL ENERGIA SPA;8426072694;SALDO Fatt.n. 004122630800  del 08/04/2021 MARZO 2021 - CONSUMI ILLUMINAZIONE PUBBLICA;04/05/2021;3544;0;119;1;Spese correnti;3;Acquisto di beni e servizi;2;Acquisto di servizi;15;Contratti di servizio pubblico;15;Contratti di servizio per l'illuminazione pubblica;06/05/2021
1798;1;9999999;8,02;930,21;ENEL ENERGIA SPA;8426072694;SALDO Fatt.n. 004122630816  del 08/04/2021 MARZO 2021 - CONSUMI ILLUMINAZIONE PUBBLICA;04/05/2021;3544;0;119;1;Spese correnti;3;Acquisto di beni e servizi;2;Acquisto di servizi;15;Contratti di servizio pubblico;15;Contratti di servizio per l'illuminazione pubblica;06/05/2021
1798;2;9999999;8,41;930,21;ENEL ENERGIA SPA;8426072694;SALDO Fatt.n. 004122630817  del 08/04/2021 MARZO 2021 - CONSUMI ILLUMINAZIONE PUBBLICA;04/05/2021;3544;0;119;1;Spese correnti;3;Acquisto di beni e servizi;2;Acquisto di servizi;15;Contratti di servizio pubblico;15;Contratti di servizio per l'illuminazione pubblica;06/05/2021
1798;3;9999999;11,82;930,21;ENEL ENERGIA SPA;8426072694;SALDO Fatt.n. 004122630826  del 08/04/2021 MARZO 2021 - CONSUMI ILLUMINAZIONE PUBBLICA;04/05/2021;3544;0;119;1;Spese correnti;3;Acquisto di beni e servizi;2;Acquisto di servizi;15;Contratti di servizio pubblico;15;Contratti di servizio per l'illuminazione pubblica;06/05/2021
1798;4;9999999;25,68;930,21;ENEL ENERGIA SPA;8426072694;SALDO Fatt.n. 004122630814  del 08/04/2021 MARZO 2021 - CONSUMI ILLUMINAZIONE PUBBLICA;04/05/2021;3544;0;119;1;Spese correnti;3;Acquisto di beni e servizi;2;Acquisto di servizi;15;Contratti di servizio pubblico;15;Contratti di servizio per l'illuminazione pubblica;06/05/2021
1798;5;9999999;36;930,21;ENEL ENERGIA SPA;8426072694;SALDO Fatt.n. 004122630821  del 08/04/2021 MARZO 2021 - CONSUMI ILLUMINAZIONE PUBBLICA;04/05/2021;3544;0;119;1;Spese correnti;3;Acquisto di beni e servizi;2;Acquisto di servizi;15;Contratti di servizio pubblico;15;Contratti di servizio per l'illuminazione pubblica;06/05/2021
1798;6;9999999;42,4;930,21;ENEL ENERGIA SPA;8426072694;SALDO Fatt.n. 004122630822  del 08/04/2021 MARZO 2021 - CONSUMI ILLUMINAZIONE PUBBLICA;04/05/2021;3544;0;119;1;Spese correnti;3;Acquisto di beni e servizi;2;Acquisto di servizi;15;Contratti di servizio pubblico;15;Contratti di servizio per l'illuminazione pubblica;06/05/2021
1798;7;9999999;48,69;930,21;ENEL ENERGIA SPA;8426072694;SALDO Fatt.n. 004122630825  del 08/04/2021 MARZO 2021 - CONSUMI ILLUMINAZIONE PUBBLICA;04/05/2021;3544;0;119;1;Spese correnti;3;Acquisto di beni e servizi;2;Acquisto di servizi;15;Contratti di servizio pubblico;15;Contratti di servizio per l'illuminazione pubblica;06/05/2021
1798;8;9999999;120,48;930,21;ENEL ENERGIA SPA;8426072694;SALDO Fatt.n. 004122630818  del 08/04/2021 MARZO 2021 - CONSUMI ILLUMINAZIONE PUBBLICA;04/05/2021;3544;0;119;1;Spese correnti;3;Acquisto di beni e servizi;2;Acquisto di servizi;15;Contratti di servizio pubblico;15;Contratti di servizio per l'illuminazione pubblica;06/05/2021
1798;9;9999999;122,84;930,21;ENEL ENERGIA SPA;8426072694;SALDO Fatt.n. 004122630813  del 08/04/2021 MARZO 2021 - CONSUMI ILLUMINAZIONE PUBBLICA;04/05/2021;3544;0;119;1;Spese correnti;3;Acquisto di beni e servizi;2;Acquisto di servizi;15;Contratti di servizio pubblico;15;Contratti di servizio per l'illuminazione pubblica;06/05/2021
1798;10;9999999;505,87;930,21;ENEL ENERGIA SPA;8426072694;SALDO Fatt.n. 004122630820  del 08/04/2021 MARZO 2021 - CONSUMI ILLUMINAZIONE PUBBLICA;04/05/2021;3544;0;119;1;Spese correnti;3;Acquisto di beni e servizi;2;Acquisto di servizi;15;Contratti di servizio pubblico;15;Contratti di servizio per l'illuminazione pubblica;06/05/2021
1799;1;9999999;-10,57;299,58;ENEL ENERGIA SPA;8426072694;SALDO Fatt.n. 004122477304  del 01/04/2021 NOTA DI ACCREDITO PER CONGUAGLIO CONSUMI;04/05/2021;3544;0;119;1;Spese correnti;3;Acquisto di beni e servizi;2;Acquisto di servizi;15;Contratti di servizio pubblico;15;Contratti di servizio per l'illuminazione pubblica;06/05/2021
1799;2;9999999;310,15;299,58;ENEL ENERGIA SPA;8426072694;SALDO Fatt.n. 004122630849  del 08/04/2021 MARZO 2021 - CONSUMI ILLUMINAZIONE PUBBLICA;04/05/2021;3544;0;119;1;Spese correnti;3;Acquisto di beni e servizi;2;Acquisto di servizi;15;Contratti di servizio pubblico;15;Contratti di servizio per l'illuminazione pubblica;06/05/2021
1800;1;9999999;-1.663,87;215,08;ENEL ENERGIA SPA;8426072694;SALDO Fatt.n. 004129349224  del 18/04/2021 NOTA DI ACCREDITO PER CONGUAGLI CONSUMI;04/05/2021;3544;0;119;1;Spese correnti;3;Acquisto di beni e servizi;2;Acquisto di servizi;15;Contratti di servizio pubblico;15;Contratti di servizio per l'illuminazione pubblica;06/05/2021
1800;2;9999999;416,45;215,08;ENEL ENERGIA SPA;8426072694;SALDO Fatt.n. 004122630754  del 08/04/2021 MARZO 2021 - CONSUMI ILLUMINAZIONE PUBBLICA;04/05/2021;3544;0;119;1;Spese correnti;3;Acquisto di beni e servizi;2;Acquisto di servizi;15;Contratti di servizio pubblico;15;Contratti di servizio per l'illuminazione pubblica;06/05/2021
1800;3;9999999;459,06;215,08;ENEL ENERGIA SPA;8426072694;SALDO Fatt.n. 004122630839  del 08/04/2021 MARZO 2021 - CONSUMI ILLUMINAZIONE PUBBLICA;04/05/2021;3544;0;119;1;Spese correnti;3;Acquisto di beni e servizi;2;Acquisto di servizi;15;Contratti di servizio pubblico;15;Contratti di servizio per l'illuminazione pubblica;06/05/2021
1800;4;9999999;1.003,44;215,08;ENEL ENERGIA SPA;8426072694;SALDO Fatt.n. 004122630830  del 08/04/2021 MARZO 2021 - CONSUMI ILLUMINAZIONE PUBBLICA;04/05/2021;3544;0;119;1;Spese correnti;3;Acquisto di beni e servizi;2;Acquisto di servizi;15;Contratti di servizio pubblico;15;Contratti di servizio per l'illuminazione pubblica;06/05/2021
1801;1;9999999;-3.807,97;766,72;ENEL ENERGIA SPA;8426072694;SALDO Fatt.n. 004129360682  del 19/04/2021 NOTA DI ACCREDITO PER CONGUAGLIO CONSUMI;04/05/2021;3544;0;119;1;Spese correnti;3;Acquisto di beni e servizi;2;Acquisto di servizi;15;Contratti di servizio pubblico;15;Contratti di servizio per l'illuminazione pubblica;06/05/2021
1801;2;9999999;193,37;766,72;ENEL ENERGIA SPA;8426072694;SALDO Fatt.n. 004122630745  del 08/04/2021 MARZO 2021 - CONSUMI ILLUMINAZIONE PUBBLICA;04/05/2021;3544;0;119;1;Spese correnti;3;Acquisto di beni e servizi;2;Acquisto di servizi;15;Contratti di servizio pubblico;15;Contratti di servizio per l'illuminazione pubblica;06/05/2021
1801;3;9999999;504,96;766,72;ENEL ENERGIA SPA;8426072694;SALDO Fatt.n. 004128921892  del 15/04/2021 MARZO 2021 - CONSUMI ILLUMINAZIONE PUBBLICA;04/05/2021;3544;0;119;1;Spese correnti;3;Acquisto di beni e servizi;2;Acquisto di servizi;15;Contratti di servizio pubblico;15;Contratti di servizio per l'illuminazione pubblica;06/05/2021
1801;4;9999999;513,39;766,72;ENEL ENERGIA SPA;8426072694;SALDO Fatt.n. 004122630843  del 08/04/2021 MARZO 2021 - CONSUMI ILLUMINAZIONE PUBBLICA;04/05/2021;3544;0;119;1;Spese correnti;3;Acquisto di beni e servizi;2;Acquisto di servizi;15;Contratti di servizio pubblico;15;Contratti di servizio per l'illuminazione pubblica;06/05/2021
1801;5;9999999;581,71;766,72;ENEL ENERGIA SPA;8426072694;SALDO Fatt.n. 004122630854  del 08/04/2021 MARZO 2021 - CONSUMI ILLUMINAZIONE PUBBLICA;04/05/2021;3544;0;119;1;Spese correnti;3;Acquisto di beni e servizi;2;Acquisto di servizi;15;Contratti di servizio pubblico;15;Contratti di servizio per l'illuminazione pubblica;06/05/2021
1801;6;9999999;630,65;766,72;ENEL ENERGIA SPA;8426072694;SALDO Fatt.n. 004122630848  del 08/04/2021 MARZO 2021 - CONSUMI VILLA FARSETTI;04/05/2021;3544;0;119;1;Spese correnti;3;Acquisto di beni e servizi;2;Acquisto di servizi;15;Contratti di servizio pubblico;15;Contratti di servizio per l'illuminazione pubblica;06/05/2021
1801;7;9999999;660,23;766,72;ENEL ENERGIA SPA;8426072694;SALDO Fatt.n. 004122630743  del 08/04/2021 MARZO 2021 - CONSUMI ILLUMINAZIONE PUBBLICA;04/05/2021;3544;0;119;1;Spese correnti;3;Acquisto di beni e servizi;2;Acquisto di servizi;15;Contratti di servizio pubblico;15;Contratti di servizio per l'illuminazione pubblica;06/05/2021
1801;8;9999999;722,4;766,72;ENEL ENERGIA SPA;8426072694;SALDO Fatt.n. 004122630827  del 08/04/2021 MARZO 2021 - CONSUMI ILLUMINAZIONE PUBBLICA;04/05/2021;3544;0;119;1;Spese correnti;3;Acquisto di beni e servizi;2;Acquisto di servizi;15;Contratti di servizio pubblico;15;Contratti di servizio per l'illuminazione pubblica;06/05/2021
1801;9;9999999;767,98;766,72;ENEL ENERGIA SPA;8426072694;SALDO Fatt.n. 004122630829  del 08/04/2021 MARZO 2021 - CONSUMI ILLUMINAZIONE PUBBLICA;04/05/2021;3544;0;119;1;Spese correnti;3;Acquisto di beni e servizi;2;Acquisto di servizi;15;Contratti di servizio pubblico;15;Contratti di servizio per l'illuminazione pubblica;06/05/2021
1802;1;9999999;11,41;927,07;ENEL ENERGIA SPA;8426072694;SALDO Fatt.n. 004122630828  del 08/04/2021 MARZO 2021 - CONSUMI ILLUMINAZIONE PUBBLICA;04/05/2021;3544;0;119;1;Spese correnti;3;Acquisto di beni e servizi;2;Acquisto di servizi;15;Contratti di servizio pubblico;15;Contratti di servizio per l'illuminazione pubblica;06/05/2021
1802;2;9999999;13,46;927,07;ENEL ENERGIA SPA;8426072694;SALDO Fatt.n. 004122630846  del 08/04/2021 MARZO 2021 - CONSUMI ILLUMINAZIONE PUBBLICA;04/05/2021;3544;0;119;1;Spese correnti;3;Acquisto di beni e servizi;2;Acquisto di servizi;15;Contratti di servizio pubblico;15;Contratti di servizio per l'illuminazione pubblica;06/05/2021
1802;3;9999999;28,19;927,07;ENEL ENERGIA SPA;8426072694;SALDO Fatt.n. 004122630836  del 08/04/2021 MARZO 2021 - CONSUMI ILLUMINAZIONE PUBBLICA;04/05/2021;3544;0;119;1;Spese correnti;3;Acquisto di beni e servizi;2;Acquisto di servizi;15;Contratti di servizio pubblico;15;Contratti di servizio per l'illuminazione pubblica;06/05/2021
1802;4;9999999;49,73;927,07;ENEL ENERGIA SPA;8426072694;SALDO Fatt.n. 004122630837  del 08/04/2021 MARZO 2021 - CONSUMI ILLUMINAZIONE PUBBLICA;04/05/2021;3544;0;119;1;Spese correnti;3;Acquisto di beni e servizi;2;Acquisto di servizi;15;Contratti di servizio pubblico;15;Contratti di servizio per l'illuminazione pubblica;06/05/2021
1802;5;9999999;56,93;927,07;ENEL ENERGIA SPA;8426072694;SALDO Fatt.n. 004122630845  del 08/04/2021 MARZO 2021 - CONSUMI ILLUMINAZIONE PUBBLICA;04/05/2021;3544;0;119;1;Spese correnti;3;Acquisto di beni e servizi;2;Acquisto di servizi;15;Contratti di servizio pubblico;15;Contratti di servizio per l'illuminazione pubblica;06/05/2021
1802;6;9999999;82,37;927,07;ENEL ENERGIA SPA;8426072694;SALDO Fatt.n. 004122630844  del 08/04/2021 MARZO 2021 - CONSUMI ILLUMINAZIONE PUBBLICA;04/05/2021;3544;0;119;1;Spese correnti;3;Acquisto di beni e servizi;2;Acquisto di servizi;15;Contratti di servizio pubblico;15;Contratti di servizio per l'illuminazione pubblica;06/05/2021
1802;7;9999999;91,43;927,07;ENEL ENERGIA SPA;8426072694;SALDO Fatt.n. 004122630840  del 08/04/2021 MARZO 2021 - CONSUMI ILLUMINAZIONE PUBBLICA;04/05/2021;3544;0;119;1;Spese correnti;3;Acquisto di beni e servizi;2;Acquisto di servizi;15;Contratti di servizio pubblico;15;Contratti di servizio per l'illuminazione pubblica;06/05/2021
1802;8;9999999;110,35;927,07;ENEL ENERGIA SPA;8426072694;SALDO Fatt.n. 004122630831  del 08/04/2021 MARZO 2021 - CONSUMI ILLUMINAZIONE PUBBLICA;04/05/2021;3544;0;119;1;Spese correnti;3;Acquisto di beni e servizi;2;Acquisto di servizi;15;Contratti di servizio pubblico;15;Contratti di servizio per l'illuminazione pubblica;06/05/2021
1802;9;9999999;188,94;927,07;ENEL ENERGIA SPA;8426072694;SALDO Fatt.n. 004122630834  del 08/04/2021 MARZO 2021 - CONSUMI ILLUMINAZIONE PUBBLICA;04/05/2021;3544;0;119;1;Spese correnti;3;Acquisto di beni e servizi;2;Acquisto di servizi;15;Contratti di servizio pubblico;15;Contratti di servizio per l'illuminazione pubblica;06/05/2021
1802;10;9999999;294,26;927,07;ENEL ENERGIA SPA;8426072694;SALDO Fatt.n. 004122630842  del 08/04/2021 MARZO 2021 - CONSUMI ILLUMINAZIONE PUBBLICA;04/05/2021;3544;0;119;1;Spese correnti;3;Acquisto di beni e servizi;2;Acquisto di servizi;15;Contratti di servizio pubblico;15;Contratti di servizio per l'illuminazione pubblica;06/05/2021
1803;1;9999999;25,07;845,91;ENEL ENERGIA SPA;8426072694;SALDO Fatt.n. 004122630852  del 08/04/2021 MARZO 2021 - CONSUMI ILLUMINAZIONE PUBBLICA;04/05/2021;3544;0;119;1;Spese correnti;3;Acquisto di beni e servizi;2;Acquisto di servizi;15;Contratti di servizio pubblico;15;Contratti di servizio per l'illuminazione pubblica;06/05/2021
1803;2;9999999;28,78;845,91;ENEL ENERGIA SPA;8426072694;SALDO Fatt.n. 004122630855  del 08/04/2021 MARZO 2021 - CONSUMI ILLUMINAZIONE PUBBLICA;04/05/2021;3544;0;119;1;Spese correnti;3;Acquisto di beni e servizi;2;Acquisto di servizi;15;Contratti di servizio pubblico;15;Contratti di servizio per l'illuminazione pubblica;06/05/2021
1803;3;9999999;30,09;845,91;ENEL ENERGIA SPA;8426072694;SALDO Fatt.n. 004122630850  del 08/04/2021 MARZO 2021 - CONSUMI ILLUMINAZIONE PUBBLICA;04/05/2021;3544;0;119;1;Spese correnti;3;Acquisto di beni e servizi;2;Acquisto di servizi;15;Contratti di servizio pubblico;15;Contratti di servizio per l'illuminazione pubblica;06/05/2021
1803;4;9999999;43,42;845,91;ENEL ENERGIA SPA;8426072694;SALDO Fatt.n. 004122630860  del 08/04/2021 MARZO 2021 - CONSUMI ILLUMINAZIONE PUBBLICA;04/05/2021;3544;0;119;1;Spese correnti;3;Acquisto di beni e servizi;2;Acquisto di servizi;15;Contratti di servizio pubblico;15;Contratti di servizio per l'illuminazione pubblica;06/05/2021
1803;5;9999999;58,77;845,91;ENEL ENERGIA SPA;8426072694;SALDO Fatt.n. 004122630864  del 08/04/2021 MARZO 2021 - CONSUMI ILLUMINAZIONE PUBBLICA;04/05/2021;3544;0;119;1;Spese correnti;3;Acquisto di beni e servizi;2;Acquisto di servizi;15;Contratti di servizio pubblico;15;Contratti di servizio per l'illuminazione pubblica;06/05/2021
1803;6;9999999;79,39;845,91;ENEL ENERGIA SPA;8426072694;SALDO Fatt.n. 004122630859  del 08/04/2021 MARZO 2021 - CONSUMI ILLUMINAZIONE PUBBLICA;04/05/2021;3544;0;119;1;Spese correnti;3;Acquisto di beni e servizi;2;Acquisto di servizi;15;Contratti di servizio pubblico;15;Contratti di servizio per l'illuminazione pubblica;06/05/2021
1803;7;9999999;92,43;845,91;ENEL ENERGIA SPA;8426072694;SALDO Fatt.n. 004122630861  del 08/04/2021 MARZO 2021 - CONSUMI ILLUMINAZIONE PUBBLICA;04/05/2021;3544;0;119;1;Spese correnti;3;Acquisto di beni e servizi;2;Acquisto di servizi;15;Contratti di servizio pubblico;15;Contratti di servizio per l'illuminazione pubblica;06/05/2021
1803;8;9999999;93,71;845,91;ENEL ENERGIA SPA;8426072694;SALDO Fatt.n. 004122630851  del 08/04/2021 MARZO 2021 - CONSUMI ILLUMINAZIONE PUBBLICA;04/05/2021;3544;0;119;1;Spese correnti;3;Acquisto di beni e servizi;2;Acquisto di servizi;15;Contratti di servizio pubblico;15;Contratti di servizio per l'illuminazione pubblica;06/05/2021
1803;9;9999999;136,18;845,91;ENEL ENERGIA SPA;8426072694;SALDO Fatt.n. 004122630863  del 08/04/2021 MARZO 2021 - CONSUMI ILLUMINAZIONE PUBBLICA;04/05/2021;3544;0;119;1;Spese correnti;3;Acquisto di beni e servizi;2;Acquisto di servizi;15;Contratti di servizio pubblico;15;Contratti di servizio per l'illuminazione pubblica;06/05/2021
1803;10;9999999;258,07;845,91;ENEL ENERGIA SPA;8426072694;SALDO Fatt.n. 004122630858  del 08/04/2021 MARZO 2021 - CONSUMI ILLUMINAZIONE PUBBLICA;04/05/2021;3544;0;119;1;Spese correnti;3;Acquisto di beni e servizi;2;Acquisto di servizi;15;Contratti di servizio pubblico;15;Contratti di servizio per l'illuminazione pubblica;06/05/2021
1804;1;9999999;13,31;578,57;ENEL ENERGIA SPA;8426072694;SALDO Fatt.n. 004122630873  del 08/04/2021 MARZO 2021 - CONSUMI ILLUMINAZIONE PUBBLICA;04/05/2021;3544;0;119;1;Spese correnti;3;Acquisto di beni e servizi;2;Acquisto di servizi;15;Contratti di servizio pubblico;15;Contratti di servizio per l'illuminazione pubblica;06/05/2021
1804;2;9999999;16,48;578,57;ENEL ENERGIA SPA;8426072694;SALDO Fatt.n. 004122630874  del 08/04/2021 MARZO 2021 - CONSUMI ILLUMINAZIONE PUBBLICA;04/05/2021;3544;0;119;1;Spese correnti;3;Acquisto di beni e servizi;2;Acquisto di servizi;15;Contratti di servizio pubblico;15;Contratti di servizio per l'illuminazione pubblica;06/05/2021
1804;3;9999999;22,06;578,57;ENEL ENERGIA SPA;8426072694;SALDO Fatt.n. 004122630866  del 08/04/2021 MARZO 2021 - CONSUMI ILLUMINAZIONE PUBBLICA;04/05/2021;3544;0;119;1;Spese correnti;3;Acquisto di beni e servizi;2;Acquisto di servizi;15;Contratti di servizio pubblico;15;Contratti di servizio per l'illuminazione pubblica;06/05/2021
1804;4;9999999;29,79;578,57;ENEL ENERGIA SPA;8426072694;SALDO Fatt.n. 004122630870  del 08/04/2021 MARZO 2021 - CONSUMI ILLUMINAZIONE PUBBLICA;04/05/2021;3544;0;119;1;Spese correnti;3;Acquisto di beni e servizi;2;Acquisto di servizi;15;Contratti di servizio pubblico;15;Contratti di servizio per l'illuminazione pubblica;06/05/2021
1804;5;9999999;42,4;578,57;ENEL ENERGIA SPA;8426072694;SALDO Fatt.n. 004122630865  del 08/04/2021 MARZO 2021 - CONSUMI ILLUMINAZIONE PUBBLICA;04/05/2021;3544;0;119;1;Spese correnti;3;Acquisto di beni e servizi;2;Acquisto di servizi;15;Contratti di servizio pubblico;15;Contratti di servizio per l'illuminazione pubblica;06/05/2021
1804;6;9999999;52,55;578,57;ENEL ENERGIA SPA;8426072694;SALDO Fatt.n. 004122630868  del 08/04/2021 MARZO 2021 - CONSUMI ILLUMINAZIONE PUBBLICA;04/05/2021;3544;0;119;1;Spese correnti;3;Acquisto di beni e servizi;2;Acquisto di servizi;15;Contratti di servizio pubblico;15;Contratti di servizio per l'illuminazione pubblica;06/05/2021
1804;7;9999999;53,18;578,57;ENEL ENERGIA SPA;8426072694;SALDO Fatt.n. 004122630869  del 08/04/2021 MARZO 2021 - CONSUMI ILLUMINAZIONE PUBBLICA;04/05/2021;3544;0;119;1;Spese correnti;3;Acquisto di beni e servizi;2;Acquisto di servizi;15;Contratti di servizio pubblico;15;Contratti di servizio per l'illuminazione pubblica;06/05/2021
1804;8;9999999;82,33;578,57;ENEL ENERGIA SPA;8426072694;SALDO Fatt.n. 004122630872  del 08/04/2021 MARZO 2021 - CONSUMI ILLUMINAZIONE PUBBLICA;04/05/2021;3544;0;119;1;Spese correnti;3;Acquisto di beni e servizi;2;Acquisto di servizi;15;Contratti di servizio pubblico;15;Contratti di servizio per l'illuminazione pubblica;06/05/2021
1804;9;9999999;83,85;578,57;ENEL ENERGIA SPA;8426072694;SALDO Fatt.n. 004122630867  del 08/04/2021 MARZO 2021 - CONSUMI ILLUMINAZIONE PUBBLICA;04/05/2021;3544;0;119;1;Spese correnti;3;Acquisto di beni e servizi;2;Acquisto di servizi;15;Contratti di servizio pubblico;15;Contratti di servizio per l'illuminazione pubblica;06/05/2021
1804;10;9999999;182,62;578,57;ENEL ENERGIA SPA;8426072694;SALDO Fatt.n. 004122630871  del 08/04/2021 MARZO 2021 - CONSUMI ILLUMINAZIONE PUBBLICA;04/05/2021;3544;0;119;1;Spese correnti;3;Acquisto di beni e servizi;2;Acquisto di servizi;15;Contratti di servizio pubblico;15;Contratti di servizio per l'illuminazione pubblica;06/05/2021
1805;1;9999999;5,72;1.213,10;ENEL ENERGIA SPA;8426072694;SALDO Fatt.n. 004126785283  del 12/04/2021 MARZO 2021 - CONSUMI ILLUMINAZIONE PUBBLICA;04/05/2021;3544;0;119;1;Spese correnti;3;Acquisto di beni e servizi;2;Acquisto di servizi;15;Contratti di servizio pubblico;15;Contratti di servizio per l'illuminazione pubblica;06/05/2021
1805;2;9999999;9,32;1.213,10;ENEL ENERGIA SPA;8426072694;SALDO Fatt.n. 004126785285  del 12/04/2021 MARZO 2021 - CONSUMI ILLUMINAZIONE PUBBLICA;04/05/2021;3544;0;119;1;Spese correnti;3;Acquisto di beni e servizi;2;Acquisto di servizi;15;Contratti di servizio pubblico;15;Contratti di servizio per l'illuminazione pubblica;06/05/2021
1805;3;9999999;18,84;1.213,10;ENEL ENERGIA SPA;8426072694;SALDO Fatt.n. 004128921894  del 15/04/2021 MARZO 2021 - CONSUMI ILLUMINAZIONE PUBBLICA;04/05/2021;3544;0;119;1;Spese correnti;3;Acquisto di beni e servizi;2;Acquisto di servizi;15;Contratti di servizio pubblico;15;Contratti di servizio per l'illuminazione pubblica;06/05/2021
1805;4;9999999;25,51;1.213,10;ENEL ENERGIA SPA;8426072694;SALDO Fatt.n. 004128442520  del 14/04/2021 MARZO 2021 - CONSUMI ILLUMINAZIONE PUBBLICA;04/05/2021;3544;0;119;1;Spese correnti;3;Acquisto di beni e servizi;2;Acquisto di servizi;15;Contratti di servizio pubblico;15;Contratti di servizio per l'illuminazione pubblica;06/05/2021
1805;5;9999999;50,15;1.213,10;ENEL ENERGIA SPA;8426072694;SALDO Fatt.n. 004128921893  del 15/04/2021 MARZO 2021 - CONSUMI ILLUMINAZIONE PUBBLICA;04/05/2021;3544;0;119;1;Spese correnti;3;Acquisto di beni e servizi;2;Acquisto di servizi;15;Contratti di servizio pubblico;15;Contratti di servizio per l'illuminazione pubblica;06/05/2021
1805;6;9999999;173,17;1.213,10;ENEL ENERGIA SPA;8426072694;SALDO Fatt.n. 004126785284  del 12/04/2021 MARZO 2021 - CONSUMI ILLUMINAZIONE PUBBLICA;04/05/2021;3544;0;119;1;Spese correnti;3;Acquisto di beni e servizi;2;Acquisto di servizi;15;Contratti di servizio pubblico;15;Contratti di servizio per l'illuminazione pubblica;06/05/2021
1805;7;9999999;198,46;1.213,10;ENEL ENERGIA SPA;8426072694;SALDO Fatt.n. 004128442519  del 14/04/2021 MARZO 2021 - CONSUMI ILLUMINAZIONE PUBBLICA;04/05/2021;3544;0;119;1;Spese correnti;3;Acquisto di beni e servizi;2;Acquisto di servizi;15;Contratti di servizio pubblico;15;Contratti di servizio per l'illuminazione pubblica;06/05/2021
1805;8;9999999;201,84;1.213,10;ENEL ENERGIA SPA;8426072694;SALDO Fatt.n. 004128921891  del 15/04/2021 MARZO 2021 - CONSUMI ILLUMINAZIONE PUBBLICA;04/05/2021;3544;0;119;1;Spese correnti;3;Acquisto di beni e servizi;2;Acquisto di servizi;15;Contratti di servizio pubblico;15;Contratti di servizio per l'illuminazione pubblica;06/05/2021
1805;9;9999999;227,13;1.213,10;ENEL ENERGIA SPA;8426072694;SALDO Fatt.n. 004128921890  del 15/04/2021 MARZO 2021 - CONSUMI ILLUMINAZIONE PUBBLICA;04/05/2021;3544;0;119;1;Spese correnti;3;Acquisto di beni e servizi;2;Acquisto di servizi;15;Contratti di servizio pubblico;15;Contratti di servizio per l'illuminazione pubblica;06/05/2021
1805;10;9999999;302,96;1.213,10;ENEL ENERGIA SPA;8426072694;SALDO Fatt.n. 004128921889  del 15/04/2021 MARZO 2021 - CONSUMI ILLUMINAZIONE PUBBLICA;04/05/2021;3544;0;119;1;Spese correnti;3;Acquisto di beni e servizi;2;Acquisto di servizi;15;Contratti di servizio pubblico;15;Contratti di servizio per l'illuminazione pubblica;06/05/2021
1806;1;9999999;38,45;38,45;ENEL ENERGIA SPA;8426072694;SALDO Fatt.n. 004122630769  del 08/04/2021 MARZO 2021 - CONSUMI CIMITERO STIGLIANO - LAMPADE VOTIVE;04/05/2021;4434;0;118;1;Spese correnti;3;Acquisto di beni e servizi;2;Acquisto di servizi;5;Utenze e canoni;4;Energia elettrica;06/05/2021
1807;1;9999999;117;117;ENEL ENERGIA SPA;8426072694;SALDO Fatt.n. 004122630777  del 08/04/2021 MARZO 2021 - CONSUMI CIMITERO CALTANA - LAMPADE VOTIVE;04/05/2021;4434;0;118;1;Spese correnti;3;Acquisto di beni e servizi;2;Acquisto di servizi;5;Utenze e canoni;4;Energia elettrica;06/05/2021
1808;1;9999999;48;48;ENEL ENERGIA SPA;8426072694;SALDO Fatt.n. 004122630764  del 08/04/2021 MARZO 2021 - CONSUMI CIMITERO SMS - LAMPADE VOTIVE;04/05/2021;4434;0;118;1;Spese correnti;3;Acquisto di beni e servizi;2;Acquisto di servizi;5;Utenze e canoni;4;Energia elettrica;06/05/2021
1809;1;9999999;53;53;ENEL ENERGIA SPA;8426072694;SALDO Fatt.n. 004125821434  del 11/04/2021 MARZO 2021 - CONSUMI CIMITERO CASELLE - LAMPADE VOTIVE;04/05/2021;4434;0;118;1;Spese correnti;3;Acquisto di beni e servizi;2;Acquisto di servizi;5;Utenze e canoni;4;Energia elettrica;06/05/2021
1810;1;9999999;37;37;ENEL ENERGIA SPA;8426072694;SALDO Fatt.n. 004122630841  del 08/04/2021 MARZO 2021 - CONSUMI CIMITERO VETERNIGO - LAMPADE VOTIVE;04/05/2021;4434;0;118;1;Spese correnti;3;Acquisto di beni e servizi;2;Acquisto di servizi;5;Utenze e canoni;4;Energia elettrica;06/05/2021
1811;1;9999999;49;49;ENEL ENERGIA SPA;8426072694;SALDO Fatt.n. 004122630835  del 08/04/2021 MARZO 2021 - CONSUMI CIMITERO S,ANGELO - LAMPADE VOTIVE;04/05/2021;4434;0;118;1;Spese correnti;3;Acquisto di beni e servizi;2;Acquisto di servizi;5;Utenze e canoni;4;Energia elettrica;06/05/2021
1812;1;9999999;950;4.720,00;F.LLI LANDO SPA; ;SALDO Fatt.n. 242/98  del 14/04/2021 BUONI SPESA COVID;04/05/2021;4122;0;1329;1;Spese correnti;3;Acquisto di beni e servizi;1;Acquisto di beni;2;Altri beni di consumo;11;Generi alimentari;06/05/2021
1812;2;9999999;3.770,00;4.720,00;F.LLI LANDO SPA; ;SALDO Fatt.n. 243/98  del 14/04/2021 BUONI SPESA COVID;04/05/2021;4122;0;1329;1;Spese correnti;3;Acquisto di beni e servizi;1;Acquisto di beni;2;Altri beni di consumo;11;Generi alimentari;06/05/2021
1813;1;9999999;1.020,00;1.020,00;FARMACIA MIRCI  DOTTOR  ALBERTO; ;FORNITURA ALIMENTARI DI CUI AL DECRETO LEGGE N.  154 del 23/11/20- GENERI DI PRIMA NECESSITA;04/05/2021;4122;0;1329;1;Spese correnti;3;Acquisto di beni e servizi;1;Acquisto di beni;2;Altri beni di consumo;11;Generi alimentari;06/05/2021
1816;1;0;282,2;282,2;OMESSO NOMINATIVO NEL RISPETTO DELLA NORMATIVA SULLA PROTEZIONE DATI PERSONALI; ;CONTRIBUTO REGIONALE BUONO LIBRI ANNO A.C. 2020/2021;04/05/2021;1357;50;290;1;Spese correnti;4;Trasferimenti correnti;2;Trasferimenti correnti a Famiglie;5;Altri trasferimenti a famiglie;999;Altri trasferimenti a famiglie n.a.c.;04/05/2021
1817;1;9999999;130;130;OMESSO NOMINATIVO NEL RISPETTO DELLA NORMATIVA SULLA PROTEZIONE DATI PERSONALI; ;PRIMA TRANCHE ANNO 2021 ASSEGNI DI SOLLIEVO SECONDA RATA;05/05/2021;3957;50;316;1;Spese correnti;4;Trasferimenti correnti;2;Trasferimenti correnti a Famiglie;2;Interventi assistenziali;999;Altri assegni e sussidi assistenziali;18/05/2021
1818;1;9999999;220;220;OMESSO NOMINATIVO NEL RISPETTO DELLA NORMATIVA SULLA PROTEZIONE DATI PERSONALI; ;PRIMA TRANCHE ANNO 2021 ASSEGNI DI SOLLIEVO SECONDA RATA;05/05/2021;3957;50;317;1;Spese correnti;4;Trasferimenti correnti;2;Trasferimenti correnti a Famiglie;2;Interventi assistenziali;999;Altri assegni e sussidi assistenziali;14/05/2021
1819;1;9999999;130;130;OMESSO NOMINATIVO NEL RISPETTO DELLA NORMATIVA SULLA PROTEZIONE DATI PERSONALI; ;PRIMA TRANCHE ANNO 2021 ASSEGNI DI SOLLIEVO SECONDA RATA;05/05/2021;3957;50;318;1;Spese correnti;4;Trasferimenti correnti;2;Trasferimenti correnti a Famiglie;2;Interventi assistenziali;999;Altri assegni e sussidi assistenziali;07/05/2021
1820;1;9999999;130;130;OMESSO NOMINATIVO NEL RISPETTO DELLA NORMATIVA SULLA PROTEZIONE DATI PERSONALI; ;PRIMA TRANCHE ANNO 2021 ASSEGNI DI SOLLIEVO SECONDA RATA;05/05/2021;3957;50;319;1;Spese correnti;4;Trasferimenti correnti;2;Trasferimenti correnti a Famiglie;2;Interventi assistenziali;999;Altri assegni e sussidi assistenziali;07/05/2021
1821;1;9999999;130;130;OMESSO NOMINATIVO NEL RISPETTO DELLA NORMATIVA SULLA PROTEZIONE DATI PERSONALI; ;PRIMA TRANCHE ANNO 2021 ASSEGNI DI SOLLIEVO SECONDA RATA;05/05/2021;3957;50;320;1;Spese correnti;4;Trasferimenti correnti;2;Trasferimenti correnti a Famiglie;2;Interventi assistenziali;999;Altri assegni e sussidi assistenziali;07/05/2021
1822;1;9999999;1.000,00;1.000,00;OMESSO NOMINATIVO NEL RISPETTO DELLA NORMATIVA SULLA PROTEZIONE DATI PERSONALI; ;MAGGIO 2021 INT.RETTA PROGETTO DOMICILIARIETA;05/05/2021;4157;0;149;1;Spese correnti;4;Trasferimenti correnti;2;Trasferimenti correnti a Famiglie;2;Interventi assistenziali;999;Altri assegni e sussidi assistenziali;07/05/2021
1823;1;9999999;150;150;OMESSO NOMINATIVO NEL RISPETTO DELLA NORMATIVA SULLA PROTEZIONE DATI PERSONALI; ;MAGGIO 2021 AFFIDO FAMILIARE;05/05/2021;3757;50;282;1;Spese correnti;4;Trasferimenti correnti;2;Trasferimenti correnti a Famiglie;2;Interventi assistenziali;999;Altri assegni e sussidi assistenziali;07/05/2021
1824;1;9999999;500;500;ASS.NE NATURALISTICA TERRAVIVA; ;SALDO QUOTA  CONTRIBUTO PER LA RIQUALIFICAZIONE DELLAREA A SUD DI RIO LUXORE NEL TRATTO COMPRESO TRA LA S.R. 515 NOALESE E VIA RIVALE.;05/05/2021;2559;0;413;1;Spese correnti;4;Trasferimenti correnti;4;Trasferimenti correnti a Istituzioni Sociali Private;1;Trasferimenti correnti a Istituzioni Sociali Private;1;Trasferimenti correnti a Istituzioni Sociali Private;07/05/2021
1826;1;9999999;2.824,48;2.824,48;AGENZIA DELLE ENTRATE - IVA; ;LIQUIDAZIONE IVA COMMERCIALE MESE DI APRILE 2021;06/05/2021;291;0;414;1;Spese correnti;10;Altre spese correnti;3;Versamenti IVA a debito;1;Versamenti IVA a debito per le gestioni commerciali;1;Versamenti IVA a debito per le gestioni commerciali;14/05/2021
1831;1;9999999;200;200;OMESSO NOMINATIVO NEL RISPETTO DELLA NORMATIVA SULLA PROTEZIONE DATI PERSONALI; ;PROGETTO RIA - MESE DI APRILE 2021;07/05/2021;3957;54;146;1;Spese correnti;4;Trasferimenti correnti;2;Trasferimenti correnti a Famiglie;5;Altri trasferimenti a famiglie;999;Altri trasferimenti a famiglie n.a.c.;11/05/2021
1832;1;9999999;200;200;OMESSO NOMINATIVO NEL RISPETTO DELLA NORMATIVA SULLA PROTEZIONE DATI PERSONALI; ;PROGETTO RIA - MESE DI APRILE 2021;07/05/2021;3957;54;146;1;Spese correnti;4;Trasferimenti correnti;2;Trasferimenti correnti a Famiglie;5;Altri trasferimenti a famiglie;999;Altri trasferimenti a famiglie n.a.c.;31/05/2021
1833;1;9999999;200;200;OMESSO NOMINATIVO NEL RISPETTO DELLA NORMATIVA SULLA PROTEZIONE DATI PERSONALI; ;PROGETTO RIA - MESE DI APRILE 2021;07/05/2021;3957;54;146;1;Spese correnti;4;Trasferimenti correnti;2;Trasferimenti correnti a Famiglie;5;Altri trasferimenti a famiglie;999;Altri trasferimenti a famiglie n.a.c.;16/06/2021
1834;1;9999999;200;200;OMESSO NOMINATIVO NEL RISPETTO DELLA NORMATIVA SULLA PROTEZIONE DATI PERSONALI; ;PROGETTO RIA - MESE DI APRILE 2021;07/05/2021;3957;54;146;1;Spese correnti;4;Trasferimenti correnti;2;Trasferimenti correnti a Famiglie;5;Altri trasferimenti a famiglie;999;Altri trasferimenti a famiglie n.a.c.;11/05/2021
1835;1;9999999;200;200;OMESSO NOMINATIVO NEL RISPETTO DELLA NORMATIVA SULLA PROTEZIONE DATI PERSONALI; ;PROGETTO RIA - MESE DI APRILE 2021;07/05/2021;3957;54;146;1;Spese correnti;4;Trasferimenti correnti;2;Trasferimenti correnti a Famiglie;5;Altri trasferimenti a famiglie;999;Altri trasferimenti a famiglie n.a.c.;11/05/2021
1836;1;9999999;200;200;OMESSO NOMINATIVO NEL RISPETTO DELLA NORMATIVA SULLA PROTEZIONE DATI PERSONALI; ;PROGETTO RIA - MESE DI APRILE 2021;07/05/2021;3957;54;146;1;Spese correnti;4;Trasferimenti correnti;2;Trasferimenti correnti a Famiglie;5;Altri trasferimenti a famiglie;999;Altri trasferimenti a famiglie n.a.c.;11/05/2021
1837;1;9999999;200;200;OMESSO NOMINATIVO NEL RISPETTO DELLA NORMATIVA SULLA PROTEZIONE DATI PERSONALI; ;PROGETTO RIA - MESE DI APRILE 2021;07/05/2021;3957;54;146;1;Spese correnti;4;Trasferimenti correnti;2;Trasferimenti correnti a Famiglie;5;Altri trasferimenti a famiglie;999;Altri trasferimenti a famiglie n.a.c.;10/06/2021
1838;1;9999999;200;200;OMESSO NOMINATIVO NEL RISPETTO DELLA NORMATIVA SULLA PROTEZIONE DATI PERSONALI; ;PROGETTO RIA - MESE DI APRILE 2021;07/05/2021;3957;54;146;1;Spese correnti;4;Trasferimenti correnti;2;Trasferimenti correnti a Famiglie;5;Altri trasferimenti a famiglie;999;Altri trasferimenti a famiglie n.a.c.;11/05/2021
1839;1;9999999;200;200;OMESSO NOMINATIVO NEL RISPETTO DELLA NORMATIVA SULLA PROTEZIONE DATI PERSONALI; ;PROGETTO RIA - MESE DI APRILE 2021;07/05/2021;3957;54;146;1;Spese correnti;4;Trasferimenti correnti;2;Trasferimenti correnti a Famiglie;5;Altri trasferimenti a famiglie;999;Altri trasferimenti a famiglie n.a.c.;11/05/2021
1840;1;9999999;30;30;COOP. ALLEANZA 3.0 SOC. COOPERATIVA; ;BUONI ALIMENTARI - SOLIDARIETA ALIMENTARE - COVID;07/05/2021;4122;0;1329;1;Spese correnti;3;Acquisto di beni e servizi;1;Acquisto di beni;2;Altri beni di consumo;11;Generi alimentari;11/05/2021
1841;1;9999999;147,5;147,5;SINERGAS SPA;8300710A94;SALDO Fatt.n. 211099844  del 13/04/2021  MARZO 2021 - CONSUMI  ALLOGGIO VIA DON GALLERANI CALTANA;10/05/2021;134;30;120;1;Spese correnti;3;Acquisto di beni e servizi;2;Acquisto di servizi;5;Utenze e canoni;6;Gas;13/05/2021
1842;1;9999999;250,47;250,47;SINERGAS SPA;8300710A94;ACCONTO Fatt.n. 211103384  del 13/04/2021  MARZO 2021 + CONG.  CONSUMI  ALLOGGIO VIA OLIMPIA SMS;10/05/2021;134;30;120;1;Spese correnti;3;Acquisto di beni e servizi;2;Acquisto di servizi;5;Utenze e canoni;6;Gas;13/05/2021
1843;1;9999999;341;341;SINERGAS SPA;8300710A94;ACCONTO Fatt.n. 211099836  del 13/04/2021  MARZO 2021 - CONSUMI  SC. ELEM - PALESTRA STIGLIANO;10/05/2021;134;30;392;1;Spese correnti;3;Acquisto di beni e servizi;2;Acquisto di servizi;5;Utenze e canoni;6;Gas;13/05/2021
1844;1;9999999;292,96;292,96;SINERGAS SPA;8300710A94;ACCONTO Fatt.n. 211099836  del 13/04/2021  MARZO 2021 - CONSUMI  SC. ELEM - PALESTRA STIGLIANO;10/05/2021;134;30;392;1;Spese correnti;3;Acquisto di beni e servizi;2;Acquisto di servizi;5;Utenze e canoni;6;Gas;13/05/2021
1845;1;9999999;2.042,39;2.042,39;SINERGAS SPA;8300710A94;SALDO Fatt.n. 211099848  del 13/04/2021  MARZO 2021 - CONSUMI  SEDE MUNICIPALE;10/05/2021;134;31;121;1;Spese correnti;3;Acquisto di beni e servizi;2;Acquisto di servizi;5;Utenze e canoni;6;Gas;13/05/2021
1846;1;9999999;93,78;93,78;SINERGAS SPA;8300710A94;SALDO Fatt.n. 211103384  del 13/04/2021  MARZO 2021 + CONG.  CONSUMI  ALLOGGIO VIA OLIMPIA SMS;10/05/2021;134;31;121;1;Spese correnti;3;Acquisto di beni e servizi;2;Acquisto di servizi;5;Utenze e canoni;6;Gas;13/05/2021
1847;1;9999999;280,32;280,32;SINERGAS SPA;8300710A94;ACCONTO Fatt.n. 211099838  del 13/04/2021  MARZO 2021 - CONSUMI  VILLA FARSETTI;10/05/2021;134;31;121;1;Spese correnti;3;Acquisto di beni e servizi;2;Acquisto di servizi;5;Utenze e canoni;6;Gas;13/05/2021
1848;1;9999999;391;391;SINERGAS SPA;8300710A94;ACCONTO Fatt.n. 211099846  del 13/04/2021  MARZO 2021 - CONSUMI  SC. ELEM - PALESTRA - ASILO S.ANGELO;10/05/2021;134;31;393;1;Spese correnti;3;Acquisto di beni e servizi;2;Acquisto di servizi;5;Utenze e canoni;6;Gas;13/05/2021
1849;1;9999999;1.172,03;1.172,03;SINERGAS SPA;8300710A94;ACCONTO Fatt.n. 211099846  del 13/04/2021  MARZO 2021 - CONSUMI  SC. ELEM - PALESTRA - ASILO S.ANGELO;10/05/2021;134;31;393;1;Spese correnti;3;Acquisto di beni e servizi;2;Acquisto di servizi;5;Utenze e canoni;6;Gas;13/05/2021
1850;1;9999999;531;531;SINERGAS SPA;8300710A94;ACCONTO Fatt.n. 211099841  del 13/04/2021  MARZO 2021 - CONSUMI  SC. ELEM. - PALESTRA VETERNIGO;10/05/2021;134;31;393;1;Spese correnti;3;Acquisto di beni e servizi;2;Acquisto di servizi;5;Utenze e canoni;6;Gas;13/05/2021
1851;1;9999999;869,16;869,16;SINERGAS SPA;8300710A94;ACCONTO Fatt.n. 211099841  del 13/04/2021  MARZO 2021 - CONSUMI  SC. ELEM. - PALESTRA VETERNIGO;10/05/2021;134;31;393;1;Spese correnti;3;Acquisto di beni e servizi;2;Acquisto di servizi;5;Utenze e canoni;6;Gas;13/05/2021
1852;1;9999999;76,44;76,44;SINERGAS SPA;8300710A94;SALDO Fatt.n. 211099845  del 13/04/2021  MARZO 2021 - CONSUMI  IMP. SPORT. CASELLE;10/05/2021;1334;30;122;1;Spese correnti;3;Acquisto di beni e servizi;2;Acquisto di servizi;5;Utenze e canoni;6;Gas;13/05/2021
1853;1;9999999;1.348,14;1.348,14;SINERGAS SPA;8300710A94;SALDO Fatt.n. 211099839  del 13/04/2021  MARZO 2021 - CONSUMI  SC. ELEM. CALTANA;10/05/2021;1334;30;122;1;Spese correnti;3;Acquisto di beni e servizi;2;Acquisto di servizi;5;Utenze e canoni;6;Gas;13/05/2021
1854;1;9999999;550,69;550,69;SINERGAS SPA;8300710A94;ACCONTO Fatt.n. 211099837  del 13/04/2021  MARZO 2021 - CONSUMI  PALESTRA SMS;10/05/2021;1334;30;122;1;Spese correnti;3;Acquisto di beni e servizi;2;Acquisto di servizi;5;Utenze e canoni;6;Gas;13/05/2021
1855;1;9999999;550,69;550,69;SINERGAS SPA;8300710A94;SALDO Fatt.n. 211099837  del 13/04/2021  MARZO 2021 - CONSUMI  PALESTRA SMS;10/05/2021;1334;30;394;1;Spese correnti;3;Acquisto di beni e servizi;2;Acquisto di servizi;5;Utenze e canoni;6;Gas;13/05/2021
1856;1;9999999;455;455;SINERGAS SPA;8300710A94;ACCONTO Fatt.n. 211099840  del 13/04/2021  MARZO 2021 - CONSUMI  SC. ELEM - PALESTRA CASELLE;10/05/2021;1334;30;394;1;Spese correnti;3;Acquisto di beni e servizi;2;Acquisto di servizi;5;Utenze e canoni;6;Gas;13/05/2021
1857;1;9999999;455;455;SINERGAS SPA;8300710A94;ACCONTO Fatt.n. 211099840  del 13/04/2021  MARZO 2021 - CONSUMI  SC. ELEM - PALESTRA CASELLE;10/05/2021;1334;30;394;1;Spese correnti;3;Acquisto di beni e servizi;2;Acquisto di servizi;5;Utenze e canoni;6;Gas;13/05/2021
1858;1;9999999;1.361,81;1.361,81;SINERGAS SPA;8300710A94;SALDO Fatt.n. 211099840  del 13/04/2021  MARZO 2021 - CONSUMI  SC. ELEM - PALESTRA CASELLE;10/05/2021;1334;30;394;1;Spese correnti;3;Acquisto di beni e servizi;2;Acquisto di servizi;5;Utenze e canoni;6;Gas;13/05/2021
1859;1;9999999;391;391;SINERGAS SPA;8300710A94;SALDO Fatt.n. 211099846  del 13/04/2021  MARZO 2021 - CONSUMI  SC. ELEM - PALESTRA - ASILO S.ANGELO;10/05/2021;1334;30;394;1;Spese correnti;3;Acquisto di beni e servizi;2;Acquisto di servizi;5;Utenze e canoni;6;Gas;13/05/2021
1860;1;9999999;531;531;SINERGAS SPA;8300710A94;SALDO Fatt.n. 211099841  del 13/04/2021  MARZO 2021 - CONSUMI  SC. ELEM. - PALESTRA VETERNIGO;10/05/2021;1334;30;394;1;Spese correnti;3;Acquisto di beni e servizi;2;Acquisto di servizi;5;Utenze e canoni;6;Gas;13/05/2021
1861;1;9999999;341;341;SINERGAS SPA;8300710A94;SALDO Fatt.n. 211099836  del 13/04/2021  MARZO 2021 - CONSUMI  SC. ELEM - PALESTRA STIGLIANO;10/05/2021;1334;30;394;1;Spese correnti;3;Acquisto di beni e servizi;2;Acquisto di servizi;5;Utenze e canoni;6;Gas;13/05/2021
1862;1;9999999;467,04;467,04;SINERGAS SPA;8300710A94;ACCONTO Fatt.n. 211099842  del 13/04/2021  MARZO 2021 - CONSUMI  PALESTRA CALTANA;10/05/2021;1334;30;394;1;Spese correnti;3;Acquisto di beni e servizi;2;Acquisto di servizi;5;Utenze e canoni;6;Gas;13/05/2021
1863;1;9999999;2.505,15;2.505,15;SINERGAS SPA;8300710A94;ACCONTO Fatt.n. 211099838  del 13/04/2021  MARZO 2021 - CONSUMI  VILLA FARSETTI;10/05/2021;1334;30;452;1;Spese correnti;3;Acquisto di beni e servizi;2;Acquisto di servizi;5;Utenze e canoni;6;Gas;13/05/2021
1864;1;9999999;2.975,29;2.975,29;SINERGAS SPA;8300710A94;SALDO Fatt.n. 211099843  del 13/04/2021  MARZO 2021 - CONSUMI  SC. ELEM - SC. MEDIA SMS;10/05/2021;1834;0;395;1;Spese correnti;3;Acquisto di beni e servizi;2;Acquisto di servizi;5;Utenze e canoni;6;Gas;13/05/2021
1865;1;9999999;467,05;467,05;SINERGAS SPA;8300710A94;SALDO Fatt.n. 211099842  del 13/04/2021  MARZO 2021 - CONSUMI  PALESTRA CALTANA;10/05/2021;1834;0;395;1;Spese correnti;3;Acquisto di beni e servizi;2;Acquisto di servizi;5;Utenze e canoni;6;Gas;13/05/2021
1866;1;9999999;284,35;284,35;SINERGAS SPA;8300710A94;SALDO Fatt.n. 211099847  del 13/04/2021  MARZO 2021 - CONSUMI  MAGAZZINO COMUNALE;10/05/2021;3534;0;125;1;Spese correnti;3;Acquisto di beni e servizi;2;Acquisto di servizi;5;Utenze e canoni;6;Gas;13/05/2021
1867;1;9999999;373,12;373,12;SINERGAS SPA;8300710A94;ACCONTO Fatt.n. 211099838  del 13/04/2021  MARZO 2021 - CONSUMI  VILLA FARSETTI;10/05/2021;3534;0;125;1;Spese correnti;3;Acquisto di beni e servizi;2;Acquisto di servizi;5;Utenze e canoni;6;Gas;13/05/2021
1868;1;9999999;661,95;661,95;SINERGAS SPA;8300710A94;SALDO Fatt.n. 211099838  del 13/04/2021  MARZO 2021 - CONSUMI  VILLA FARSETTI;10/05/2021;4234;0;126;1;Spese correnti;3;Acquisto di beni e servizi;2;Acquisto di servizi;5;Utenze e canoni;6;Gas;13/05/2021
1869;1;9999999;404,48;404,48;ATER AZ.TERR.EDIL.RESIDENZIALE; ;CANONI DI LOCAZIONE DI CUI ALLA CONVENZIONE E PROROGA;10/05/2021;3957;55;117;1;Spese correnti;4;Trasferimenti correnti;2;Trasferimenti correnti a Famiglie;5;Altri trasferimenti a famiglie;999;Altri trasferimenti a famiglie n.a.c.;13/05/2021
1870;1;9999999;188;188;ATER AZ.TERR.EDIL.RESIDENZIALE; ;CANONI DI LOCAZIONE DI CUI ALLA CONVENZIONE E PROROGA;10/05/2021;3957;55;627;1;Spese correnti;4;Trasferimenti correnti;2;Trasferimenti correnti a Famiglie;5;Altri trasferimenti a famiglie;999;Altri trasferimenti a famiglie n.a.c.;13/05/2021
1871;1;9999999;863,27;863,27;ATER AZ.TERR.EDIL.RESIDENZIALE; ;CANONI DI LOCAZIONE DI CUI ALLA CONVENZIONE E PROROGA;10/05/2021;3957;55;658;1;Spese correnti;4;Trasferimenti correnti;2;Trasferimenti correnti a Famiglie;5;Altri trasferimenti a famiglie;999;Altri trasferimenti a famiglie n.a.c.;13/05/2021
1872;1;9999999;1.645,98;1.645,98;OMESSO NOMINATIVO NEL RISPETTO DELLA NORMATIVA SULLA PROTEZIONE DATI PERSONALI; ;CANONI DI LOCAZIONE DI CUI ALLA CONVENZIONE E PROROGA;10/05/2021;3957;55;412;1;Spese correnti;4;Trasferimenti correnti;2;Trasferimenti correnti a Famiglie;5;Altri trasferimenti a famiglie;999;Altri trasferimenti a famiglie n.a.c.;13/05/2021
1874;1;9999999;220;220;ZORZATO ANGELO ORTOFRUTTA; ;BUONI ALIMENTARI E GENERI DI PRIMA NECESSITA;11/05/2021;4122;0;1329;1;Spese correnti;3;Acquisto di beni e servizi;1;Acquisto di beni;2;Altri beni di consumo;11;Generi alimentari;13/05/2021
1875;1;9999999;300;300;PUBLIKA SRL;Z9D3066BEB;SALDO Fatt.n. 781/PA  del 20/04/2021 ABBONAMENTO RIVISTA PERSONALE NEWS + SERVIZIO 2 QUESITI ANNO 2021;11/05/2021;120;0;62;1;Spese correnti;3;Acquisto di beni e servizi;1;Acquisto di beni;1;Giornali, riviste e pubblicazioni;1;Giornali e riviste;13/05/2021
1876;1;9999999;2.363,96;2.363,96;ARTEA  SNC DI LION & SALVIATO;Z47300506C;SALDO Fatt.n. 08-2021/PA  del 15/04/2021 OPERAZIONI EFFETTUATE NEI CIMITERI DEL COMUNE DI SANTA MARIA DI SALA NEL MESE DI MARZO 2021;11/05/2021;4438;0;1377;1;Spese correnti;3;Acquisto di beni e servizi;2;Acquisto di servizi;9;Manutenzione ordinaria e riparazioni;8;Manutenzione ordinaria e riparazioni di beni immobili;13/05/2021
1877;1;9999999;2.400,00;2.400,00;LABS LABORATORIO SOLIDALE ONLUS;8426072694;APRILE 2021 SERVIZI AUSILIARI COLLEGATI ALLA SCUOLA - LIQ.PAGAMENTO CONTRIBUTO;11/05/2021;1257;0;159;1;Spese correnti;4;Trasferimenti correnti;4;Trasferimenti correnti a Istituzioni Sociali Private;1;Trasferimenti correnti a Istituzioni Sociali Private;1;Trasferimenti correnti a Istituzioni Sociali Private;13/05/2021
1878;1;9999999;4.390,00;4.390,00;MANO AMICA - GRUPPO SALESE DI IMPEGNO SOCIALE O.D.V.; ;APRILE 2021 SERVIZI AUSILIARI COLLEGATI ALLA SCUOLA - LIQ.PAGAMENTO CONTRIBUTO;11/05/2021;1257;0;160;1;Spese correnti;4;Trasferimenti correnti;4;Trasferimenti correnti a Istituzioni Sociali Private;1;Trasferimenti correnti a Istituzioni Sociali Private;1;Trasferimenti correnti a Istituzioni Sociali Private;13/05/2021
1879;1;9999999;300;300;ASS.VOLONTARI PROT.CIVILE S.M. DI SALA ODV; ;APRILE 2021 SERVIZI AUSILIARI COLLEGATI ALLA SCUOLA - LIQ.PAGAMENTO CONTRIBUTO;11/05/2021;1257;0;161;1;Spese correnti;4;Trasferimenti correnti;4;Trasferimenti correnti a Istituzioni Sociali Private;1;Trasferimenti correnti a Istituzioni Sociali Private;1;Trasferimenti correnti a Istituzioni Sociali Private;13/05/2021
1880;1;9999999;800;6.800,00;LABS LABORATORIO SOLIDALE ONLUS; ;PULIZIA LOCALI E SERVIZI IGENICI CIMITERI II ACCONTO PROGETTI 2021;11/05/2021;4059;10;283;1;Spese correnti;4;Trasferimenti correnti;4;Trasferimenti correnti a Istituzioni Sociali Private;1;Trasferimenti correnti a Istituzioni Sociali Private;1;Trasferimenti correnti a Istituzioni Sociali Private;13/05/2021
1880;2;9999999;1.000,00;6.800,00;LABS LABORATORIO SOLIDALE ONLUS; ;MANTENIMENTO E PULIZIA SPAZI COMUNALI II ACCONTO PROGETTI 2021;11/05/2021;4059;10;283;1;Spese correnti;4;Trasferimenti correnti;4;Trasferimenti correnti a Istituzioni Sociali Private;1;Trasferimenti correnti a Istituzioni Sociali Private;1;Trasferimenti correnti a Istituzioni Sociali Private;13/05/2021
1880;3;9999999;1.000,00;6.800,00;LABS LABORATORIO SOLIDALE ONLUS; ;ASSISTENZA OPERAZIONI CIMITERIALI;11/05/2021;4059;10;283;1;Spese correnti;4;Trasferimenti correnti;4;Trasferimenti correnti a Istituzioni Sociali Private;1;Trasferimenti correnti a Istituzioni Sociali Private;1;Trasferimenti correnti a Istituzioni Sociali Private;13/05/2021
1880;4;9999999;4.000,00;6.800,00;LABS LABORATORIO SOLIDALE ONLUS; ;SFALCIO ERBA VILLA FARSETTI/CIMITERI COMUNALI. II ACCONTO PROGETTI 2021;11/05/2021;4059;10;283;1;Spese correnti;4;Trasferimenti correnti;4;Trasferimenti correnti a Istituzioni Sociali Private;1;Trasferimenti correnti a Istituzioni Sociali Private;1;Trasferimenti correnti a Istituzioni Sociali Private;13/05/2021
1881;1;9999999;292,79;292,79;CONVERGE SPA;Z9D1FAB040;SALDO Fatt.n. 21302409  del 30/04/2021 NOLEGGIO APPARECCHIATURE MULTIFUNZIONE PER UTC  PERIODO  01/02/21 - 30/04/21;11/05/2021;748;0;534;1;Spese correnti;3;Acquisto di beni e servizi;2;Acquisto di servizi;19;Servizi informatici e di telecomunicazioni;9;Servizi per le postazioni di lavoro e relativa manutenzione;13/05/2021
